Workbook

Sheet Cowculator Home
B8: Oklahoma State University
B9: Department of Animal and Food Sciences
B10: M.A. Gross, D.L. Lalman, and P.A Beck
E13: Copyright 2020. Oklahoma Board of Regents for A&M Colleges

Sheet Cattle
B3: Client | C3: Pistol Pete, Bullet Ranch | E3: Cattle Description | F3: Angus cows, 1200 lb, BCS = 5 | L3: Stage | M3: Days | N3: Day in Gestation | Q3: Class of Cattle | R3: Ionophore | S3: Implant | T3: Genetic Potential for Growth and Feed Efficiency
B4: Contact Info | C4: (405) 718-2134 | E4: Ration ID | F4: 2020 dry cow precalving | L4: Mid Gestation, dry Cow | M4: 95 | N4: 94-189 | Q4: Growing and Finishing Cattle | R4: Rumensin | S4: Yes | T4: Above Average | U4: 0.97 | W4: Adjusts to 5% below default NASEM values (NASEM equations were extremely optimistic with 750 lb steers converting at 5.2:1)
L5: Late Gestation, dry Cow | M5: 95 | N5: 189-283 | Q5: Mid Gestation, Bred Heifer | R5: Bovatec | S5: No | T5: Average | U5: 0.895 | W5: Adjusts to Hitch and K-State newsletter data using 2016, 2017 and 2018 closeouts
B6: Select Class of Cattle | E6: Feeding Period, Days | L6: Early Lactation, Mature Cow | M6: 90 | N6: 0 - 30 | Q6: Late Gestation, Bred Heifer | R6: Cattlyst | T6: Below Average | U6: 0.82 | W6: Adjusts to below average (Hitch data)
B7: Late Gestation, Dry Cow | E7: 90 | L7: Late Lactation, Mature Cow | M7: 120 | N7: 30 - 94 | Q7: Early Lactation, First Calf Heifer | R7: None | T7: Decision | U7: =VLOOKUP(F15, T4:U6, 2,) -> 0.97
L8: Mid Gestation, Bred Heifer | M8: 95 | N8: 94-189 | Q8: Mid Gestation, Dry Cow
B9: Inputs for Cows, Bred Heifers and Mature Bulls | L9: Late Gestation, Bred Heifer | M9: 95 | N9: 189-283 | Q9: Late Gestation, Dry Cow
B10: Number of Cattle | C10: Initial Weight, lb | D10: Mature Weight, lb | E10: Expected Calf Birth Weight, lb | F10: Genetic Potential for Milk | G10: Peak Milk, lb/day | H10: Initial Body Condition Score | I10: Desired Body Condition Score | L10: Early Lactation, First Calf Heifer | M10: 90 | N10: 0 - 30 | Q10: Early Lactation, Mature Cow
B11: 10 | C11: 1200 | D11: 1200 | E11: 80 | F11: Average | G11: =VLOOKUP(F11,L12:M16,2,) -> 24.22907489 | H11: 5 | I11: 5 | L11: Productivity | M11: Cow | N11: Heifer | O11: Milk Adjustment | P11: Helper Cells | Q11: Late Lactation, Mature Cow
L12: Low | M12: =($L$19/0.454)*O12 -> 19.38325991 | N12: =M12*0.8 -> 15.50660793 | O12: 0.8 | P12: =VLOOKUP(F11,L12:N16,2) -> 24.22907489 | Q12: Mature Bulls
B13: Inputs for Growing and Finishing Cattle | L13: Med Low | M13: =($L$19/0.454)*O13 -> 21.8061674 | N13: =M13*0.8 -> 17.44493392 | O13: 0.9 | P13: =VLOOKUP(F11,L12:N16,3) -> 19.38325991
B14: Number of Cattle | C14: Initial Weight, lb | D14: Desired Weight, End of Feeding Period, lb | E14: Finish Weight, lb | F14: Genetic Potential for Growth and Feed Efficiency | G14: Ionophore | H14: Implant | I14: Initial Body Condition | L14: Average | M14: =($L$19/0.454)*O14 -> 24.22907489 | N14: =M14*0.8 -> 19.38325991 | O14: 1 | P14: =IF(OR(B7="Mid Gestation, Dry Cow",B7="Late Gestation, Dry Cow",B7="Early Lactation, Dry Cow",B7="Late Lactation, Mature Cow"),P12,P13) -> 24.22907489
B15: 100 | C15: 818 | D15: 1438 | E15: 1438 | F15: Above Average | G15: Rumensin | H15: Yes | I15: 6 | L15: Med High | M15: =($L$19/0.454)*O15 -> 26.65198238 | N15: =M15*0.8 -> 21.3215859 | O15: 1.1
L16: High | M16: =($L$19/0.454)*O16 -> 29.07488987 | N16: =M16*0.8 -> 23.25991189 | O16: 1.2
B17: Breed | C17: Percentage
B18: Angus | C18: 1 | L18: Breed Average Milk, kg/d | M18: Lact Adj | N18: Maint Adj | O18: Maint | P18: Adj Maint for lactation
B19: Braford | L19: =R44 -> 11 | M19: =P44 -> 1.2 | N19: =N44 -> 1 | O19: =0.077*N44 -> 0.077 | P19: =O19*P44 -> 0.0924
B20: Brahman | T20: Maintenance, non lact | U20: Maint, lactating
B21: Brangus | L21: Breed | M21: Breed Factor | N21: Breed adjustment | O21: Lactation Factor | P21: Lactaion Adjustment | Q21: Peak Milk, kg/d | R21: Milk Breed adj | S21: Column1 | T21: Column2 | U21: Column3
B22: Braunvieh | L22: Angus | M22: 1 | N22: =C18*M22 -> 1 | O22: 1.2 | P22: =Table4[[#This Row],[Lactation Factor]]*C18 -> 1.2 | Q22: 11 | R22: =Q22*C18 -> 11 | T22: =(77*Table4[[#This Row],[Breed Factor]]) -> 77 | U22: =((T22*160)+(T22*Table4[[#This Row],[Lactation Factor]]*205))/365 -> 85.64931507
B23: Charolais | L23: Braford | M23: 0.95 | N23: 0 | O23: 1.2 | P23: =Table4[[#This Row],[Lactation Factor]]*C19 -> 0 | Q23: 9 | R23: 0 | T23: =(77*Table4[[#This Row],[Breed Factor]]) -> 73.15 | U23: =((T23*160)+(T23*Table4[[#This Row],[Lactation Factor]]*205))/365 -> 81.36684932
B24: Chianina | L24: Brahman | M24: 0.9 | N24: 0 | O24: 1.2 | P24: =Table4[[#This Row],[Lactation Factor]]*C20 -> 0 | Q24: 9 | R24: 0 | T24: =(77*Table4[[#This Row],[Breed Factor]]) -> 69.3 | U24: =((T24*160)+(T24*Table4[[#This Row],[Lactation Factor]]*205))/365 -> 77.08438356
B25: Devon | L25: Brangus | M25: 0.95 | N25: 0 | O25: 1.2 | P25: =Table4[[#This Row],[Lactation Factor]]*C21 -> 0 | Q25: 10 | R25: 0 | T25: =(77*Table4[[#This Row],[Breed Factor]]) -> 73.15 | U25: =((T25*160)+(T25*Table4[[#This Row],[Lactation Factor]]*205))/365 -> 81.36684932
B26: Gelbvieh | L26: Braunvieh | M26: 1.2 | N26: 0 | O26: 1 | P26: =Table4[[#This Row],[Lactation Factor]]*C22 -> 0 | Q26: 12 | R26: 0 | T26: =(77*Table4[[#This Row],[Breed Factor]]) -> 92.4 | U26: =((T26*160)+(T26*Table4[[#This Row],[Lactation Factor]]*205))/365 -> 92.4
B27: Hereford | L27: Charolais | M27: 1 | N27: 0 | O27: 1.2 | P27: =Table4[[#This Row],[Lactation Factor]]*C23 -> 0 | Q27: 10 | R27: 0 | T27: =(77*Table4[[#This Row],[Breed Factor]]) -> 77 | U27: =((T27*160)+(T27*Table4[[#This Row],[Lactation Factor]]*205))/365 -> 85.64931507
B28: Holstein | L28: Chianina | M28: 1 | N28: 0 | O28: 1.2 | P28: =Table4[[#This Row],[Lactation Factor]]*C24 -> 0 | Q28: 8 | R28: 0 | T28: =(77*Table4[[#This Row],[Breed Factor]]) -> 77 | U28: =((T28*160)+(T28*Table4[[#This Row],[Lactation Factor]]*205))/365 -> 85.64931507
B29: Jersey | L29: Devon | M29: 1 | N29: 0 | O29: 1 | P29: =Table4[[#This Row],[Lactation Factor]]*C25 -> 0 | Q29: 9 | R29: 0 | T29: =(77*Table4[[#This Row],[Breed Factor]]) -> 77 | U29: =((T29*160)+(T29*Table4[[#This Row],[Lactation Factor]]*205))/365 -> 77
B30: Limousin | L30: Gelbvieh | M30: 1 | N30: 0 | O30: 1.2 | P30: =Table4[[#This Row],[Lactation Factor]]*C26 -> 0 | Q30: 12 | R30: 0 | T30: =(77*Table4[[#This Row],[Breed Factor]]) -> 77 | U30: =((T30*160)+(T30*Table4[[#This Row],[Lactation Factor]]*205))/365 -> 85.64931507
B31: Longhorn | L31: Hereford | M31: 1 | N31: 0 | O31: 1 | P31: =Table4[[#This Row],[Lactation Factor]]*C27 -> 0 | Q31: 8 | R31: 0 | T31: =(77*Table4[[#This Row],[Breed Factor]]) -> 77 | U31: =((T31*160)+(T31*Table4[[#This Row],[Lactation Factor]]*205))/365 -> 77
B32: Maine Anjou | L32: Holstein | M32: 1.2 | N32: 0 | O32: 1 | P32: =Table4[[#This Row],[Lactation Factor]]*C28 -> 0 | Q32: 43 | R32: 0 | T32: =(77*Table4[[#This Row],[Breed Factor]]) -> 92.4 | U32: =((T32*160)+(T32*Table4[[#This Row],[Lactation Factor]]*205))/365 -> 92.4
B33: Pinzgauer | L33: Jersey | M33: 1.2 | N33: 0 | O33: 1 | P33: =Table4[[#This Row],[Lactation Factor]]*C29 -> 0 | Q33: 34 | R33: 0 | T33: =(77*Table4[[#This Row],[Breed Factor]]) -> 92.4 | U33: =((T33*160)+(T33*Table4[[#This Row],[Lactation Factor]]*205))/365 -> 92.4
B34: Salers | L34: Limousin | M34: 1 | N34: 0 | O34: 1.2 | P34: =Table4[[#This Row],[Lactation Factor]]*C30 -> 0 | Q34: 9 | R34: 0 | T34: =(77*Table4[[#This Row],[Breed Factor]]) -> 77 | U34: =((T34*160)+(T34*Table4[[#This Row],[Lactation Factor]]*205))/365 -> 85.64931507
B35: S. Gertrudis | L35: Longhorn | M35: 1 | N35: 0 | O35: 1 | P35: =Table4[[#This Row],[Lactation Factor]]*C31 -> 0 | Q35: 5 | R35: 0 | T35: =(77*Table4[[#This Row],[Breed Factor]]) -> 77 | U35: =((T35*160)+(T35*Table4[[#This Row],[Lactation Factor]]*205))/365 -> 77
B36: Shorthorn | L36: Maine Anjou | M36: 1 | N36: 0 | O36: 1.2 | P36: =Table4[[#This Row],[Lactation Factor]]*C32 -> 0 | Q36: 9 | R36: 0 | T36: =(77*Table4[[#This Row],[Breed Factor]]) -> 77 | U36: =((T36*160)+(T36*Table4[[#This Row],[Lactation Factor]]*205))/365 -> 85.64931507
B37: Simmental | L37: Pinzgauer | M37: 1 | N37: 0 | O37: 1.2 | P37: =Table4[[#This Row],[Lactation Factor]]*C33 -> 0 | Q37: 11 | R37: 0 | T37: =(77*Table4[[#This Row],[Breed Factor]]) -> 77 | U37: =((T37*160)+(T37*Table4[[#This Row],[Lactation Factor]]*205))/365 -> 85.64931507
B38: South Devon | L38: Salers | M38: 1 | N38: 0 | O38: 1.2 | P38: =Table4[[#This Row],[Lactation Factor]]*C34 -> 0 | Q38: 9 | R38: 0 | T38: =(77*Table4[[#This Row],[Breed Factor]]) -> 77 | U38: =((T38*160)+(T38*Table4[[#This Row],[Lactation Factor]]*205))/365 -> 85.64931507
B39: Tarentaise | L39: S. Gertrudis | M39: 0.95 | N39: 0 | O39: 1.2 | P39: =Table4[[#This Row],[Lactation Factor]]*C35 -> 0 | Q39: 8 | R39: 0 | T39: =(77*Table4[[#This Row],[Breed Factor]]) -> 73.15 | U39: =((T39*160)+(T39*Table4[[#This Row],[Lactation Factor]]*205))/365 -> 81.36684932
B40: Total | C40: =SUM(C18:C39) -> 1 | L40: Shorthorn | M40: 1 | N40: 0 | O40: 1.2 | P40: =Table4[[#This Row],[Lactation Factor]]*C36 -> 0 | Q40: 8.5 | R40: 0 | T40: =(77*Table4[[#This Row],[Breed Factor]]) -> 77 | U40: =((T40*160)+(T40*Table4[[#This Row],[Lactation Factor]]*205))/365 -> 85.64931507
L41: Simmental | M41: 1.1 | N41: 0 | O41: 1.1 | P41: =Table4[[#This Row],[Lactation Factor]]*C37 -> 0 | Q41: 12 | R41: 0 | T41: =(77*Table4[[#This Row],[Breed Factor]]) -> 84.7 | U41: =((T41*160)+(T41*Table4[[#This Row],[Lactation Factor]]*205))/365 -> 89.45712329
L42: South Devon | M42: 1 | N42: 0 | O42: 1.2 | P42: =Table4[[#This Row],[Lactation Factor]]*C38 -> 0 | Q42: 8 | R42: 0 | T42: =(77*Table4[[#This Row],[Breed Factor]]) -> 77 | U42: =((T42*160)+(T42*Table4[[#This Row],[Lactation Factor]]*205))/365 -> 85.64931507
L43: Tarentaise | M43: 1 | N43: 0 | O43: 1.2 | P43: =Table4[[#This Row],[Lactation Factor]]*C39 -> 0 | Q43: 9 | R43: 0 | T43: =(77*Table4[[#This Row],[Breed Factor]]) -> 77 | U43: =((T43*160)+(T43*Table4[[#This Row],[Lactation Factor]]*205))/365 -> 85.64931507
L44: Total | N44: =SUM(N22:N43) -> 1 | P44: =SUM(P22:P43) -> 1.2 | R44: =SUM(R22:R43) -> 11
L45: Total | Q45: =AVERAGE(Q22:Q43) -> 11.97727273 | S45: =SUBTOTAL(109,Table4[Column1]) -> 0
L46: Feed Intake Adjustments for Growing Cattle
L47: Ionophore | M47: Adjustment | O47: Implant | P47: Adjustment
L48: Monensin | M48: 0.97 | O48: Yes | P48: 1
L49: Lasalocid | M49: 1 | O49: No | P49: 0.94
L50: Laidlomycin | M50: 1
L51: None | M51: 1

Sheet Balancer
B3: =Cattle!C3 -> Pistol Pete, Bullet Ranch | D3: =Cattle!F3 -> Angus cows, 1200 lb, BCS = 5 | K3: Diet Concentration | N3: Daily Amount
B4: Class of cattle: | D4: =Cattle!B7 -> Late Gestation, Dry Cow | J4: Nutrient | K4: As Fed | L4: DM | M4: Required | N4: DM | P4: Required | R4: Status
J5: Diet DM | K5: ='Nutrient and Energy Balance'!E33 -> 0.90808 | L5: - | M5: - | N5: - | P5: - | R5: -
F6: lb or % | J6: TDN | K6: ='Nutrient and Energy Balance'!J36 -> 0.5032922 | L6: ='Nutrient and Energy Balance'!J34 -> 0.5542377324 | M6: - | N6: ='Nutrient and Energy Balance'!J32/0.454 -> 12.582305 | O6: lb | P6: TDN:CP | R6: =N6/N12 -> 6.813721502
B7: Feed Category | D7: Feed or Forage | G7: % As Fed | H7: % DM | J7: ME, Mcal/lb | K7: ='Nutrient and Energy Balance'!K36 -> 0.8260930293 | L7: ='Nutrient and Energy Balance'!K35 -> 0.9097139342 | M7: - | N7: ='Nutrient and Energy Balance'!K32 -> 20.65232573 | O7: Mcal | P7: - | R7: -
B8: Harvested Forages | D8: Prairie Hay, mature | F8: 21.85 | G8: =(F8/$F$18)*100 -> 87.4 | H8: ='Nutrient and Energy Balance'!E22/'Nutrient and Energy Balance'!$E$32*100 -> 87.58479429 | J8: NEm, Mcal/lb | K8: ='Nutrient and Energy Balance'!L36 -> 0.4754558529 | L8: ='Nutrient and Energy Balance'!L35 -> 0.5235836633 | M8: - | N8: ='Nutrient and Energy Balance'!L32 -> 11.88639632 | O8: Mcal | P8: - | R8: -
B9: Commercial Feeds | D9: Range Cube, 25% | F9: 3 | G9: =(F9/$F$18)*100 -> 12 | H9: ='Nutrient and Energy Balance'!E23/'Nutrient and Energy Balance'!$E$32*100 -> 11.76107832 | J9: NEg, Mcal/lb | K9: ='Nutrient and Energy Balance'!M36 -> 0.2447613045 | L9: ='Nutrient and Energy Balance'!M35 -> 0.2695371603 | M9: - | N9: ='Nutrient and Energy Balance'!M32 -> 6.119032612 | O9: Mcal | P9: - | R9: -
B10: Mineral and Vitamins | D10: B-350 RCRC Mineral | F10: 0.15 | G10: 0.6 | H10: ='Nutrient and Energy Balance'!E24/'Nutrient and Energy Balance'!$E$32*100 -> 0.6541273897 | J10: NDF | K10: ='Nutrient and Energy Balance'!Z36 -> 0.6126382 | L10: ='Nutrient and Energy Balance'!Z34 -> 0.6746522333 | M10: - | N10: ='Nutrient and Energy Balance'!Z32*0.454 -> 3.156863381 | O10: lb | P10: - | R10: -
G11: 0 | H11: ='Nutrient and Energy Balance'!E25/'Nutrient and Energy Balance'!$E$32*100 -> 0 | J11: peNDF | K11: ='Nutrient and Energy Balance'!AA36 -> 0.5902102 | L11: ='Nutrient and Energy Balance'!AA34 -> 0.6499539688 | M11: 7 - 20 Min | N11: ='Nutrient and Energy Balance'!AA32/0.454 -> 14.755255 | O11: lb | P11: =IF(V11>=7,7,V11) -> 7 | Q11: pH | R11: =IF(P11>=6,"ADEQUATE",W11) -> ADEQUATE | V11: =5.46+0.038*(L11*100) -> 7.929825081 | W11: CAUTION
G12: 0 | H12: ='Nutrient and Energy Balance'!E26/'Nutrient and Energy Balance'!$E$32*100 -> 0 | J12: Crude Protein | K12: ='Nutrient and Energy Balance'!I36 -> 0.07386451 | L12: ='Nutrient and Energy Balance'!I34 -> 0.08134141265 | M12: - | N12: ='Nutrient and Energy Balance'!H32 -> 1.84661275 | O12: lb | P12: ='Nutrient and Energy Balance'!H33 -> 1.845280222 | Q12: lb | R12: =IF(N12>P12*0.98,"ADEQUATE","DEFICIENT") -> ADEQUATE | T12: Protein | U12: Low | V12: High | W12: Toxic | X12: DEFICIENT | Y12: EXCESSIVE
G13: 0 | H13: ='Nutrient and Energy Balance'!E27/'Nutrient and Energy Balance'!$E$32*100 -> 0 | J13: Fat | K13: ='Nutrient and Energy Balance'!AB36 -> 0.015989366 | L13: ='Nutrient and Energy Balance'!AB34 -> 0.01760788257 | M13: - | N13: ='Nutrient and Energy Balance'!AB32/0.454 -> 0.39973415 | O13: lb | P13: - | R13: =IF(L13*100>=7, Y14, "ADEQUATE") -> ADEQUATE
G14: 0 | H14: ='Nutrient and Energy Balance'!E28/'Nutrient and Energy Balance'!$E$32*100 -> 0 | J14: Calcium | K14: ='Nutrient and Energy Balance'!N36 -> 0.00591136 | L14: ='Nutrient and Energy Balance'!N34 -> 0.006509734825 | M14: ='Nutrient and Energy Balance'!N35 -> 0.00263419963 | N14: ='Nutrient and Energy Balance'!N32 -> 67.093936 | O14: g | P14: ='Nutrient and Energy Balance'!N33 -> 27.1499264 | Q14: g | R14: =IF(N14/N15<1.25,X14,IF(N14>=P14,"ADEQUATE","DEFICIENT")) -> ADEQUATE | T14: Calcium | U14: =P14 -> 27.1499264 | V14: =P14*2 -> 54.2998528 | W14: =F22*0.454*1000*0.02 -> 206.13416 | X14: DEFICIENT | Y14: EXCESSIVE | Z14: TOXIC
G15: 0 | H15: ='Nutrient and Energy Balance'!E29/'Nutrient and Energy Balance'!$E$32*100 -> 0 | J15: Phosphorus | K15: ='Nutrient and Energy Balance'!O36 -> 0.00266481 | L15: ='Nutrient and Energy Balance'!O34 -> 0.002934554224 | M15: ='Nutrient and Energy Balance'!O35 -> 0.00124929133 | N15: ='Nutrient and Energy Balance'!O32 -> 30.2455935 | O15: g | P15: ='Nutrient and Energy Balance'!O33 -> 12.87608094 | Q15: g | R15: =IF(N15>P15*2,Y15,IF(N15>=P15,"ADEQUATE","DEFICIENT")) -> EXCESSIVE | T15: Phosphorus | U15: 12.87608094 | V15: =P15*2 -> 25.75216188 | W15: =F22*0.454*1000*0.007 -> 72.146956 | X15: DEFICIENT | Y15: EXCESSIVE | Z15: TOXIC
G16: 0 | H16: ='Nutrient and Energy Balance'!E30/'Nutrient and Energy Balance'!$E$32*100 -> 0 | J16: Sodium | K16: ='Nutrient and Energy Balance'!P36 -> 0.001598974 | L16: ='Nutrient and Energy Balance'!P34 -> 0.001760829442 | M16: ='Nutrient and Energy Balance'!P35 -> 0.0007 | N16: ='Nutrient and Energy Balance'!P32 -> 18.1483549 | O16: g | P16: ='Nutrient and Energy Balance'!P33 -> 7.2146956 | Q16: g | R16: =IF(N16>P16*2,Y16,IF(N16>=P16*0.95,"ADEQUATE","DEFICIENT")) -> EXCESSIVE | T16: Sodium | U16: 7.2146956 | V16: =P16*4 -> 28.8587824 | W16: =P16*10 -> 72.146956 | X16: DEFICIENT | Y16: EXCESSIVE | Z16: TOXIC
G17: 0 | H17: ='Nutrient and Energy Balance'!E31/'Nutrient and Energy Balance'!$E$32*100 -> 0 | J17: Potassium | K17: ='Nutrient and Energy Balance'!Q36 -> 0.008792696 | L17: ='Nutrient and Energy Balance'!Q34 -> 0.009682732799 | M17: 0.006 | N17: ='Nutrient and Energy Balance'!Q32 -> 99.7970996 | O17: g | P17: ='Nutrient and Energy Balance'!Q33 -> 61.840248 | Q17: g | R17: =IF(N17>P17*2,Y17,IF(N17>=P17,"ADEQUATE","DEFICIENT")) -> ADEQUATE | T17: Potassium | U17: 61.840248 | V17: =P17*2 -> 123.680496 | W17: 2 | X17: DEFICIENT | Y17: EXCESSIVE | Z17: TOXIC
F18: =SUM(F8:F17) -> 25 | G18: =SUM(G8:G17) -> 100 | H18: =SUM(H8:H17) -> 100 | J18: Magnesium | K18: ='Nutrient and Energy Balance'!R36 -> 0.001654238 | L18: ='Nutrient and Energy Balance'!R34 -> 0.001821687517 | M18: 0.0015 | N18: ='Nutrient and Energy Balance'!R32 -> 18.7756013 | O18: g | P18: ='Nutrient and Energy Balance'!R33 -> 12.3680496 | Q18: g | R18: =IF(N18>P18*2,Y18,IF(N18>=P18,"ADEQUATE","DEFICIENT")) -> ADEQUATE | T18: Magnesium | U18: 12.3680496 | V18: 24.7360992 | W18: 0.4 | X18: DEFICIENT | Y18: EXCESSIVE | Z18: TOXIC
B19: Cost Per Day | C19: ='Nutrient and Energy Balance'!G18 -> 1.2215 | D19: Feed Intake, lb As Fed | F19: 25 | J19: Sulfur | K19: ='Nutrient and Energy Balance'!S36 -> 0.00176935 | L19: ='Nutrient and Energy Balance'!S34 -> 0.001948451678 | M19: ='Nutrient and Energy Balance'!S35 -> 0.0015 | N19: ='Nutrient and Energy Balance'!S32 -> 20.0821225 | O19: g | P19: ='Nutrient and Energy Balance'!S33 -> 15.460062 | Q19: g | R19: =IF(L19>W19,Z19,IF(N19>=P19,"ADEQUATE","DEFICIENT")) -> ADEQUATE | T19: Sulfur | U19: 15.460062 | V19: 30.920124 | W19: 0.0035 | X19: DEFICIENT | Y19: EXCESSIVE | Z19: TOXIC
J20: Cobalt ppm | K20: ='Nutrient and Energy Balance'!T36 -> 1.004361 | L20: ='Nutrient and Energy Balance'!T34 -> 1.106027002 | M20: .15 ppm | N20: ='Nutrient and Energy Balance'!T32 -> 11.39949735 | O20: mg | P20: ='Nutrient and Energy Balance'!T33 -> 1.5460062 | Q20: mg | R20: =IF(N20>P20*2,Y20,IF(N20>=P20,"ADEQUATE","DEFICIENT")) -> EXCESSIVE | T20: Cobalt | U20: 1.5460062 | V20: 3.0920124 | W20: 25 | X20: DEFICIENT | Y20: EXCESSIVE | Z20: TOXIC
B21: Projected ADG, lb | C21: =VLOOKUP(D4, 'Requirement Calculator'!A8:BT79, 68, FALSE) -> 1.217356058 | D21: Feed Intake Ratio | F21: =F22/F23 -> 1.008555472 | J21: Copper ppm | K21: ='Nutrient and Energy Balance'!U36 -> 16.78272 | L21: ='Nutrient and Energy Balance'!U34 -> 18.48154348 | M21: 10 ppm | N21: ='Nutrient and Energy Balance'!U32 -> 190.483872 | O21: mg | P21: ='Nutrient and Energy Balance'!U33 -> 103.06708 | Q21: mg | R21: ADEQUATE | T21: Copper | U21: 103.06708 | V21: 206.13416 | W21: 40 | X21: DEFICIENT | Y21: EXCESSIVE | Z21: TOXIC
B22: Desired ADG, lb | C22: =VLOOKUP(D4, 'Requirement Calculator'!A8:BT79, 69, FALSE) -> 1.177789433 | D22: Feed Intake, lb DM | F22: ='Nutrient and Energy Balance'!E32 -> 22.702 | J22: Iron ppm, mg | K22: ='Nutrient and Energy Balance'!V36 -> 260.78196 | L22: ='Nutrient and Energy Balance'!V34 -> 287.1794996 | M22: 50 ppm | N22: ='Nutrient and Energy Balance'!V32 -> 2959.875246 | O22: mg | P22: ='Nutrient and Energy Balance'!V33 -> 515.3354 | Q22: mg | R22: EXCESSIVE | T22: Iron | U22: 515.3354 | V22: 1030.6708 | W22: 500 | X22: DEFICIENT | Y22: EXCESSIVE | Z22: TOXIC
B23: Days to | C23: =IF('Nutrient and Energy Balance'!R86<0,"lose","gain") -> gain | D23: Predicted Intake, lb DM | F23: =VLOOKUP(Cattle!B7,'Requirement Calculator'!A8:R73, 17,FALSE) -> 22.50942127 | J23: Manganese ppm | K23: ='Nutrient and Energy Balance'!W36 -> 82.1006 | L23: ='Nutrient and Energy Balance'!W34 -> 90.41119725 | M23: 40 ppm | N23: ='Nutrient and Energy Balance'!W32 -> 931.84181 | O23: mg | P23: ='Nutrient and Energy Balance'!W33 -> 412.26832 | Q23: mg | R23: EXCESSIVE | T23: Magnesium | U23: 412.26832 | V23: 824.53664 | W23: 1000 | X23: DEFICIENT | Y23: EXCESSIVE | Z23: TOXIC
B24: one condition score: | C24: =VLOOKUP(D4, 'Requirement Calculator'!A8:BT82,70,FALSE) -> 2068.652609 | D24: DM Intake, % of Body Weight | F24: =F22/((L28+L29)/2)* 100 -> 1.809239986 | J24: Selenium ppm | K24: ='Nutrient and Energy Balance'!X36 -> 0.2716274 | L24: ='Nutrient and Energy Balance'!X34 -> 0.2991227645 | M24: .1 ppm | N24: ='Nutrient and Energy Balance'!X32 -> 3.08297099 | O24: mg | P24: ='Nutrient and Energy Balance'!X33 -> 1.0306708 | Q24: mg | R24: EXCESSIVE | T24: Selenium | U24: 1.0306708 | V24: 2.0613416 | W24: 5 | X24: DEFICIENT | Y24: EXCESSIVE | Z24: TOXIC
J25: Zinc ppm | K25: ='Nutrient and Energy Balance'!Y36 -> 50.16996 | L25: ='Nutrient and Energy Balance'!Y34 -> 55.24839221 | M25: 30 ppm | N25: ='Nutrient and Energy Balance'!Y32 -> 569.429046 | O25: mg | P25: ='Nutrient and Energy Balance'!Y33 -> 309.20124 | Q25: mg | R25: ADEQUATE | T25: Zinc | U25: 309.20124 | V25: 618.40248 | W25: 500 | X25: DEFICIENT | Y25: EXCESSIVE | Z25: TOXIC
B26: DM Feed:Gain, lb | C26: =F22/C21 -> 18.64861136 | D26: Protein Ratio | F26: ='Nutrient and Energy Balance'!I32/'Nutrient and Energy Balance'!I33 -> 1.000722128
B27: Cost per lb Gain | C27: ='Nutrient and Energy Balance'!G18/C21 -> 1.003404051 | D27: Ca:P Ratio | F27: =N14/N15 -> 2.218304495 | L27: Desired Time on Feed | O27: Desired Final Weight
J28: Initial Weight, lb | L28: =VLOOKUP(D4, 'Requirement Calculator'!A8:BN81, 22, FALSE) -> 1200 | P28: =L28 -> 1200
B29: Maternal Tissue ADG, lb | C29: =VLOOKUP(D4, 'Requirement Calculator'!A8:BT93, 65, FALSE) -> 0.03956662402 | D29: Fetal Tissue ADG, lb | E29: =VLOOKUP(D4, 'Requirement Calculator'!A8:BT94, 67, FALSE) -> 1.177789433 | F29: Milk Yield, lb | H29: =VLOOKUP(D4, 'Requirement Calculator'!A24:H58, 8, FALSE)/0.454 ->  | J29: Final Weight, lb | L29: =L28+(L31*C21) -> 1309.562045 | P29: =(C22*L31)+P28 -> 1306.001049
J30: Average Weight, lb | L30: =(L29+L28)/2 -> 1254.781023 | P30: =(P29+P28)/2 -> 1253.000525 | U30: Days to achieve desired final weight
J31: Days on Feed | L31: =Cattle!E7 -> 90 | P31: =IF(U31<1, "-", U31) -> 87.07481132 | U31: =(P29-P28)/C21 -> 87.07481132
B32: Prepared by | C32: =' Summary'!H34 -> 0
B33: Phone | C33: =' Summary'!H37 -> 0 | J33: The latest version of Cowculator is available at: beef.okstate.edu/pages/calculators
B34: Email | C34: =' Summary'!H38 -> 0

Sheet Feed List
B2: Dry Matter Basis | D2: Units and Cost | F2: DM | G2: Protein | I2: Energy | P2: Fiber | R2: Fat | S2: Macromineral | Y2: Trace mineral
D3: Units | E3: Cost | F3: DM | G3: Protein | H3: DIP | I3: TDN | J3: ME | K3: ME | L3: NE m | M3: NE m | N3: NE g | O3: NE g | P3: NDF | Q3: peNDF | R3: FAT | S3: CA | T3: Phos | U3: Na | V3: K | W3: MG | X3: S | Y3: CO | Z3: CU | AA3: FE | AB3: MN | AC3: SE | AD3: ZN
B4: Number | C4: FEED NAME | D4: LB. | E4: $/Unit | F4: % | G4: % | H4: % of CP | I4: % | J4: Mcal/kg | K4: Mcal/lb | L4: Mcal/kg | M4: Mcal/lb | N4: Mcal/kg | O4: Mcal/lb | P4: % | Q4: % of NDF | R4: % | S4: % | T4: % | U4: % | V4: % | W4: % | X4: % | Y4: ppm | Z4: ppm | AA4: ppm | AB4: ppm | AC4: ppm | AD4: ppm
C5: Grazed forages
B6: 1 | C6: Alfalfa, fresh and greenchop | D6: 2000 | E6: 60 | F6: 25 | G6: 23 | H6: 78 | I6: 61 | J6: =(I6/100*4.409)*0.82 -> 2.2053818 | K6: =J6*0.454 -> 1.001243337 | L6: =IF(I6<29,0,((1.37*J6)-(0.138*J6^2)+(0.0105*J6^3))-1.12) -> 1.342807758 | M6: =L6*0.454 -> 0.6096347222 | N6: =IF(I6<38,0,((1.42*J6)-(0.174*J6^2)+(0.0122*J6^3)-1.65)) -> 0.7662180979 | O6: =N6*0.454 -> 0.3478630164 | P6: 36 | Q6: 0.8 | R6: 2 | S6: 1.8 | T6: 0.34 | U6: 0.08 | V6: 2.9 | W6: 0.36 | X6: 0.33 | Y6: 0.4 | Z6: 8.3 | AA6: 198 | AB6: 48 | AC6: 0.3 | AD6: 23
B7: =B6+1 -> 2 | C7: Bermuda, vegetative | D7: 2000 | E7: 40 | F7: 30 | G7: 16 | H7: 85 | I7: 65 | J7: =(I7/100*4.409)*0.82 -> 2.349997 | K7: =J7*0.454 -> 1.066898638 | L7: 1.473660001 | M7: =L7*0.454 -> 0.6690416406 | N7: 0.884412662 | O7: =N7*0.454 -> 0.4015233486 | P7: 64 | Q7: 0.8 | R7: 3 | S7: 0.46 | T7: 0.31 | U7: 0.04 | V7: 1.9 | W7: 0.22 | X7: 0.33 | Y7: 0.1 | Z7: 11 | AA7: 500 | AB7: 77 | AC7: 0.2 | AD7: 41
B8: =B7+1 -> 3 | C8: Bermuda, boot stage | D8: 2000 | E8: 40 | F8: 35 | G8: 13 | H8: 75 | I8: 60 | J8: =(I8/100*4.409)*0.82 -> 2.169228 | K8: =J8*0.454 -> 0.984829512 | L8: 1.30965426 | M8: =L8*0.454 -> 0.5945830341 | N8: 0.7360684548 | O8: =N8*0.454 -> 0.3341750785 | P8: 66 | Q8: 0.9 | R8: 2.7 | S8: 0.59 | T8: 0.28 | U8: 0.04 | V8: 1.9 | W8: 0.21 | X8: 0.3 | Y8: 0.1 | Z8: 12 | AA8: 400 | AB8: 160 | AC8: 0.18 | AD8: 36
B9: 4 | C9: Bermuda, fall, mature | D9: 2000 | E9: 40 | F9: 80 | G9: 8 | H9: 60 | I9: 48 | J9: 1.7353824 | K9: 0.7878636096 | L9: 0.8967547437 | M9: 0.4071266536 | N9: 0.3539925196 | O9: 0.1607126039 | P9: 70 | Q9: 1 | R9: 2.1 | S9: 0.26 | T9: 0.18 | U9: 0.03 | V9: 1.3 | W9: 0.2 | X9: 0.21 | Y9: 0.1 | Z9: 9 | AA9: 300 | AB9: 140 | AC9: 0.15 | AD9: 20
B10: 5 | C10: Bermuda, winter, mature | D10: 2000 | E10: 40 | F10: 90 | G10: 5 | H10: 55 | I10: 44 | J10: 1.5907672 | K10: 0.7222083088 | L10: 0.7524042598 | M10: 0.3415915339 | N10: 0.2176865204 | O10: 0.09882968025 | P10: 72 | Q10: 1 | R10: 1.5 | S10: 0.3 | T10: 0.15 | U10: 0.02 | V10: 1 | W10: 0.1 | X10: 0.21 | Y10: 0.1 | Z10: 7 | AA10: 200 | AB10: 45 | AC10: 0.12 | AD10: 15
B11: 6 | C11: Bermuda, stockpiled, Sep-Oct | D11: 2000 | E11: 45 | F11: 35 | G11: 13 | H11: 70 | I11: 57 | J11: 2.0607666 | K11: 0.9355880364 | L11: 1.209089083 | M11: 0.5489264437 | N11: 0.6441217741 | O11: 0.2924312854 | P11: 66 | Q11: 1 | R11: 2.5 | S11: 0.66 | T11: 0.24 | U11: 0.04 | V11: 0.88 | W11: 0.16 | X11: 0.25 | Y11: 0.1 | Z11: 6 | AA11: 450 | AB11: 151 | AC11: 0.18 | AD11: 27
B12: 7 | C12: Bermuda, stockpiled, Nov-Dec | D12: 2000 | E12: 45 | F12: 85 | G12: 11 | H12: 65 | I12: 54 | J12: 1.9523052 | K12: 0.8863465608 | L12: 1.10680436 | M12: 0.5024891795 | N12: 0.5498558232 | O12: 0.2496345437 | P12: 68 | Q12: 1 | R12: 2.1 | S12: 0.52 | T12: 0.22 | U12: 0.03 | V12: 0.55 | W12: 0.15 | X12: 0.22 | Y12: 0.1 | Z12: 5 | AA12: 300 | AB12: 117 | AC12: 0.16 | AD12: 26
B13: 8 | C13: Bermuda, stockpiled, Jan-Feb | D13: 2000 | E13: 45 | F13: 90 | G13: 7 | H13: 60 | I13: 47 | J13: 1.6992286 | K13: 0.7714497844 | L13: 0.8610013482 | M13: 0.3908946121 | N13: 0.3203579117 | O13: 0.1454424919 | P13: 70 | Q13: 1 | R13: 1.5 | S13: 0.48 | T13: 0.18 | U13: 0.02 | V13: 0.32 | W13: 0.09 | X13: 0.21 | Y13: 0.1 | Z13: 4 | AA13: 250 | AB13: 116 | AC13: 0.14 | AD13: 26
B14: 9 | C14: Fescue, vegetative | D14: 2000 | E14: 40 | F14: 29 | G14: 18 | H14: 80 | I14: 64 | J14: 2.3138432 | K14: 1.050484813 | L14: 1.441205249 | M14: 0.6543071828 | N14: 0.8552177038 | O14: 0.3882688375 | P14: 60 | Q14: 0.8 | R14: 4.5 | S14: 0.5 | T14: 0.4 | U14: 0.03 | V14: 2.5 | W14: 0.19 | X14: 0.24 | Z14: 7 | AA14: 200 | AB14: 100 | AC14: 0.12 | AD14: 36
B15: 10 | C15: Fescue, boot stage | D15: 2000 | E15: 40 | F15: 33 | G15: 12 | H15: 75 | I15: 57 | J15: 2.0607666 | K15: 0.9355880364 | L15: 1.209089083 | M15: 0.5489264437 | N15: 0.6441217741 | O15: 0.2924312854 | P15: 65 | Q15: 0.9 | R15: 3.8 | S15: 0.45 | T15: 0.3 | U15: 0.02 | V15: 1.8 | W15: 0.17 | X15: 0.21 | Z15: 5 | AA15: 180 | AB15: 95 | AC15: 0.1 | AD15: 32
B16: 11 | C16: Fescue, mature | D16: 2000 | E16: 40 | F16: 70 | G16: 8 | H16: 70 | I16: 49 | J16: 1.7715362 | K16: 0.8042774348 | L16: 0.932290284 | M16: 0.4232597889 | N16: 0.3873382982 | O16: 0.1758515874 | P16: 74 | Q16: 1 | R16: 3.2 | S16: 0.38 | T16: 0.2 | U16: 0.02 | V16: 1.4 | W16: 0.15 | X16: 0.18 | Z16: 4 | AA16: 160 | AB16: 80 | AC16: 0.09 | AD16: 26
B17: 12 | C17: Fescue, stockpiled, Jan-Feb | D17: 2000 | E17: 40 | F17: 40 | G17: 13 | H17: 75 | I17: 52 | J17: 1.8799976 | K17: 0.8535189104 | L17: 1.037619546 | M17: 0.4710792739 | N17: 0.4856772501 | O17: 0.2204974716 | P17: 72 | Q17: 1 | R17: 2.7 | S17: 0.45 | T17: 0.3 | U17: 0.02 | V17: 1.8 | W17: 0.13 | X17: 0.21 | Z17: 4 | AA17: 160 | AB17: 80 | AC17: 0.1 | AD17: 32
B18: 13 | C18: Fescue, stockpiled, Nov-Dec | D18: 2000 | E18: 40 | F18: 60 | G18: 11 | H18: 68 | I18: 40 | J18: 1.446152 | K18: 0.656553008 | L18: 0.6043775562 | M18: 0.2743874105 | N18: 0.07653786511 | O18: 0.03474819076 | P18: 75 | Q18: 1 | R18: 2.2 | S18: 0.38 | T18: 0.2 | U18: 0.03 | V18: 1.4 | W18: 0.15 | X18: 0.18 | Z18: 5 | AA18: 180 | AB18: 90 | AC18: 0.11 | AD18: 26
B19: 14 | C19: Native Range, April-June | D19: 2000 | E19: 45 | F19: 30 | G19: 14 | H19: 75 | I19: 70 | J19: 2.530766 | K19: 1.148967764 | L19: 1.633484659 | M19: 0.7416020352 | N19: 1.027006288 | O19: 0.4662608546 | P19: 68 | Q19: 0.9 | R19: 3.2 | S19: 0.33 | T19: 0.17 | U19: 0.02 | V19: 1.6 | X19: 0.15 | Z19: 10 | AA19: 200 | AB19: 58 | AC19: 0.2 | AD19: 28
B20: 15 | C20: Native Range, July-August | D20: 2000 | E20: 45 | F20: 35 | G20: 9 | H20: 70 | I20: 64 | J20: 2.3138432 | K20: 1.050484813 | L20: 1.441205249 | M20: 0.6543071828 | N20: 0.8552177038 | O20: 0.3882688375 | P20: 71 | Q20: 1 | R20: 3 | S20: 0.3 | T20: 0.13 | U20: 0.02 | V20: 1.5 | X20: 0.13 | Z20: 9 | AA20: 190 | AB20: 52 | AC20: 0.21 | AD20: 25 | BQ20: 3 | BR20: Bermuda Pasture Summer | BS20: 0 | BT20: 2000 | BU20: =IF(BS20=0,0,BS20/BT20) -> 0 | BV20: 25 | BW20: 61 | BX20: =IF(BW20=0,0,(((BW20/100)*4.4)*0.82)) -> 2.20088 | BY20: =BX20*0.454 -> 0.99919952 | BZ20: =IF(BW20=0,0,((1.37*BX20)-(0.138*BX20^2)+(0.0105*BX20^3))-1.12) -> 1.338689376 | CA20: =BZ20*0.454 -> 0.6077649765 | CB20: =IF(BW20=0,0,((1.42*BX20)-(0.174*BX20^2)+(0.0122*BX20^3)-1.65)) -> 0.7624772863 | CC20: =CB20*0.454 -> 0.346164688 | CD20: 66.3 | CE20: 45 | CF20: 15.1 | CG20: 90 | CH20: 3 | CI20: 0.45 | CJ20: 0.33 | CK20: 0.04 | CL20: 0.19 | CM20: 0.3 | CN20: 0 | CO20: 9.7 | CP20: 134 | CQ20: 125 | CR20: 0 | CS20: 31.5
B21: 16 | C21: Native Range, Sept Oct | D21: 2000 | E21: 45 | F21: 89 | G21: 7 | H21: 65 | I21: 59 | J21: 2.1330742 | K21: 0.9684156868 | L21: 1.276318633 | M21: 0.5794486595 | N21: 0.7056714927 | O21: 0.3203748577 | P21: 74 | Q21: 1 | R21: 2.5 | S21: 0.25 | T21: 0.1 | U21: 0.01 | V21: 1.1 | X21: 0.11 | Z21: 8 | AA21: 180 | AB21: 48 | AC21: 0.18 | AD21: 23
B22: 17 | C22: Native Range, Nov-Dec | D22: 2000 | E22: 45 | F22: 75 | G22: 5 | H22: 65 | I22: 55 | J22: 1.988459 | K22: 0.902760386 | L22: 1.14109529 | M22: 0.5180572618 | N22: 0.5815412688 | O22: 0.264019736 | P22: 77 | Q22: 1 | R22: 2.2 | S22: 0.22 | T22: 0.08 | U22: 0.01 | V22: 0.8 | X22: 0.1 | Z22: 7 | AA22: 170 | AB22: 42 | AC22: 0.16 | AD22: 22
B23: 18 | C23: Native Range, Jan-March | D23: 2000 | E23: 45 | F23: 85 | G23: 3.5 | H23: 55 | I23: 49 | J23: 1.7715362 | K23: 0.8042774348 | L23: 0.932290284 | M23: 0.4232597889 | N23: 0.3873382982 | O23: 0.1758515874 | P23: 78 | Q23: 1 | R23: 1.7 | S23: 0.2 | T23: 0.05 | U23: 0.01 | V23: 0.6 | X23: 0.09 | Z23: 6 | AA23: 160 | AB23: 40 | AC23: 0.14 | AD23: 20
B24: 19 | C24: Wheat Forage, vegetative | D24: 2000 | E24: 45 | F24: 21 | G24: 22 | H24: 84 | I24: 71 | J24: 2.5669198 | K24: 1.165381589 | L24: 1.664980609 | M24: 0.7559011967 | N24: 1.054872994 | O24: 0.4789123393 | P24: 50 | Q24: 0.8 | R24: 4 | S24: 0.35 | T24: 0.36 | U24: 0.03 | V24: 3.1 | X24: 0.22 | Z24: 5 | AA24: 886 | AB24: 176 | AC24: 0.2 | AD24: 23.5
B25: 20 | C25: Added Feed | D25: 2000 | E25: 0 | I25: 70 | J25: 2.530766 | K25: 1.148967764 | L25: 1.633484659 | M25: 0.7416020352 | N25: 1.027006288 | O25: 0.4662608546 | P25: 0 | Q25: 0 | R25: 0 | S25: 0 | T25: 0 | U25: 0 | V25: 0 | W25: 0 | X25: 0 | Y25: 0 | Z25: 0 | AA25: 0 | AB25: 0 | AC25: 0 | AD25: 0
B26: 21 | C26: Added Feed | D26: 2000 | E26: 0 | I26: 70 | J26: 2.530766 | K26: =J26*0.454 -> 1.148967764 | L26: 1.633484659 | M26: =L26*0.454 -> 0.7416020352 | N26: 1.027006288 | O26: =N26*0.454 -> 0.4662608546
B27: 22 | C27: Added Feed | D27: 2000 | E27: 0 | I27: 70 | J27: 2.530766 | K27: 1.148967764 | L27: 1.633484659 | M27: 0.7416020352 | N27: 1.027006288 | O27: 0.4662608546
B28: 23 | C28: Added Feed | D28: 2000 | E28: 0 | I28: 70 | J28: 2.530766 | K28: 1.148967764 | L28: 1.633484659 | M28: 0.7416020352 | N28: 1.027006288 | O28: 0.4662608546
B29: 24 | C29: Added Feed | D29: 2000 | E29: 0 | I29: 70 | J29: 2.530766 | K29: 1.148967764 | L29: 1.633484659 | M29: 0.7416020352 | N29: 1.027006288 | O29: 0.4662608546 | P29: 0 | Q29: 0 | R29: 0 | S29: 0 | T29: 0 | V29: 0 | W29: 0 | X29: 0 | Y29: 0 | Z29: 0 | AA29: 0 | AB29: 0 | AC29: 0 | AD29: 0
B30: 25 | C30: Added Feed | D30: 2000 | E30: 0 | I30: 70 | J30: 2.530766 | K30: 1.148967764 | L30: 1.633484659 | M30: =L30*0.454 -> 0.7416020352 | N30: 1.027006288 | O30: 0.4662608546 | P30: 0 | Q30: 0 | R30: 0 | S30: 0 | T30: 0 | V30: 0 | W30: 0 | X30: 0 | Y30: 0 | Z30: 0 | AA30: 0 | AB30: 0 | AC30: 0 | AD30: 0
C31: Harvested Forages
B32: =B30+1 -> 26 | C32: Alfalfa Hay,early bloom | D32: 2000 | E32: 180 | F32: 90 | G32: 24 | H32: 88 | I32: 60 | J32: 2.169228 | K32: 0.984829512 | L32: 1.30965426 | M32: 0.5945830341 | N32: 0.7360684548 | O32: 0.3341750785 | P32: 39 | Q32: 0.9 | R32: 2.5 | S32: 1.41 | T32: 0.22 | U32: 0.08 | V32: 2.51 | W32: 0.3 | X32: 0.3 | Y32: 0.4 | Z32: 12.7 | AA32: 150 | AB32: 36 | AC32: 0.55 | AD32: 30
B33: =B32+1 -> 27 | C33: Alfalfa Hay, mid bloom | D33: 2000 | E33: 150 | F33: 90 | G33: 20 | H33: 84 | I33: 58 | J33: 2.0969204 | K33: 0.9520018616 | L33: 1.2427979 | M33: 0.5642302465 | N33: 0.6750237521 | O33: 0.3064607835 | P33: 47 | Q33: 1 | R33: 2.6 | S33: 1.37 | T33: 0.22 | U33: 0.07 | V33: 1.56 | W33: 0.28 | X33: 0.28 | Y33: 0.35 | Z33: 11 | AA33: 140 | AB33: 28 | AC33: 0.5 | AD33: 31
B34: =B33+1 -> 28 | C34: Alfalfa Hay, full bloom | D34: 2000 | E34: 130 | F34: 90 | G34: 16 | H34: 82 | I34: 55 | J34: 1.988459 | K34: 0.902760386 | L34: 1.14109529 | M34: 0.5180572618 | N34: 0.5815412688 | O34: 0.264019736 | P34: 49 | Q34: 1 | R34: 2.3 | S34: 1.19 | T34: 0.24 | U34: 0.06 | V34: 1.56 | W34: 0.26 | X34: 0.27 | Y34: 0.3 | Z34: 9.9 | AA34: 130 | AB34: 28 | AC34: 0.45 | AD34: 26
B35: 29 | C35: Alfalfa Silage | D35: 2000 | E35: 60 | F35: 40 | G35: 21 | H35: 75 | I35: 60 | J35: =(I35/100*4.409)*0.82 -> 2.169228 | K35: =J35*0.454 -> 0.984829512 | L35: 1.30965426 | M35: =L35*0.454 -> 0.5945830341 | N35: 0.7360684548 | O35: =N35*0.454 -> 0.3341750785 | P35: 44 | Q35: 0.7 | R35: 3.8 | S35: 1.4 | T35: 0.33 | U35: 0.07 | V35: 2.8 | W35: 0.28 | X35: 0.25 | Y35: 0.71 | Z35: 11 | AA35: 499 | AB35: 45 | AC35: 0.14 | AD35: 26
B36: 30 | C36: Bermuda Hay, vegetative | D36: 2000 | E36: 90 | F36: 90 | G36: 14 | H36: 80 | I36: 57 | J36: 2.0607666 | K36: 0.9355880364 | L36: 1.209089083 | M36: 0.5489264437 | N36: 0.6441217741 | O36: 0.2924312854 | P36: 69 | Q36: 1 | R36: 2.3 | S36: 0.59 | T36: 0.28 | U36: 0.04 | V36: 1.9 | W36: 0.21 | X36: 0.25 | Y36: 0.58 | Z36: 12 | AA36: 250 | AB36: 170 | AC36: 0.3 | AD36: 36
B37: 31 | C37: Bermuda Hay, early bloom | D37: 2000 | E37: 80 | F37: 92.99 | G37: 11 | H37: 70 | I37: 55 | J37: 1.988459 | K37: 0.902760386 | L37: 1.14109529 | M37: 0.5180572618 | N37: 0.5815412688 | O37: 0.264019736 | P37: 66 | Q37: 1 | R37: 1.86 | S37: 0.49 | T37: 0.2 | U37: 0.03 | V37: 1.65 | W37: 0.2 | X37: 0.23 | Y37: 0.55 | Z37: 10.65 | AA37: 217.79 | AB37: 63.11 | AC37: 0.27 | AD37: 34.84
B38: 32 | C38: Bermuda Hay, full bloom | D38: 2000 | E38: 50 | F38: 91 | G38: 8 | H38: 68 | I38: 52 | J38: 1.8799976 | K38: 0.8535189104 | L38: 1.037619546 | M38: 0.4710792739 | N38: 0.4856772501 | O38: 0.2204974716 | P38: 70 | Q38: 1 | R38: 1.8 | S38: 0.43 | T38: 0.18 | U38: 0.03 | V38: 1.4 | W38: 0.19 | X38: 0.21 | Y38: 0.5 | Z38: 8 | AA38: 200 | AB38: 110 | AC38: 0.12 | AD38: 26
B39: 33 | C39: Brome Hay, early bloom | D39: 2000 | E39: 90 | F39: 88 | G39: 13 | H39: 79 | I39: 57 | J39: =(I39/100*4.409)*0.82 -> 2.0607666 | K39: =J39*0.454 -> 0.9355880364 | L39: 1.209089083 | M39: =L39*0.454 -> 0.5489264437 | N39: 0.6441217741 | O39: =N39*0.454 -> 0.2924312854 | P39: 57 | Q39: 1 | R39: 2.6 | S39: 0.32 | T39: 0.37 | U39: 0.02 | V39: 1.7 | W39: 0.12 | X39: 0.19 | Y39: 0.55 | Z39: 8 | AA39: 200 | AB39: 86 | AC39: 0.12 | AD39: 31
B40: 34 | C40: Corn Silage | D40: 2000 | E40: 50 | F40: 35 | G40: 8.3 | H40: 74 | I40: 70 | J40: 2.530766 | K40: 1.148967764 | L40: 1.633484659 | M40: 0.7416020352 | N40: 1.027006288 | O40: 0.4662608546 | P40: 44 | Q40: 0.8 | R40: 3.3 | S40: 0.24 | T40: 0.24 | U40: 0.03 | V40: 1.1 | W40: 0.17 | X40: 0.1 | Y40: 0.6 | Z40: 6.5 | AA40: 200 | AB40: 31 | AC40: 0.1 | AD40: 27.6
B41: 35 | C41: Cotton Gin Trash | D41: 2000 | E41: 40 | F41: 91 | G41: 10 | H41: 72 | I41: 44 | J41: 1.5907672 | K41: 0.7222083088 | L41: 0.7524042598 | M41: 0.3415915339 | N41: 0.2176865204 | O41: 0.09882968025 | P41: 65 | Q41: 0.9 | R41: 3 | S41: 1.2 | T41: 0.2 | U41: 0.01 | V41: 2.3 | W41: 0.29 | X41: 0.25 | Y41: 0.04 | Z41: 9 | AA41: 750 | AB41: 59 | AC41: 0.49 | AD41: 26
B42: 36 | C42: Fescue Hay, early bloom | D42: 2000 | E42: 70 | F42: 87 | G42: 11 | H42: 72 | I42: 56 | J42: 2.0246128 | K42: 0.9191742112 | L42: 1.175189206 | M42: 0.5335358993 | N42: 0.6129620994 | O42: 0.2782847931 | P42: 68 | Q42: 1 | R42: 3.7 | S42: 0.45 | T42: 0.37 | U42: 0.02 | V42: 2.5 | W42: 0.2 | X42: 0.21 | Y42: 0.5 | Z42: 11 | AA42: 150 | AB42: 200 | AC42: 0.15 | AD42: 34
B43: 37 | C43: Fescue Hay, full bloom | D43: 2000 | E43: 60 | F43: 88 | G43: 9 | H43: 68 | I43: 52 | J43: 1.8799976 | K43: 0.8535189104 | L43: 1.037619546 | M43: 0.4710792739 | N43: 0.4856772501 | O43: 0.2204974716 | P43: 73 | Q43: 1 | R43: 3.4 | S43: 0.4 | T43: 0.26 | U43: 0.02 | V43: 1.7 | W43: 0.18 | X43: 0.17 | Y43: 0.4 | Z43: 7 | AA43: 140 | AB43: 100 | AC43: 0.1 | AD43: 23
B44: 38 | C44: Oat Hay | D44: 2000 | E44: 75 | F44: 90 | G44: 8.5 | H44: 68 | I44: 55 | J44: 1.988459 | K44: 0.902760386 | L44: 1.14109529 | M44: 0.5180572618 | N44: 0.5815412688 | O44: 0.264019736 | P44: 63 | Q44: 1 | R44: 2.6 | S44: 0.32 | T44: 0.25 | U44: 0.02 | V44: 1.49 | W44: 0.29 | X44: 0.23 | Y44: 0.28 | Z44: 8.9 | AA44: 406 | AB44: 99 | AC44: 0.09 | AD44: 45
B45: 39 | C45: Poultry Litter | D45: 2000 | E45: 20 | F45: 79 | G45: 23 | H45: 67 | I45: 50 | J45: 1.80769 | K45: 0.82069126 | L45: 0.9676109464 | M45: 0.4392953697 | N45: 0.4203987067 | O45: 0.1908610128 | P45: 35 | Q45: 0.2 | R45: 2.5 | S45: 4 | T45: 1.9 | U45: 0.1 | V45: 2.4 | W45: 0.62 | X45: 0.8 | Y45: 0.2 | Z45: 280 | AA45: 453 | AB45: 422 | AC45: 0.4 | AD45: 493
B46: 40 | C46: Prairie Hay, vegetative | D46: 2000 | E46: 60 | F46: 90 | G46: 7 | H46: 65 | I46: 56 | J46: 2.0246128 | K46: 0.9191742112 | L46: 1.175189206 | M46: 0.5335358993 | N46: 0.6129620994 | O46: 0.2782847931 | P46: 68.6 | Q46: 1 | R46: 2.2 | S46: 0.37 | T46: 0.08 | U46: 0.01 | V46: 0.96 | W46: 0.18 | X46: 0.11 | Y46: 0.15 | Z46: 6 | AA46: 400 | AB46: 86 | AC46: 0.2 | AD46: 21
B47: 41 | C47: Prairie Hay, mature | D47: 2000 | E47: 55 | F47: 91 | G47: 5.5 | H47: 61 | I47: 53 | J47: 1.9161514 | K47: 0.8699327356 | L47: 1.072313438 | M47: 0.4868303007 | N47: 0.5179023034 | O47: 0.2351276457 | P47: 73 | Q47: 1 | R47: 2 | S47: 0.4 | T47: 0.15 | U47: 0.01 | V47: 1.1 | W47: 0.2 | X47: 0.22 | Y47: 0.15 | Z47: 6 | AA47: 300 | AB47: 80 | AC47: 0.11 | AD47: 18
B48: 42 | C48: Red Clover Hay | D48: 2000 | E48: 100 | F48: 87 | G48: 14.9 | H48: 70 | I48: 57 | J48: =(I48/100*4.409)*0.82 -> 2.0607666 | K48: =J48*0.454 -> 0.9355880364 | L48: 1.209089083 | M48: =L48*0.454 -> 0.5489264437 | N48: 0.6441217741 | O48: =N48*0.454 -> 0.2924312854 | P48: 51 | Q48: 1 | R48: 2.6 | S48: 1.5 | T48: 0.2 | U48: 0.04 | V48: 1.7 | W48: 0.4 | X48: 0.2 | Y48: 0.2 | Z48: 10.9 | AA48: 147 | AB48: 75 | AC48: 0.1 | AD48: 17
B49: 43 | C49: Sorghum Sudan Hay, early bloom | D49: 2000 | E49: 90 | F49: 91 | G49: 9.5 | H49: 69 | I49: 54 | J49: =(I49/100*4.409)*0.82 -> 1.9523052 | K49: =J49*0.454 -> 0.8863465608 | L49: 1.10680436 | M49: =L49*0.454 -> 0.5024891795 | N49: 0.5498558232 | O49: =N49*0.454 -> 0.2496345437 | P49: 65 | Q49: 1 | R49: 1.7 | S49: 0.51 | T49: 0.21 | U49: 0.02 | V49: 2.2 | W49: 0.28 | X49: 0.15 | Y49: 0.07 | Z49: 10.8 | AA49: 519 | AB49: 66 | AC49: 0.25 | AD49: 34.5
B50: 44 | C50: Soybean Hay | D50: 2000 | E50: 90 | F50: 92 | G50: 16 | H50: 64 | I50: 53 | J50: =(I50/100*4.409)*0.82 -> 1.9161514 | K50: =J50*0.454 -> 0.8699327356 | L50: 1.072313438 | M50: =L50*0.454 -> 0.4868303007 | N50: 0.5179023034 | O50: =N50*0.454 -> 0.2351276457 | P50: 53 | Q50: 0.9 | R50: 4 | S50: 1.3 | T50: 0.26 | U50: 0.04 | V50: 1.1 | W50: 0.6 | X50: 0.23 | Y50: 0.2 | Z50: 8.4 | AA50: 500 | AB50: 61 | AC50: 0.1 | AD50: 26
B51: 45 | C51: Sudan Hay, full bloom | D51: 2000 | E51: 70 | F51: 91 | G51: 8 | H51: 58 | I51: 54.4 | J51: =(I51/100*4.409)*0.82 -> 1.96676672 | K51: =J51*0.454 -> 0.8929120909 | L51: 1.120544564 | M51: =L51*0.454 -> 0.5087272323 | N51: 0.5625619766 | O51: =N51*0.454 -> 0.2554031374 | P51: 65.8 | Q51: 1 | R51: 2.6 | S51: 0.46 | T51: 0.21 | U51: 0.02 | V51: 2.1 | W51: 0.3 | X51: 0.131 | Y51: 0.33 | Z51: 8.4 | AA51: 283 | AB51: 41.7 | AC51: 0.151 | AD51: 32
B52: 46 | C52: Sorghum Silage | D52: 2000 | E52: 70 | F52: 32 | G52: 9.7 | H52: 70 | I52: 60 | J52: =(I52/100*4.409)*0.82 -> 2.169228 | K52: =J52*0.454 -> 0.984829512 | L52: 1.30965426 | M52: =L52*0.454 -> 0.5945830341 | N52: 0.7360684548 | O52: =N52*0.454 -> 0.3341750785 | P52: 58 | Q52: 0.8 | R52: 3 | S52: 0.46 | T52: 0.25 | U52: 0.02 | V52: 1.9 | W52: 0.26 | X52: 0.15 | Y52: 0.5 | Z52: 9.8 | AA52: 436 | AB52: 55.7 | AC52: 0.11 | AD52: 69
B53: 47 | C53: Sorghum Sudan Silage | D53: 2000 | E53: 40 | F53: 32 | G53: 11 | H53: 70 | I53: 58 | J53: =(I53/100*4.409)*0.82 -> 2.0969204 | K53: =J53*0.454 -> 0.9520018616 | L53: 1.2427979 | M53: =L53*0.454 -> 0.5642302465 | N53: 0.6750237521 | O53: =N53*0.454 -> 0.3064607835 | P53: 61 | Q53: 0.9 | R53: 3.3 | S53: 0.55 | T53: 0.29 | U53: 0.02 | V53: 2.5 | W53: 0.28 | X53: 0.17 | Y53: 0.45 | Z53: 11 | AA53: 634 | AB53: 69 | AC53: 0.23 | AD53: 34
B54: 48 | C54: Triticale Hay | D54: 2000 | E54: 80 | F54: 90 | G54: 10.5 | H54: 70 | I54: 57 | J54: =(I54/100*4.409)*0.82 -> 2.0607666 | K54: =J54*0.454 -> 0.9355880364 | L54: 1.209089083 | M54: =L54*0.454 -> 0.5489264437 | N54: 0.6441217741 | O54: =N54*0.454 -> 0.2924312854 | P54: 64 | Q54: 1 | R54: 2.1 | S54: 0.3 | T54: 0.25 | U54: 0.03 | V54: 2.2 | W54: 0.15 | X54: 0.17 | Y54: 0.17 | Z54: 6.8 | AA54: 260 | AB54: 41 | AC54: 0.07 | AD54: 25
B55: 49 | C55: Triticale Silage | D55: 2000 | E55: 45 | F55: 34 | G55: 14.4 | H55: 82 | I55: 61 | J55: =(I55/100*4.409)*0.82 -> 2.2053818 | K55: =J55*0.454 -> 1.001243337 | L55: 1.342807758 | M55: =L55*0.454 -> 0.6096347222 | N55: 0.7662180979 | O55: =N55*0.454 -> 0.3478630164 | P55: 58.5 | Q55: 0.8 | R55: 3.7 | S55: 0.43 | T55: 0.35 | U55: 0.03 | V55: 3 | W55: 0.17 | X55: 0.2 | Y55: 1.5 | Z55: 10.6 | AA55: 631 | AB55: 52 | AC55: 0.25 | AD55: 36.5
B56: 50 | C56: Wheat Hay | D56: 2000 | E56: 80 | F56: 89 | G56: 9 | H56: 70 | I56: 57 | J56: 2.0607666 | K56: 0.9355880364 | L56: 1.209089083 | M56: 0.5489264437 | N56: 0.6441217741 | O56: 0.2924312854 | P56: 62 | Q56: 1 | R56: 2.1 | S56: 0.21 | T56: 0.2 | U56: 0.03 | V56: 1.3 | W56: 0.13 | X56: 0.19 | Y56: 0.35 | Z56: 8 | AA56: 292 | AB56: 61 | AC56: 0.31 | AD56: 23
B57: 51 | C57: Wheat Silage | D57: 2000 | E57: 45 | F57: 34 | G57: 12.7 | H57: 81 | I57: 60 | J57: =(I57/100*4.409)*0.82 -> 2.169228 | K57: =J57*0.454 -> 0.984829512 | L57: 1.30965426 | M57: =L57*0.454 -> 0.5945830341 | N57: 0.7360684548 | O57: =N57*0.454 -> 0.3341750785 | P57: 57 | Q57: 0.8 | R57: 3.5 | S57: 0.39 | T57: 0.33 | U57: 0.03 | V57: 2.4 | W57: 0.16 | X57: 0.18 | Y57: 0.57 | Z57: 10 | AA57: 565 | AB57: 57 | AC57: 0.3 | AD57: 30
B58: 52 | C58: Wheat Straw | D58: 2000 | E58: 40 | F58: 91 | G58: 4 | H58: 40 | I58: 44 | J58: 1.5907672 | K58: 0.7222083088 | L58: 0.7524042598 | M58: 0.3415915339 | N58: 0.2176865204 | O58: 0.09882968025 | P58: 72 | Q58: 1 | R58: 1.8 | S58: 0.16 | T58: 0.05 | U58: 0.01 | V58: 1.3 | W58: 0.12 | X58: 0.17 | Y58: 0.15 | Z58: 5 | AA58: 130 | AB58: 35 | AC58: 0.1 | AD58: 6
B59: 53 | C59: Wheat Straw, Ammoniated | D59: 2000 | E59: 70 | F59: 85 | G59: 9 | H59: 75 | I59: 50 | J59: 1.80769 | K59: 0.82069126 | L59: 0.9676109464 | M59: 0.4392953697 | N59: 0.4203987067 | O59: 0.1908610128 | P59: 76 | Q59: 1 | R59: 1.5 | S59: 0.15 | T59: 0.05 | U59: 0.01 | V59: 1.3 | W59: 0.12 | X59: 0.16 | Y59: 0.15 | Z59: 5 | AA59: 120 | AB59: 35 | AC59: 0.1 | AD59: 6
B60: 54 | C60: Added Feed | D60: 2000 | E60: 0 | I60: 70 | J60: 2.530766 | K60: 1.148967764 | L60: 1.633484659 | M60: 0.7416020352 | N60: 1.027006288 | O60: 0.4662608546
B61: 55 | C61: Added Feed | D61: 2000 | E61: 0 | I61: 70 | J61: 2.530766 | K61: 1.148967764 | L61: 1.633484659 | M61: 0.7416020352 | N61: 1.027006288 | O61: 0.4662608546
B62: 56 | C62: Added Feed | D62: 2000 | E62: 0 | I62: 70 | J62: =(I62/100*4.409)*0.82 -> 2.530766 | K62: =J62*0.454 -> 1.148967764 | L62: 1.633484659 | M62: =L62*0.454 -> 0.7416020352 | N62: 1.027006288 | O62: =N62*0.454 -> 0.4662608546
B63: 57 | C63: Added Feed | D63: 2000 | E63: 0 | I63: 70 | J63: 2.530766 | K63: 1.148967764 | L63: 1.633484659 | M63: 0.7416020352 | N63: 1.027006288 | O63: 0.4662608546
B64: 58 | C64: Added Feed | D64: 2000 | E64: 0 | I64: 70 | J64: 2.530766 | K64: 1.148967764 | L64: 1.633484659 | M64: 0.7416020352 | N64: 1.027006288 | O64: 0.4662608546
B65: 59 | C65: Added Feed | D65: 2000 | E65: 0 | F65: 0 | G65: 0 | H65: 0 | I65: 70 | J65: 2.530766 | K65: 1.148967764 | L65: 1.633484659 | M65: 0.7416020352 | N65: 1.027006288 | O65: 0.4662608546 | P65: 0 | Q65: 0 | R65: 0 | S65: 0 | T65: 0 | V65: 0 | W65: 0 | X65: 0 | Y65: 0.065 | Z65: 0 | AA65: 0 | AB65: 0 | AC65: 0 | AD65: 0
C66: Concentrates
B67: =B65+1 -> 60 | C67: Barley Malt pellets with hulls | D67: 2000 | E67: 160 | F67: 90 | G67: 18 | H67: 64 | I67: 68 | J67: 2.4584584 | K67: 1.116140114 | L67: 1.570032709 | M67: 0.7127948498 | N67: 0.9706312338 | O67: 0.4406665801 | P67: 50 | Q67: 0.5 | R67: 1.9 | S67: 0.21 | T67: 0.59 | U67: 0.04 | V67: 1.2 | X67: 0.32 | Z67: 10 | AB67: 44 | AD67: 61
B68: =B67+1 -> 61 | C68: Corn Gluten Feed | D68: 2000 | E68: 180 | F68: 89 | G68: 22.6 | H68: 64 | I68: 77 | J68: 2.7838426 | K68: 1.26386454 | L68: 1.850923524 | M68: 0.8403192799 | N68: 1.217799671 | O68: 0.5528810506 | P68: 35 | Q68: 0.3 | R68: 3.3 | S68: 0.14 | T68: 1.07 | U68: 0.04 | V68: 1.5 | W68: 0.43 | X68: 0.53 | Y68: 0.11 | Z68: 6.3 | AA68: 133 | AB68: 22 | AC68: 0.26 | AD68: 67
B69: =B68+1 -> 62 | C69: Corn Grain, rolled | D69: 2000 | E69: 190 | F69: 87 | G69: 9 | H69: 42 | I69: 87.6 | J69: 3.16707288 | K69: 1.437851088 | L69: 2.168253399 | M69: 0.9843870433 | N69: 1.489518068 | O69: 0.6762412029 | P69: 9.7 | Q69: 0.2 | R69: 3.8 | S69: 0.03 | T69: 0.29 | U69: 0.04 | V69: 0.37 | W69: 0.11 | X69: 0.11 | Y69: 0.14 | Z69: 3.1 | AA69: 50 | AB69: 7.6 | AC69: 0.61 | AD69: 20
B70: 63 | C70: Corn Grain, steam flaked | D70: 2000 | E70: 220 | F70: 81 | G70: 8.5 | H70: 30 | I70: 95 | J70: 3.434611 | K70: 1.559313394 | L70: =IF(I70<29,0,((1.37*J70)-(0.138*J70^2)+(0.0105*J70^3))-1.12) -> 2.382916777 | M70: 1.081844217 | N70: =IF(I70<38,0,((1.42*J70)-(0.174*J70^2)+(0.0122*J70^3)-1.65)) -> 1.668849597 | O70: 0.7576577172 | P70: 9 | Q70: 0.1 | R70: 3.2 | S70: 0.02 | T70: 0.25 | U70: 0.04 | V70: 0.33 | W70: 0.09 | X70: 0.12 | Y70: 0.04 | Z70: 2.7 | AA70: 34 | AB70: 7 | AC70: 0.5 | AD70: 18
B71: 64 | C71: Corn Grain, whole | D71: 2000 | E71: 180 | F71: 82 | G71: 9 | H71: 0 | I71: 92 | J71: 3.3261496 | K71: 1.510071918 | L71: 2.296473529 | M71: 1.042598982 | N71: 1.597060008 | O71: 0.7250652438 | P71: 0 | Q71: 0.6 | R71: 4.2 | S71: 0.29 | T71: 0.4 | U71: 0.04 | V71: 0.13 | W71: 0.14 | X71: 0.07 | Y71: 4 | Z71: 26 | AA71: 6 | AB71: 0.15 | AC71: 16 | AD71: 0
B72: 65 | C72: Cotton Seed Hulls | D72: 2000 | E72: 70 | F72: 91.4 | G72: 6.7 | H72: 30 | I72: 39 | J72: 1.4099982 | K72: 0.6401391828 | L72: 0.5667741423 | M72: 0.2573154606 | N72: 0.04046809245 | O72: 0.01837251397 | P72: 81 | Q72: 0.7 | R72: 4.2 | S72: 0.22 | T72: 0.16 | U72: 0.04 | V72: 1.2 | W72: 0.22 | X72: 0.11 | Y72: 0.02 | Z72: 5.5 | AA72: 101 | AB72: 21 | AC72: 0.09 | AD72: 17.7
B73: 66 | C73: Cottonseed meal, 41% | D73: 2000 | E73: 280 | F73: 90 | G73: 46 | H73: 75 | I73: 72 | J73: 2.6030736 | K73: 1.181795414 | L73: 1.696327179 | M73: 0.7701325394 | N73: 1.082530432 | O73: 0.4914688162 | P73: 33 | Q73: 0.1 | R73: 4 | S73: 0.22 | T73: 1.2 | U73: 0.04 | V73: 1.7 | W73: 0.67 | X73: 0.44 | Y73: 0.3 | Z73: 13.5 | AA73: 203 | AB73: 26.2 | AC73: 1.3 | AD73: 66
B74: 67 | C74: Cottonseed, whole | D74: 2000 | E74: 300 | F74: 92.6 | G74: 23 | H74: 56 | I74: 93 | J74: 3.3623034 | K74: 1.526485744 | L74: 2.325370835 | M74: 1.055718359 | N74: 1.621121884 | O74: 0.7359893356 | P74: 48 | Q74: 0.7 | R74: 19.4 | S74: 0.22 | T74: 0.53 | U74: 0.04 | V74: 1.12 | W74: 0.38 | X74: 0.26 | Y74: 0.03 | Z74: 8.9 | AA74: 150 | AB74: 21.7 | AC74: 1 | AD74: 29.4
B75: 68 | C75: Distillers Grains with Solubles, corn | D75: 2000 | E75: 190 | F75: 92 | G75: 31 | H75: 29 | I75: 80 | J75: 2.892304 | K75: 1.313106016 | L75: 1.942079305 | M75: 0.8817040044 | N75: 1.296671383 | O75: 0.5886888081 | P75: 34.3 | Q75: 0.2 | R75: 11 | S75: 0.08 | T75: 0.99 | U75: 0.04 | V75: 1.24 | W75: 0.35 | X75: 0.66 | Y75: 0.38 | Z75: 7.4 | AA75: 109 | AB75: 28 | AC75: 0.68 | AD75: 67
B76: 69 | C76: Distillers Grains with Solubles, sorghum | D76: 2000 | E76: 180 | F76: 91 | G76: 33 | H76: 30 | I76: 78 | J76: 2.8199964 | K76: 1.280278366 | L76: 1.881436332 | M76: 0.8541720948 | N76: 1.244274143 | O76: 0.5649004608 | P76: 38 | Q76: 0.2 | R76: 10 | S76: 0.1 | T76: 0.65 | U76: 0.04 | V76: 1 | W76: 0.3 | X76: 0.4 | Y76: 0.1 | Z76: 7.4 | AA76: 109 | AB76: 28 | AC76: 0.68 | AD76: 68
B77: 70 | C77: Grain Screenings | D77: 2000 | E77: 130 | F77: 90 | G77: 12.9 | H77: 54 | I77: 76 | J77: 2.7476888 | K77: 1.247450715 | L77: 1.820279199 | M77: 0.8264067562 | N77: 1.191136686 | O77: 0.5407760555 | P77: 30 | Q77: 0.5 | R77: 5.5 | S77: 0.38 | T77: 0.4 | U77: 0.04 | V77: 0.74 | W77: 0.21 | X77: 0.17 | Y77: 1.3 | Z77: 12.6 | AA77: 476 | AB77: 61 | AC77: 0.52 | AD77: 57
B78: 71 | C78: Milo, ground | D78: 2000 | E78: 195 | F78: 89 | G78: 11.6 | H78: 28.6 | I78: 86 | J78: 3.1092268 | K78: 1.411588967 | L78: 2.12116143 | M78: 0.9630072891 | N78: 1.449698545 | O78: 0.6581631395 | P78: 7.2 | Q78: 0.2 | R78: 3.5 | S78: 0.06 | T78: 0.34 | U78: 0.04 | V78: 0.39 | W78: 0.15 | X78: 0.14 | Y78: 0.65 | Z78: 4.95 | AA78: 43 | AB78: 20 | AC78: 0.46 | AD78: 19.9
B79: 72 | C79: Milo, steam flaked | D79: 2000 | E79: 210 | F79: 82 | G79: 11 | H79: 38 | I79: 90 | J79: 3.253842 | K79: 1.477244268 | L79: 2.238415359 | M79: 1.016240573 | N79: 1.54852292 | O79: 0.7030294058 | P79: 7.2 | Q79: 0.1 | R79: 3.1 | S79: 0.04 | T79: 0.28 | U79: 0.04 | V79: 0.4 | W79: 0.14 | X79: 0.14 | Y79: 0.5 | Z79: 5 | AA79: 44 | AB79: 15 | AC79: 0.3 | AD79: 18
B80: 73 | C80: Mung Beans | D80: 2000 | E80: 210 | F80: 90 | G80: 23 | H80: 25 | I80: 79 | J80: 2.8561502 | K80: 1.296692191 | L80: 1.9118206 | M80: 0.8679665524 | N80: 1.27056356 | O80: 0.5768358564 | Q80: 0.2 | S80: 1.19 | T80: 0.68 | U80: 0.04 | V80: 1.4 | X80: 0.25
B81: 74 | C81: Oats | D81: 2000 | E81: 300 | F81: 89 | G81: 12.5 | H81: 44 | I81: 83 | J81: 3.0007654 | K81: 1.362347492 | L81: 2.032131812 | M81: 0.9225878427 | N81: 1.373939876 | O81: 0.6237687035 | P81: 27 | Q81: 0.6 | R81: 6.2 | S81: 0.1 | T81: 0.38 | U81: 0.04 | V81: 0.5 | W81: 0.14 | X81: 0.17 | Y81: 0.52 | Z81: 6.2 | AA81: 105 | AB81: 50 | AC81: 0.28 | AD81: 31
B82: 75 | C82: Peanut Hulls | D82: 2000 | E82: 40 | F82: 93 | G82: 9.5 | H82: 47 | I82: 43 | J82: 1.5546134 | K82: 0.7057944836 | L82: 0.7157496724 | M82: 0.3249503513 | N82: 0.1828620035 | O82: 0.08301934959 | P82: 68.5 | Q82: 0.65 | R82: 4.5 | S82: 0.29 | T82: 0.1 | U82: 0.04 | V82: 0.7 | W82: 0.14 | X82: 0.1 | Y82: 3.1 | Z82: 12.5 | AA82: 634 | AB82: 50 | AC82: 0.4 | AD82: 16
B83: 76 | C83: Peanut Meal, solvent | D83: 2000 | E83: 300 | F83: 91 | G83: 50 | H83: 73 | I83: 77 | J83: 2.7838426 | K83: 1.26386454 | L83: 1.850923524 | M83: 0.8403192799 | N83: 1.217799671 | O83: 0.5528810506 | P83: 27 | Q83: 0.2 | R83: 7.8 | S83: 0.24 | T83: 0.58 | U83: 0.04 | V83: 1 | W83: 0.32 | X83: 0.27 | Y83: 1.19 | Z83: 14 | AA83: 463 | AB83: 32 | AC83: 0.05 | AD83: 53
B84: 77 | C84: Milo, rolled or grnd | D84: 2000 | E84: 230 | F84: 88 | G84: 10 | H84: 60 | I84: 85 | J84: 3.073073 | K84: 1.395175142 | L84: 2.091593583 | M84: 0.9495834867 | N84: 1.424607648 | O84: 0.6467718722 | P84: 0 | Q84: 0.2 | R84: 2.1 | S84: 0.36 | T84: 0.4 | U84: 0.04 | V84: 0.18 | W84: 0.09 | X84: 0.3 | Y84: 6 | Z84: 5 | AA84: 55 | AB84: 0.22 | AC84: 32 | AD84: 0
B85: 78 | C85: Rice Bran, full fat | D85: 2000 | E85: 200 | F85: 91 | G85: 14 | H85: 50 | I85: 83 | J85: 3.0007654 | K85: 1.362347492 | L85: 2.032131812 | M85: 0.9225878427 | N85: 1.373939876 | O85: 0.6237687035 | P85: 23 | Q85: 0.3 | R85: 17 | S85: 0.66 | T85: 1.7 | U85: 0.04 | V85: 1.8 | W85: 0.73 | X85: 0.16 | Y85: 1 | Z85: 9.5 | AA85: 222 | AB85: 187 | AC85: 0.08 | AD85: 66.7
B86: 79 | C86: Rice Grain | D86: 2000 | E86: 160 | F86: 88.81 | G86: 8 | H86: 45 | I86: 83 | J86: 3.0007654 | K86: 1.362347492 | L86: 2.032131812 | M86: 0.9225878427 | N86: 1.373939876 | O86: 0.6237687035 | P86: 8.17 | Q86: 0.6 | R86: 1.84 | S86: 0.03 | T86: 0.25 | U86: 0.04 | V86: 0.27 | W86: 0.1 | X86: 0.1 | Y86: 0 | Z86: 5.46 | AA86: 144.14 | AB86: 66.33 | AC86: 0 | AD86: 23.85
B87: 80 | C87: Rice Hulls | D87: 2000 | E87: 30 | F87: 92 | G87: 3.3 | H87: 45 | I87: 31.5 | J87: 1.1388447 | K87: =J87*0.454 -> 0.5170354938 | L87: 0.2767447233 | M87: =L87*0.454 -> 0.1256421044 | N87: 0 | O87: 0 | P87: 53.8 | Q87: 0.6 | R87: 4.3 | S87: 0.18 | T87: 0.31 | U87: 0.04 | V87: 0.54 | W87: 0.19 | X87: 0.09 | Z87: 3.4 | AB87: 320 | AC87: 0.15 | AD87: 24
B88: 81 | C88: Rice Mill Byproduct | D88: 2000 | E88: 100 | F88: 91 | G88: 8.3 | H88: 38 | I88: 76.5 | J88: =(I88/100*4.409)*0.82 -> 2.7657657 | K88: 1.255657628 | L88: 1.835617987 | M88: 0.8333705661 | N88: 1.204491959 | O88: =N88*0.454 -> 0.5468393493 | P88: 24 | Q88: 0.5 | R88: 2.9 | S88: 0.04 | T88: 0.49 | U88: 0.04 | V88: 0.52 | W88: 0.19 | X88: 0.1 | Y88: 0.01 | Z88: 6.4 | AA88: 247 | AB88: 83.9 | AC88: 0.01 | AD88: 25.6
B89: 82 | C89: Soybean Hulls | D89: 2000 | E89: 180 | F89: 90 | G89: 12.4 | H89: 47 | I89: 68 | J89: 2.4584584 | K89: 1.116140114 | L89: 1.570032709 | M89: 0.7127948498 | N89: 0.9706312338 | O89: 0.4406665801 | P89: 65 | Q89: 0.4 | R89: 2.28 | S89: 0.6 | T89: 0.15 | U89: 0.04 | V89: 1.34 | W89: 0.27 | X89: 0.12 | Y89: 0.6 | Z89: 7.55 | AA89: 437 | AB89: 20 | AC89: 0.14 | AD89: 44.8
B90: 83 | C90: Soybean meal, 48% | D90: 2000 | E90: 330 | F90: 89 | G90: 52.8 | H90: 70.4 | I90: 79.5 | J90: 2.8742271 | K90: 1.304899103 | L90: 1.926965462 | M90: 0.8748423196 | N90: 1.283639955 | O90: 0.5827725396 | P90: 11.3 | Q90: 0.2 | R90: 1.9 | S90: 0.42 | T90: 0.75 | U90: 0.04 | V90: 2.36 | W90: 0.32 | X90: 0.41 | Y90: 0.75 | Z90: 15.9 | AA90: 202 | AB90: 42 | AC90: 0.53 | AD90: 51.7
B91: 84 | C91: Soybeans, Whole | D91: 2000 | E91: 240 | F91: 88 | G91: 40 | H91: 71 | I91: 91 | J91: 3.2899958 | K91: 1.493658093 | L91: 2.267489362 | M91: 1.02944017 | N91: 1.572861507 | O91: 0.714079124 | P91: 18 | Q91: 0.3 | R91: 20.6 | S91: 0.27 | T91: 0.64 | U91: 0.04 | V91: 2 | W91: 0.25 | X91: 0.34 | Y91: 1.01 | Z91: 15 | AA91: 139 | AB91: 31.6 | AD91: 47.2
B92: 85 | C92: Sunflower Seed Hulls | D92: 2000 | E92: 250 | F92: 90 | G92: 4 | H92: 35 | I92: 40 | J92: 1.446152 | K92: 0.656553008 | L92: 0.6043775562 | M92: 0.2743874105 | N92: 0.07653786511 | O92: 0.03474819076 | P92: 73 | Q92: 0.5 | R92: 2.2 | S92: 0 | T92: 0.11 | U92: 0.04 | V92: 0.2 | X92: 0.19 | AD92: 200
B93: 86 | C93: Sunflower Seed Meal with hulls | D93: 2000 | E93: 280 | F93: 92 | G93: 32 | H93: 71 | I93: 66 | J93: 2.3861508 | K93: 1.083312463 | L93: 1.505947511 | M93: 0.68370017 | N93: 0.913377597 | O93: 0.414673429 | P93: 40 | Q93: 0.5 | R93: 11.5 | S93: 0.42 | T93: 1.04 | U93: 0.04 | V93: 1.27 | W93: 0.55 | X93: 0.39 | Y93: 0.62 | Z93: 29 | AA93: 220 | AB93: 44 | AC93: 1.04 | AD93: 87.4
B94: 87 | C94: Wheat Grain, rolled | D94: 2000 | E94: 220 | F94: 89 | G94: 13.8 | H94: 64 | I94: 86.8 | J94: 3.13814984 | K94: 1.424720027 | L94: 2.144740164 | M94: 0.9737120343 | N94: 1.469657783 | O94: 0.6672246334 | P94: 12.4 | Q94: 0.3 | R94: 1.9 | S94: 0.08 | T94: 0.36 | U94: 0.04 | V94: 0.43 | W94: 0.13 | X94: 0.15 | Y94: 0.02 | Z94: 5.4 | AA94: 72 | AB94: 43 | AC94: 0.05 | AD94: 29.3
B95: 88 | C95: Wheat Bran | D95: 2000 | E95: 240 | F95: 90 | G95: 17.5 | H95: 64 | I95: 71.9 | J95: 2.59945822 | K95: 1.180154032 | L95: 1.69319916 | M95: 0.7687124185 | N95: 1.079774007 | O95: 0.4902173991 | P95: 40 | Q95: 0.4 | R95: 4.3 | S95: 0.13 | T95: 1.04 | U95: 0.04 | V95: 1.2 | W95: 0.42 | X95: 0.24 | Z95: 12.4 | AA95: 165 | AB95: 131 | AD95: 79
B96: 89 | C96: Wheat Middlings | D96: 2000 | E96: 240 | F96: 89 | G96: 18.5 | H96: 68 | I96: 72.9 | J96: 2.63561202 | K96: 1.196567857 | L96: 1.724413833 | M96: 0.78288388 | N96: 1.107246061 | O96: 0.5026897117 | P96: 38.3 | Q96: 0.3 | R96: 4.1 | S96: 0.12 | T96: 1.1 | U96: 0.04 | V96: 1.15 | W96: 0.43 | X96: 0.2 | Y96: 0.56 | Z96: 12.8 | AA96: 144 | AB96: 136.6 | AC96: 0.39 | AD96: 87.9
B97: 90 | C97: Wheat Mill Run | D97: 2000 | E97: 225 | F97: 90 | G97: 17 | H97: 72 | I97: 75 | J97: 2.711535 | K97: 1.23103689 | L97: 1.789500379 | M97: 0.8124331718 | N97: 1.164281729 | O97: 0.528583905 | P97: 37 | Q97: 0.3 | R97: 4.4 | S97: 0.12 | T97: 1 | U97: 0.04 | V97: 1.2 | X97: 0.22 | Z97: 21 | AD97: 90
B98: 91 | C98: Wheat Shorts | D98: 2000 | E98: 215 | F98: 89 | G98: 20 | H98: 75 | I98: 80 | J98: 2.892304 | K98: 1.313106016 | L98: 1.942079305 | M98: 0.8817040044 | N98: 1.296671383 | O98: 0.5886888081 | P98: 30 | Q98: 0.2 | R98: 5.4 | S98: 0.1 | T98: 0.95 | U98: 0.04 | V98: 1.1 | X98: 0.2 | Z98: 13 | AD98: 118
B99: 92 | C99: Finishing Ration | D99: 2000 | E99: 170 | F99: 75 | G99: 13.5 | H99: 65 | I99: 88.3 | J99: 3.19238054 | K99: 1.449340765 | L99: 2.18877495 | M99: 0.9937038271 | N99: 1.506816038 | O99: 0.6840944813 | P99: 12 | Q99: 0.6 | R99: 5 | S99: 0.6 | T99: 0.3 | U99: 0.08 | V99: 0.6 | W99: 0.2 | X99: 0.25 | Y99: 0.2 | Z99: 12 | AA99: 100 | AB99: 40 | AC99: 0.2 | AD99: 50
B100: 93 | C100: Added Feed | D100: 2000 | E100: 0 | I100: 70 | J100: =(I100/100*4.409)*0.82 -> 2.530766 | K100: =J100*0.454 -> 1.148967764 | L100: 1.633484659 | M100: =L100*0.454 -> 0.7416020352 | N100: 1.027006288 | O100: =N100*0.454 -> 0.4662608546
B101: 94 | C101: Added Feed | D101: 2000 | E101: 0 | I101: 70 | J101: 2.530766 | K101: 1.148967764 | L101: 1.633484659 | M101: 0.7416020352 | N101: 1.027006288 | O101: 0.4662608546
B102: 95 | C102: Added Feed | D102: 2000 | E102: 0 | I102: 70 | J102: 2.530766 | K102: 1.148967764 | L102: 1.633484659 | M102: 0.7416020352 | N102: 1.027006288 | O102: 0.4662608546
B103: 96 | C103: Added Feed | D103: 2000 | E103: 0 | I103: 70 | J103: 2.530766 | K103: 1.148967764 | L103: 1.633484659 | M103: 0.7416020352 | N103: 1.027006288 | O103: 0.4662608546
B104: 97 | C104: Added Feed | D104: 2000 | E104: 0 | I104: 70 | J104: 2.530766 | K104: 1.148967764 | L104: 1.633484659 | M104: 0.7416020352 | N104: 1.027006288 | O104: 0.4662608546
C105: Commercial Feeds
B106: =B104+1 -> 98 | C106: Alfalfa Pellets | D106: 2000 | E106: 157 | F106: 91 | G106: 18.456 | H106: 70 | I106: 57.332 | J106: 2.072769662 | K106: 0.9410374264 | L106: 1.22030145 | M106: 0.5540168583 | N106: 0.654409636 | O106: 0.2971019747 | P106: 45.677 | Q106: 0.4 | R106: 2.437 | S106: 1.471 | T106: 0.282 | U106: 0.04 | V106: 2.266 | W106: 0.293 | X106: 0.25 | Y106: 1.77 | Z106: 10.994 | AA106: 688 | AB106: 57.588 | AC106: 0.19 | AD106: 35.235
B107: =B106+1 -> 99 | C107: Aalfala Cubes | D107: 2000 | E107: 150 | F107: 91 | G107: 17.1 | H107: 71 | I107: 57 | J107: 2.0607666 | K107: 0.9355880364 | L107: 1.209089083 | M107: 0.5489264437 | N107: 0.6441217741 | O107: =IF(M107<0,0,M107*0.454) -> 0.2492126054 | P107: 45.5 | Q107: 0.6 | R107: 2.2 | S107: 1.5 | T107: 0.24 | U107: 0.04 | V107: 2.15 | W107: 0.29 | X107: 0.28 | Y107: 0.66 | Z107: 8.8 | AA107: 720 | AB107: 47.8 | AC107: 0.51 | AD107: 25.6
B108: =B107+1 -> 100 | C108: Alfalfa Dehydrated, 17% CP | D108: 2000 | E108: 175 | F108: 91 | G108: 17.9 | H108: 69 | I108: 57 | J108: 2.0607666 | K108: 0.9355880364 | L108: 1.209089083 | M108: 0.5489264437 | N108: 0.6441217741 | O108: 0.2492126054 | P108: 46.7 | Q108: 0.4 | R108: 2.4 | S108: 1.47 | T108: 0.28 | U108: 0.04 | V108: 2.2 | W108: 0.28 | X108: 0.27 | Y108: 0.8 | Z108: 9.6 | AA108: 646 | AB108: 54 | AC108: 0.18 | AD108: 31.7
B109: 101 | C109: Cane molasses | D109: 2000 | E109: 200 | F109: 75 | G109: 5.8 | H109: 50 | I109: 72 | J109: 2.6030736 | K109: 1.181795414 | L109: 1.696327179 | M109: 0.7701325394 | N109: 1.082530432 | O109: 0.3496401729 | P109: 0 | Q109: 0 | R109: 1 | S109: 1 | T109: 0.11 | U109: 0.06 | V109: 3.84 | W109: 0.43 | X109: 0.47 | Y109: 1.21 | Z109: 79 | AA109: 250 | AB109: 56 | AC109: 0.1 | AD109: 30
B110: 102 | C110: Liquid 20% | D110: 2000 | E110: 200 | F110: 61 | G110: 20 | H110: 85 | I110: 75 | J110: 2.711535 | K110: 1.23103689 | L110: 1.789500379 | M110: 0.8124331718 | N110: 1.164281729 | O110: 0.528583905 | P110: 0 | Q110: 0 | R110: 2.3 | S110: 2.3 | T110: 0.7 | U110: 1 | V110: 3.4 | W110: 0.7 | X110: 0.6 | Y110: 3 | Z110: 400 | AA110: 170 | AB110: 900 | AC110: 2.5 | AD110: 900
B111: 103 | C111: Liquid 25% | D111: 2000 | E111: 215 | F111: 60 | G111: 25 | H111: 90 | I111: 72 | J111: 2.6030736 | K111: 1.181795414 | L111: 1.696327179 | M111: 0.7701325394 | N111: 1.082530432 | O111: 0.4914688162 | P111: 0 | Q111: 0 | R111: 0.8 | S111: 0.46 | T111: 1.04 | U111: 1.9 | V111: 3.8 | W111: 0.85 | X111: 0.88 | Y111: 4.3 | Z111: 431 | AA111: 204.4 | AB111: 1033 | AC111: 4.3 | AD111: 1035
B112: 104 | C112: Liquid 30% | D112: 2000 | E112: 225 | F112: 59 | G112: 30 | H112: 95 | I112: 72 | J112: 2.6030736 | K112: 1.181795414 | L112: 1.696327179 | M112: 0.7701325394 | N112: 1.082530432 | O112: 0.4914688162 | P112: 0 | Q112: 0 | U112: 2 | V112: 4 | W112: 0.9 | X112: 0.92 | Y112: 5 | Z112: 460 | AA112: 225 | AB112: 1100 | AC112: 5.5 | AD112: 1100
B113: 105 | C113: Protein block | D113: 2000 | E113: 350 | F113: 87 | G113: 28.7 | H113: 65 | I113: 82 | J113: 2.9646116 | K113: 1.345933666 | L113: 2.002231934 | M113: 0.9090132979 | N113: 1.348356082 | O113: 0.6121536611 | P113: 25 | Q113: 0.2 | R113: 1 | S113: 2.5 | T113: 1 | U113: 6 | V113: 1.4 | W113: 0.5 | X113: 0.3 | Z113: 16 | AC113: 1.2
B114: 106 | C114: Range Cube, 20% | D114: 2000 | E114: 325 | F114: 89 | G114: 22.5 | H114: 60 | I114: 77 | J114: 2.7838426 | K114: 1.26386454 | L114: 1.850923524 | M114: 0.8403192799 | N114: 1.217799671 | O114: =N114*0.454 -> 0.5528810506 | P114: 30 | Q114: 0.3 | R114: 2.25 | S114: 1.98 | T114: 0.81 | U114: 0.68 | V114: 0.81 | W114: 0.45 | X114: 0.2 | Y114: 0.37 | Z114: 19 | AA114: 30 | AB114: 85 | AC114: 0.1 | AD114: 110
B115: 107 | C115: Range Cube, 25% | D115: 2000 | E115: 360 | F115: 89 | G115: 28 | H115: 65 | I115: 76 | J115: 2.7476888 | K115: 1.247450715 | L115: 1.820279199 | M115: 0.8264067562 | N115: 1.191136686 | O115: =N115*0.454 -> 0.5407760555 | P115: 30 | Q115: 0.3 | S115: 2 | T115: 1.1 | U115: 1
B116: 108 | C116: Range Cube, 32% | D116: 2000 | E116: 385 | F116: 89 | G116: 35.5 | H116: 70 | I116: 76 | J116: 2.7476888 | K116: 1.247450715 | L116: 1.820279199 | M116: 0.8264067562 | N116: 1.191136686 | O116: 0.5407760555 | P116: 30 | Q116: 0.3 | R116: 1.8 | S116: 2 | T116: 0.99 | U116: 0.63 | V116: 0.9 | W116: 0.45 | X116: 0.2 | Y116: 0.37 | Z116: 19 | AA116: 30 | AB116: 80 | AC116: 0.1 | AD116: 110
B117: 109 | C117: Range Cube, 38% | D117: 2000 | E117: 415 | F117: 89 | G117: 42.7 | H117: 75 | I117: 78 | J117: 2.8199964 | K117: 1.280278366 | L117: 1.881436332 | M117: 0.8541720948 | N117: 1.244274143 | O117: 0.5649004608 | P117: 30 | Q117: 0.3 | S117: 2 | T117: 1.4 | U117: 1
B118: 110 | C118: B-283 Oklahoma Gold Cube w Rumensin | D118: 2000 | E118: 400 | F118: 90 | G118: 42.9 | H118: 80 | I118: 75 | J118: =(I118/100*4.409)*0.82 -> 2.711535 | K118: =J118*0.454 -> 1.23103689 | L118: 1.789500379 | M118: =L118*0.454 -> 0.8124331718 | N118: 1.164281729 | O118: =N118*0.454 -> 0.528583905 | P118: 24 | Q118: 0.1 | R118: 1.7 | S118: 0.65 | T118: 1.1 | U118: 1 | V118: 1.8 | W118: 0.6 | X118: 0.4 | Y118: 8.25 | Z118: 42.2 | AA118: 116 | AB118: 43 | AC118: 1.4 | AD118: 143
B119: 111 | C119: 1925 Hfr Feed Intake TMR, R2 | D119: 2000 | E119: 250 | F119: 88.5 | G119: 14 | H119: 60 | I119: 66.7 | J119: 2.41145846 | K119: 1.094802141 | L119: 1.528450852 | M119: 0.6939166869 | N119: 0.93351804 | O119: 0.4238171901 | P119: 41.5 | Q119: 0.6 | R119: 4.1 | S119: 0.75 | T119: 0.4 | U119: 1 | V119: 1.05 | W119: 0.3 | X119: 0.2 | Y119: 0.37 | Z119: 21.9 | AA119: 126 | AB119: 102.5 | AC119: 0.3 | AD119: 70.8
B120: 112 | C120: 1920 TMR, Creep Feed | D120: 2000 | E120: 200 | F120: 88 | G120: 17.4 | H120: 70 | I120: 71 | J120: 2.5669198 | K120: 1.165381589 | L120: 1.664980609 | M120: 0.7559011967 | N120: 1.054872994 | O120: 0.4789123393 | P120: 36 | Q120: 0.75 | R120: 4 | S120: 0.88 | T120: 0.73 | U120: 1 | V120: 0.7 | W120: 0.3 | X120: 0.31 | Y120: 0.44 | Z120: 97 | AA120: 135 | AB120: 97 | AC120: 1.4 | AD120: 188
B121: 113 | C121: OSU 25 Custom Liquid NPT 7294 | D121: 2000 | E121: 251 | F121: 58 | G121: 43.6 | H121: 80 | I121: 79 | J121: 2.8561502 | K121: 1.296692191 | L121: 1.9118206 | M121: 0.8679665524 | N121: 1.27056356 | O121: 0.5768358564 | P121: 2 | Q121: 0 | R121: 0.8 | S121: 0.46 | T121: 1.04 | U121: 1.44 | V121: 3.8 | W121: 0.85 | X121: 0.88 | Y121: 4.3 | Z121: 431.3 | AA121: 204 | AB121: 1034 | AC121: 4.3 | AD121: 1036
B122: 114 | C122: Added Feed | D122: 2000 | E122: 0 | H122: 0 | I122: 70 | J122: =(I122/100*4.409)*0.82 -> 2.530766 | K122: =J122*0.454 -> 1.148967764 | L122: 1.633484659 | M122: =L122*0.454 -> 0.7416020352 | N122: 1.027006288 | O122: =N122*0.454 -> 0.4662608546
B123: 115 | C123: Added Feed | D123: 2000 | E123: 0 | H123: 0 | I123: 70 | J123: 2.530766 | K123: 1.148967764 | L123: 1.633484659 | M123: 0.7416020352 | N123: 1.027006288 | O123: 0.4662608546
B124: 116 | C124: Added Feed | D124: 2000 | E124: 0 | H124: 0 | I124: 70 | J124: 2.530766 | K124: 1.148967764 | L124: 1.633484659 | M124: 0.7416020352 | N124: 1.027006288 | O124: 0.4662608546
B125: 117 | C125: Added Feed | D125: 2000 | E125: 0 | H125: 0 | I125: 70 | J125: 2.530766 | K125: 1.148967764 | L125: 1.633484659 | M125: 0.7416020352 | N125: 1.027006288 | O125: 0.4662608546
B126: 118 | C126: Added Feed | D126: 2000 | E126: 0 | H126: 0 | I126: 70 | J126: 2.530766 | K126: 1.148967764 | L126: 1.633484659 | M126: 0.7416020352 | N126: 1.027006288 | O126: 0.4662608546
B127: 119 | C127: Added Feed | D127: 2000 | E127: 0 | H127: 0 | I127: 70 | J127: 2.530766 | K127: 1.148967764 | L127: 1.633484659 | M127: 0.7416020352 | N127: 1.027006288 | O127: 0.4662608546
C128: Mineral and Vitamins
B129: =B127+1 -> 120 | C129: Calcium Carbonate | D129: 2000 | E129: 200 | F129: 100 | G129: 0 | H129: 0 | I129: 0 | J129: =IF(I129=0,0,(((I129/100)*4.4)*0.82)) -> 0 | K129: =J129*0.454 -> 0 | L129: =IF(I129<29,0,((1.37*J129)-(0.138*J129^2)+(0.0105*J129^3))-1.12) -> 0 | M129: =L129*0.454 -> 0 | N129: =IF(I129<38,0,((1.42*J129)-(0.174*J129^2)+(0.0122*J129^3)-1.65)) -> 0 | O129: =N129*0.454 -> 0 | P129: 0 | Q129: 0 | R129: 0 | S129: 39.4 | T129: 0.04 | V129: 0.06 | W129: 0.05 | AA129: 300 | AB129: 300
B130: =B129+1 -> 121 | C130: Cobalt Carbonate | D130: 2000 | E130: 0 | F130: 99 | G130: =IF(L130=0,0,((1.42*P130)-(0.174*P130^2)+(0.0122*P130^3)-1.65)) -> 0 | H130: =G130*0.454 -> 0 | I130: 0 | J130: =IF(I130=0,0,(((I130/100)*4.4)*0.82)) -> 0 | K130: =J130*0.454 -> 0 | L130: =IF(I130<29,0,((1.37*J130)-(0.138*J130^2)+(0.0105*J130^3))-1.12) -> 0 | M130: =L130*0.454 -> 0 | N130: =IF(I130<38,0,((1.42*J130)-(0.174*J130^2)+(0.0122*J130^3)-1.65)) -> 0 | O130: 0 | P130: =(((L130/100)*4.4)*0.82) -> 0 | Q130: =P130*0.454 -> 0 | Y130: 460000
B131: =B130+1 -> 122 | C131: Cobalt Sulfate | D131: 2000 | E131: 0 | F131: 99 | G131: 0 | H131: 0 | I131: 0 | J131: 0 | K131: 0 | L131: 0 | M131: 0 | N131: 0 | O131: 0 | P131: 0 | Q131: 0 | Y131: 210000
B132: 123 | C132: Copper Sulfate | D132: 2000 | E132: 0 | F132: 99 | G132: 0 | H132: 0 | I132: 0 | J132: 0 | K132: 0 | L132: 0 | M132: 0 | N132: 0 | O132: 0 | P132: 0 | Q132: 0 | Z132: 25200
B133: 124 | C133: Dicalcium phosphate | D133: 2000 | E133: 0 | F133: 97 | G133: 0 | H133: 0 | I133: 0 | J133: 0 | K133: 0 | L133: 0 | M133: 0 | N133: 0 | O133: 0 | P133: 0 | Q133: 0 | S133: 22 | T133: 19.3 | V133: 0 | W133: 0.59 | X133: 1.14 | Y133: 0 | Z133: 10 | AA133: 14400 | AB133: 330 | AC133: 0 | AD133: 100
B134: 125 | C134: Limestone 38% | D134: 2000 | E134: 175 | F134: 99 | G134: 0 | H134: 0 | I134: 0 | J134: 0 | K134: 0 | L134: 0 | M134: 0 | N134: 0 | O134: 0 | P134: 0 | Q134: 0 | S134: 39.4 | T134: 0.09 | V134: 0.09 | W134: 0.17 | X134: 0.01 | Y134: 0 | Z134: 33 | AA134: 542 | AB134: 281 | AC134: 0 | AD134: 39
B135: 126 | C135: Magnesium Oxide | D135: 2000 | E135: 0 | F135: 99 | G135: 0 | H135: 0 | I135: 0 | J135: 0 | K135: 0 | L135: 0 | M135: 0 | N135: 0 | O135: 0 | P135: 0 | Q135: 0 | W135: 54 | AB135: 600000
B136: 127 | C136: Potassium chloride | D136: 2000 | E136: 0 | F136: 99 | G136: 0 | H136: 0 | I136: 0 | J136: 0 | K136: 0 | L136: 0 | M136: 0 | N136: 0 | O136: 0 | P136: 0 | Q136: 0 | S136: 0.05 | V136: 50.54 | W136: 0.11 | X136: 0.19 | AA136: 600
B137: 128 | C137: Selenium 600 | D137: 2000 | E137: 0 | F137: 99 | G137: 0 | H137: 0 | I137: 0 | J137: 0 | K137: 0 | L137: 0 | M137: 0 | N137: 0 | O137: 0 | P137: 0 | Q137: 0 | AC137: 600
B138: 129 | C138: Sodium Chloride | D138: 2000 | E138: 150 | F138: 99 | G138: =IF(L138=0,0,((1.42*P138)-(0.174*P138^2)+(0.0122*P138^3)-1.65)) -> 0 | H138: =G138*0.454 -> 0 | I138: 1 | J138: =IF(I138=0,0,(((I138/100)*4.4)*0.82)) -> 0.03608 | K138: =J138*0.454 -> 0.01638032 | L138: =IF(I138<29,0,((1.37*J138)-(0.138*J138^2)+(0.0105*J138^3))-1.12) -> 0 | M138: =L138*0.454 -> 0 | N138: =IF(I138<38,0,((1.42*J138)-(0.174*J138^2)+(0.0122*J138^3)-1.65)) -> 0 | O138: =N138*0.454 -> 0 | P138: =(((L138/100)*4.4)*0.82) -> 0 | Q138: =P138*0.454 -> 0 | U138: 39
B139: 130 | C139: Zinc Oxide | D139: 2000 | E139: 0 | F139: 97 | G139: =IF(L139=0,0,((1.42*P139)-(0.174*P139^2)+(0.0122*P139^3)-1.65)) -> 0 | H139: =G139*0.454 -> 0 | I139: 0 | J139: =IF(I139=0,0,(((I139/100)*4.4)*0.82)) -> 0 | K139: =J139*0.454 -> 0 | L139: =IF(I139<29,0,((1.37*J139)-(0.138*J139^2)+(0.0105*J139^3))-1.12) -> 0 | M139: =L139*0.454 -> 0 | N139: =IF(I139<38,0,((1.42*J139)-(0.174*J139^2)+(0.0122*J139^3)-1.65)) -> 0 | O139: =N139*0.454 -> 0 | P139: =(((L139/100)*4.4)*0.82) -> 0 | Q139: =P139*0.454 -> 0 | AD139: 720000
B140: 131 | C140: Zinc Sulfate | D140: 2000 | E140: 0 | F140: 99 | G140: =IF(L140=0,0,((1.42*P140)-(0.174*P140^2)+(0.0122*P140^3)-1.65)) -> 0 | H140: =G140*0.454 -> 0 | I140: 0 | J140: =IF(I140=0,0,(((I140/100)*4.4)*0.82)) -> 0 | K140: =J140*0.454 -> 0 | L140: 0 | M140: =L140*0.454 -> 0 | N140: 0 | O140: =N140*0.454 -> 0 | P140: =(((L140/100)*4.4)*0.82) -> 0 | Q140: =P140*0.454 -> 0 | AD140: 360000
B141: 132 | C141: Stillwater CTC 2.0 Beef Mineral | D141: 2000 | E141: 800 | F141: 98 | G141: 0 | H141: 0 | I141: 0 | J141: =IF(I141=0,0,(((I141/100)*4.4)*0.82)) -> 0 | K141: =J141*0.454 -> 0 | L141: 0 | M141: =L141*0.454 -> 0 | N141: 0 | O141: =N141*0.454 -> 0 | P141: 0 | Q141: 0 | R141: 2 | S141: 15 | T141: 7 | V141: 0.7 | W141: 0.3 | Z141: 2600 | AC141: 26.4 | AD141: 4100
B142: 133 | C142: B-628 Dry TMR Supplement | D142: 2000 | E142: 300 | F142: 95 | G142: 19.9 | H142: 75 | I142: 45 | J142: =IF(I142=0,0,(((I142/100)*4.4)*0.82)) -> 1.6236 | K142: =J142*0.454 -> 0.7371144 | L142: 0.7854926923 | M142: =L142*0.454 -> 0.3566136823 | N142: 0.2490498105 | O142: =N142*0.454 -> 0.113068614 | P142: 5 | Q142: 0 | R142: 0.5 | S142: 13.4 | T142: 0.32 | V142: 0.91 | W142: 0.18 | X142: 0.16 | Y142: 0.26 | Z142: 17 | AA142: 262 | AB142: 110 | AC142: 0.05 | AD142: 34.3
B143: 134 | C143: Sweetlix Aureo FC C6000 | D143: 2000 | E143: 1100 | F143: 99 | G143: 0 | H143: 0 | I143: 0 | J143: =IF(I143=0,0,(((I143/100)*4.4)*0.82)) -> 0 | K143: =J143*0.454 -> 0 | L143: 0 | M143: =L143*0.454 -> 0 | N143: 0 | O143: =N143*0.454 -> 0 | P143: 0 | Q143: 0 | R143: 0 | S143: 10 | T143: 9.5 | V143: 1.2 | W143: 6 | X143: 0.16 | Y143: 0.26 | Z143: 750 | AA143: 150 | AB143: 2900 | AC143: 10 | AD143: 3000
B144: 135 | C144: Deccox, 6% | D144: 2000 | E144: 1500 | F144: 95 | G144: 10 | H144: 0 | I144: 70 | J144: =IF(I144=0,0,(((I144/100)*4.4)*0.82)) -> 2.5256 | K144: =J144*0.454 -> 1.1466224 | L144: 1.628971846 | M144: =L144*0.454 -> 0.7395532181 | N144: 1.023007137 | O144: =N144*0.454 -> 0.4644452404 | P144: =(((L144/100)*4.4)*0.82) -> 0.05877330421 | Q144: =P144*0.454 -> 0.02668308011
B145: 136 | C145: B-350 RCRC Mineral | D145: 2000 | E145: 1075 | F145: 99 | G145: 3.65 | H145: 70 | I145: 10 | J145: =IF(I145=0,0,(((I145/100)*4.4)*0.82)) -> 0.3608 | K145: =J145*0.454 -> 0.1638032 | L145: 0 | M145: =L145*0.454 -> 0 | N145: 0 | O145: =N145*0.454 -> 0 | P145: 0 | Q145: =P145*0.454 -> 0 | R145: 1.39 | S145: 10 | T145: 5 | U145: 7.6 | V145: 0.74 | W145: 1.07 | X145: 0.33 | Y145: 149 | Z145: 2022 | AA145: 3734 | AB145: 3110 | AC145: 31 | AD145: 6036
B146: 137 | C146: Added Feed | D146: 2000 | E146: 0 | F146: 0 | I146: 70 | J146: =IF(I146=0,0,(((I146/100)*4.4)*0.82)) -> 2.5256 | K146: =J146*0.454 -> 1.1466224 | L146: 1.628971846 | M146: =L146*0.454 -> 0.7395532181 | N146: 1.023007137 | O146: =N146*0.454 -> 0.4644452404
B147: 138 | C147: Added Feed | D147: 2000 | E147: 0 | F147: 0 | I147: 70 | J147: 2.5256 | K147: 1.1466224 | L147: 1.628971846 | M147: 0.7395532181 | N147: 1.023007137 | O147: 0.4644452404
B148: 139 | C148: Added Feed | D148: 2000 | E148: 0 | F148: 0 | I148: 70 | J148: 2.5256 | K148: 1.1466224 | L148: 1.628971846 | M148: 0.7395532181 | N148: 1.023007137 | O148: 0.4644452404
B149: 140 | C149: Added Feed | D149: 2000 | E149: 0 | F149: 0 | H149: 0 | I149: 70 | J149: =IF(I149=0,0,(((I149/100)*4.4)*0.82)) -> 2.5256 | K149: =J149*0.454 -> 1.1466224 | L149: 1.628971846 | M149: =L149*0.454 -> 0.7395532181 | N149: 1.023007137 | O149: =N149*0.454 -> 0.4644452404 | P149: 0 | Q149: 0
B150: 141 | C150: Added Feed | D150: 2000 | E150: 0 | F150: 0 | H150: 0 | I150: 70 | J150: 2.5256 | K150: 1.1466224 | L150: 1.628971846 | M150: 0.7395532181 | N150: 1.023007137 | O150: 0.4644452404 | P150: 0 | Q150: 0

Sheet Summary
G4: =Cattle!C3 -> Pistol Pete, Bullet Ranch | I4: =Cattle!F3 -> Angus cows, 1200 lb, BCS = 5
G5: =Cattle!C4 -> (405) 718-2134 | I5: =Cattle!F4 -> 2020 dry cow precalving
G8: Batch Size, lb | H8: 2000 | J8: Diet Dry Matter, % | L8: =S23 -> 90.808
G12: Feed Ingredient | H12: % DM | I12: % As Fed | J12: lb/Head | K12: Batch,lb | L12: Cumulative | Q12: $/day | R12: % comp | S12: DM parts | T12: % DM
G13: =Balancer!$D$8 -> Prairie Hay, mature | H13: =IF(N13=TRUE,P13/$P$23*100,0) -> 87.58479429 | I13: =IF(N13=TRUE,J13/$J$23*100,0) -> 87.4 | J13: =IF(N13=TRUE, 'Nutrient and Energy Balance'!E8,0) -> 21.85 | K13: =IF(N13=TRUE,$H$8*(I13/100),0) -> 1748 | L13: =IF(J13=0,0,SUM(K$13:$K13)) -> 1748 | N13: TRUE | O13: =J13*'Nutrient and Energy Balance'!H8/100 -> 19.8835 | P13: =IF(N13=TRUE, O13,0) -> 19.8835 | Q13: =IF(J13>0, 'Nutrient and Energy Balance'!F8, 0) -> 0.600875 | R13: =J13/$J$23*100 -> 87.4 | S13: =R13/100*T13 -> 79.534 | T13: ='Nutrient and Energy Balance'!H8 -> 91
G14: =Balancer!$D$9 -> Range Cube, 25% | H14: =IF(N14=TRUE,P14/$P$23*100,0) -> 11.76107832 | I14: 12 | J14: =IF(N14=TRUE, 'Nutrient and Energy Balance'!E9,0) -> 3 | K14: 240 | L14: =IF(J14=0,0,SUM(K$13:$K14)) -> 1988 | N14: TRUE | O14: =J14*'Nutrient and Energy Balance'!H9/100 -> 2.67 | P14: =IF(N14=TRUE, O14,0) -> 2.67 | Q14: =IF(J14>0, 'Nutrient and Energy Balance'!F9, 0) -> 0.54 | R14: =J14/$J$23*100 -> 12 | S14: =R14/100*T14 -> 10.68 | T14: ='Nutrient and Energy Balance'!H9 -> 89
G15: =Balancer!$D$10 -> B-350 RCRC Mineral | H15: 0.6541273897 | I15: 0.6 | J15: =IF(N15=TRUE, 'Nutrient and Energy Balance'!E10,0) -> 0.15 | K15: 12 | L15: =IF(J15=0,0,SUM(K$13:$K15)) -> 2000 | N15: TRUE | O15: =J15*'Nutrient and Energy Balance'!H10/100 -> 0.1485 | P15: 0.1485 | Q15: =IF(J15>0, 'Nutrient and Energy Balance'!F10, 0) -> 0.080625 | R15: 0.6 | S15: 0.594 | T15: ='Nutrient and Energy Balance'!H10 -> 99
G16: =Balancer!$D$11 -> 0 | H16: 0 | I16: 0 | J16: =IF(N16=TRUE, 'Nutrient and Energy Balance'!E11,0) -> 0 | K16: 0 | L16: =IF(J16=0,0,SUM(K$13:$K16)) -> 0 | N16: TRUE | O16: =J16*'Nutrient and Energy Balance'!H11/100 -> 0 | P16: 0 | Q16: =IF(J16>0, 'Nutrient and Energy Balance'!F11, 0) -> 0 | R16: 0 | S16: 0 | T16: ='Nutrient and Energy Balance'!H11 -> 0
G17: =Balancer!$D$12 -> 0 | H17: 0 | I17: 0 | J17: =IF(N17=TRUE, 'Nutrient and Energy Balance'!E12,0) -> 0 | K17: 0 | L17: =IF(J17=0,0,SUM(K$13:$K17)) -> 0 | N17: TRUE | O17: =J17*'Nutrient and Energy Balance'!H12/100 -> 0 | P17: 0 | Q17: =IF(J17>0, 'Nutrient and Energy Balance'!F12, 0) -> 0 | R17: 0 | S17: 0 | T17: ='Nutrient and Energy Balance'!H12 -> 0
G18: =Balancer!$D$13 -> 0 | H18: 0 | I18: 0 | J18: =IF(N18=TRUE, 'Nutrient and Energy Balance'!E13,0) -> 0 | K18: 0 | L18: =IF(J18=0,0,SUM(K$13:$K18)) -> 0 | N18: TRUE | O18: =J18*'Nutrient and Energy Balance'!H13/100 -> 0 | P18: 0 | Q18: =IF(J18>0, 'Nutrient and Energy Balance'!F13, 0) -> 0 | R18: 0 | S18: 0 | T18: ='Nutrient and Energy Balance'!H13 -> 0
G19: =Balancer!$D$14 -> 0 | H19: 0 | I19: 0 | J19: =IF(N19=TRUE, 'Nutrient and Energy Balance'!E14,0) -> 0 | K19: 0 | L19: =IF(J19=0,0,SUM(K$13:$K19)) -> 0 | N19: TRUE | O19: =J19*'Nutrient and Energy Balance'!H14/100 -> 0 | P19: 0 | Q19: =IF(J19>0, 'Nutrient and Energy Balance'!F14, 0) -> 0 | R19: 0 | S19: 0 | T19: ='Nutrient and Energy Balance'!H14 -> 0
G20: =Balancer!$D$15 -> 0 | H20: 0 | I20: 0 | J20: =IF(N20=TRUE, 'Nutrient and Energy Balance'!E15,0) -> 0 | K20: 0 | L20: =IF(J20=0,0,SUM(K$13:$K20)) -> 0 | N20: TRUE | O20: =J20*'Nutrient and Energy Balance'!H15/100 -> 0 | P20: 0 | Q20: =IF(J20>0, 'Nutrient and Energy Balance'!F15, 0) -> 0 | R20: 0 | S20: 0 | T20: ='Nutrient and Energy Balance'!H15 -> 0
G21: =Balancer!$D$16 -> 0 | H21: 0 | I21: 0 | J21: =IF(N21=TRUE, 'Nutrient and Energy Balance'!E16,0) -> 0 | K21: 0 | L21: =IF(J21=0,0,SUM(K$13:$K21)) -> 0 | N21: TRUE | O21: =J21*'Nutrient and Energy Balance'!H16/100 -> 0 | P21: 0 | Q21: =IF(J21>0, 'Nutrient and Energy Balance'!F16, 0) -> 0 | R21: 0 | S21: 0 | T21: ='Nutrient and Energy Balance'!H16 -> 0
G22: =Balancer!$D$17 -> 0 | H22: 0 | I22: 0 | J22: =IF(N22=TRUE, 'Nutrient and Energy Balance'!E17,0) -> 0 | K22: 0 | L22: =IF(J22=0,0,SUM(K$13:$K22)) -> 0 | N22: TRUE | O22: =J22*'Nutrient and Energy Balance'!H17/100 -> 0 | P22: 0 | Q22: =IF(J22>0, 'Nutrient and Energy Balance'!F17, 0) -> 0 | R22: 0 | S22: 0 | T22: ='Nutrient and Energy Balance'!H17 -> 0
G23: Total | I23: =SUM(I13:I22) -> 100 | J23: =SUM(J13:J22) -> 25 | K23: =SUM(K13:K22) -> 2000 | P23: =SUM(P13:P22) -> 22.702 | Q23: =SUM(Q13:Q22) -> 1.2215 | S23: =SUM(S13:S22) -> 90.808
G25: Finish or Mature Weight | H25: =IF(Cattle!B7 = "Growing and Finishing Cattle", Cattle!E15, Cattle!D11) -> 1200 | I25: Genetic Potential | K25: =IF(Cattle!B7 = "Growing and Finishing Cattle", Cattle!F15, Cattle!F11) -> Average
G26: Ionophore | H26: =IF(Cattle!B7="Growing and Finishing Cattle", Cattle!G15, " ") ->  | I26: Implant | L26: =IF(Cattle!B7 = "Growing and Finishing Cattle", Cattle!H15, " ") -> 
G27: Initial BCS | H27: =IF(Cattle!B7 = "Growing and Finishing Cattle", Cattle!I15, Cattle!H11) -> 5 | I27: Projected ADG | L27: =Balancer!C21 -> 1.217356058
G28: Length of Period, Days | H28: =Cattle!E7 -> 90 | I28: Feed Intake, lb DM | L28: =Balancer!F22 -> 22.702
G29: Initial Weight, lb | H29: =Balancer!L28 -> 1200 | I29: Final Weight, lb | L29: =Balancer!L29 -> 1309.562045
G30: Cost Per Day | H30: ='Nutrient and Energy Balance'!G18 -> 1.2215 | I30: Cost per Ton, As Fed | L30: =(Q23/J23)*2000 -> 97.72
G31: Comments:
G32: This example is for dry beef cows during late gestation consuming hay, supplement and mineral.
G34: Prepared by
G35: Title
G36: Address
G37: Phone
G38: Email

Sheet BCS
I2: BCS | J2: Description
H3: Thin | I3: 1 | J3: No palpable fat over spinous processes, transverse processes, hip bones, or ribs. Tail head and ribs project quite prominently.
I4: Emaciated
C5: 1 | I5: 2 | J5: Tail head and ribs are less prominent. Individual spinous processes are still sharp to the touch, but some tissue cover on dorsal portion of ribs.
I6: Very Thin
I7: 3 | J7: Ribs are individually identifiable but not as sharp to the touch. Obvious palpable fat along spine and over tail head with some tissue cover on dorsal portion of the ribs.
I8: Thin
C9: 3 | H9: Optimum/moderate | I9: 4 | J9: Individual ribs are no longer visually obvious. The spinous processes can be identified individually on palpation but feel rounded rather than sharp. Some fat cover over ribs, transverse processes, and hip bones.
I10: Borderline
I11: 5 | J11: Cow has generally good overall appearance. On palpation, slight fat cover over ribs feels spongy and areas on either side of tail head have palpable fat cover.
I12: Moderate
C13: 5 | I13: 6 | J13: Some fat in brisket. Firm pressure required to feel spinous processes. A high degree of fat is palpable over ribs and around tail head.
I14: High Moderate
H15: Fat | I15: 7 | J15: Brisket is full. Very spongy fat cover over ribs and around tail head. “Pones” beginning to be obvious. Some fat around the vulva and in crotch.
I16: Fleshy
C17: 7 | I17: 8 | J17: Cow very fleshy and over-conditioned. Spinous processes almost impossible to palpate. Cow has large fat deposits over ribs and around tail head, and below vulva. “Pones” are obvious.
I18: Fat
I19: 9 | J19: Cow looks patchy and blocky. Tail head and hips buried in fatty tissue and “pones” of fat are protruding. Bone structure no longer visible and barely palpable. Animal’s mobility might even be impaired by large fatty deposits.
I20: Extremely Fat

Sheet Finish Weight

Sheet Nutrient and Energy Balance (hidden)
B1: Nutrient and Energy Balance | J1: Nutrient and Energy Balance
F6: Dietary Components, Nutrient Concentration | AA6: peNDF
B7: Feed Ingredient | C7: Units | D7: Unit Cost | E7: Lb as fed | F7: Cost/day | G7: Cost/d | H7: D.M. % | I7: PROT % | J7: TDN % | K7: ME Mcal/kg | L7: NEM Mcal/kg | M7: NEG Mcal/kg | N7: CA% | O7: PHOS % | P7: Na, % | Q7: K% | R7: MG % | S7: S % | T7: CO ppm | U7: CU ppm | V7: FE ppm | W7: MN ppm | X7: SE ppm | Y7: ZN ppm | Z7: NDF% | AA7: % of NDF | AB7: Fat % | AC7: Na | AD7: Cl
B8: =Balancer!D8 -> Prairie Hay, mature | C8: =IFERROR(VLOOKUP(Balancer!D8,'Feed List'!C5:AD168,2,),) -> 2000 | D8: =IFERROR(VLOOKUP(Balancer!D8,'Feed List'!C5:AD154,3,),) -> 55 | E8: =Balancer!$F$19*(Balancer!G8/100) -> 21.85 | F8: =IFERROR((D8/C8)*E8,) -> 0.600875 | G8: =IF(E8 = 0,0,F8) -> 0.600875 | H8: =IFERROR(VLOOKUP(B8,'Feed List'!$C$5:AD168,4,FALSE),0) -> 91 | I8: =IFERROR(VLOOKUP(Balancer!D8,'Feed List'!C5:AD168,5,),) -> 5.5 | J8: =IFERROR(VLOOKUP(Balancer!D8,'Feed List'!C3:AD168,7,),) -> 53 | K8: =IFERROR(VLOOKUP(Balancer!D8,'Feed List'!C5:AD168,8,),)*$L$40 -> 1.9161514 | L8: =IF(J8<29,0,(1.37*K8-0.138*K8^2+0.0105*K8^3-1.12)) -> 1.072313438 | M8: =IF(J8<38,0,(1.42*K8-0.174*K8^2+0.0122*K8^3-1.65)) -> 0.5179023034 | N8: =IFERROR(VLOOKUP(Balancer!$D8,'Feed List'!C5:AD168,17,),) -> 0.4 | O8: =IFERROR(VLOOKUP(Balancer!D8,'Feed List'!C5:AD156,18,),) -> 0.15 | P8: =IFERROR(VLOOKUP(Balancer!D8,'Feed List'!$C$5:$AE$156,19,),) -> 0.01 | Q8: =IFERROR(VLOOKUP(Balancer!D8,'Feed List'!$C$5:$AD$156,20,),) -> 1.1 | R8: =IFERROR(VLOOKUP(Balancer!D8,'Feed List'!$C$5:$AD$156,21,),) -> 0.2 | S8: =IFERROR(VLOOKUP(Balancer!D8,'Feed List'!$C$5:$AD$156,22,),) -> 0.22 | T8: =IFERROR(VLOOKUP(Balancer!D8,'Feed List'!$C$5:$AD$156,23,),) -> 0.15 | U8: =IFERROR(VLOOKUP(Balancer!D8,'Feed List'!$C$5:$AD$156,24,),) -> 6 | V8: =IFERROR(VLOOKUP(Balancer!D8,'Feed List'!$C$5:$AD$156,25,),) -> 300 | W8: =IFERROR(VLOOKUP(Balancer!D8,'Feed List'!$C$5:$AD$156,26,),) -> 80 | X8: =IFERROR(VLOOKUP(Balancer!D8,'Feed List'!$C$5:$AD$156,27,),) -> 0.11 | Y8: =IFERROR(VLOOKUP(Balancer!D8,'Feed List'!$C5:$AD156,28,),) -> 18 | Z8: =IFERROR(VLOOKUP(Balancer!D8,'Feed List'!$C$5:$AD$156,14,),) -> 73 | AA8: =IFERROR(VLOOKUP(Balancer!$D8,'Feed List'!$C$5:$AD$156,15,),) -> 1 | AB8: =IFERROR(VLOOKUP(Balancer!$D8,'Feed List'!$C$5:$AD$156,16,),) -> 2
B9: =Balancer!D9 -> Range Cube, 25% | C9: =IFERROR(VLOOKUP(Balancer!D9,'Feed List'!C5:AD168,2,),) -> 2000 | D9: =IFERROR(VLOOKUP(Balancer!D9,'Feed List'!C5:AD154,3,),) -> 360 | E9: =Balancer!$F$19*(Balancer!G9/100) -> 3 | F9: 0.54 | G9: =IF(E9 = 0,0,F9) -> 0.54 | H9: =IFERROR(VLOOKUP(B9,'Feed List'!$C$5:AD1168,4,FALSE),0) -> 89 | I9: =IFERROR(VLOOKUP(Balancer!D9,'Feed List'!C5:AD168,5,),) -> 28 | J9: =IFERROR(VLOOKUP(Balancer!D9,'Feed List'!C4:AD168,7,),) -> 76 | K9: =IFERROR(VLOOKUP(Balancer!D9,'Feed List'!C5:AD168,8,),)*$L$40 -> 2.7476888 | L9: =IF(J9<29,0,(1.37*K9-0.138*K9^2+0.0105*K9^3-1.12)) -> 1.820279199 | M9: =IF(J9<38,0,(1.42*K9-0.174*K9^2+0.0122*K9^3-1.65)) -> 1.191136686 | N9: =IFERROR(VLOOKUP(Balancer!$D9,'Feed List'!C$5:AD168,17,),) -> 2 | O9: =IFERROR(VLOOKUP(Balancer!D9,'Feed List'!C5:AD156,18,),) -> 1.1 | P9: =IFERROR(VLOOKUP(Balancer!D9,'Feed List'!$C$5:$AE$156,19,),) -> 1 | Q9: =IFERROR(VLOOKUP(Balancer!D9,'Feed List'!$C$5:$AD$156,20,),) -> 0 | R9: =IFERROR(VLOOKUP(Balancer!D9,'Feed List'!$C$5:$AD$156,21,),) -> 0 | S9: =IFERROR(VLOOKUP(Balancer!D9,'Feed List'!$C$5:$AD$156,22,),) -> 0 | T9: =IFERROR(VLOOKUP(Balancer!D9,'Feed List'!$C$5:$AD$156,23,),) -> 0 | U9: =IFERROR(VLOOKUP(Balancer!D9,'Feed List'!$C$5:$AD$156,24,),) -> 0 | V9: =IFERROR(VLOOKUP(Balancer!D9,'Feed List'!$C$5:$AD$156,25,),) -> 0 | W9: =IFERROR(VLOOKUP(Balancer!D9,'Feed List'!$C$5:$AD$156,26,),) -> 0 | X9: =IFERROR(VLOOKUP(Balancer!D9,'Feed List'!$C$5:$AD$156,27,),) -> 0 | Y9: =IFERROR(VLOOKUP(Balancer!D9,'Feed List'!$C6:$AD157,28,),) -> 0 | Z9: =IFERROR(VLOOKUP(Balancer!D9,'Feed List'!$C$5:$AD$156,14,),) -> 30 | AA9: =IFERROR(VLOOKUP(Balancer!D9,'Feed List'!$C$5:$AD$156,15,),) -> 0.3 | AB9: =IFERROR(VLOOKUP(Balancer!$D9,'Feed List'!$C$5:$AD$156,16,),) -> 0
B10: =Balancer!D10 -> B-350 RCRC Mineral | C10: =IFERROR(VLOOKUP(Balancer!D10,'Feed List'!C5:AD168,2,),0) -> 2000 | D10: =IFERROR(VLOOKUP(Balancer!D10,'Feed List'!C5:AD154,3,),) -> 1075 | E10: =Balancer!$F$19*(Balancer!G10/100) -> 0.15 | F10: =IFERROR((D10/C10)*E10,) -> 0.080625 | G10: 0.080625 | H10: =IFERROR(VLOOKUP(B10,'Feed List'!$C$5:AD168,4,FALSE),0) -> 99 | I10: =IFERROR(VLOOKUP(Balancer!D10,'Feed List'!C5:AD168,5,),) -> 3.65 | J10: =IFERROR(VLOOKUP(Balancer!D10,'Feed List'!C5:AD168,7,),) -> 10 | K10: =IFERROR(VLOOKUP(Balancer!D10,'Feed List'!C5:AD168,8,),)*$L$40 -> 0.3608 | L10: 0 | M10: 0 | N10: =IFERROR(VLOOKUP(Balancer!$D10,'Feed List'!C$5:AD168,17,),) -> 10 | O10: =IFERROR(VLOOKUP(Balancer!D10,'Feed List'!C5:AD156,18,),) -> 5 | P10: =IFERROR(VLOOKUP(Balancer!D10,'Feed List'!$C$5:$AE$156,19,),) -> 7.6 | Q10: =IFERROR(VLOOKUP(Balancer!D10,'Feed List'!$C$5:$AD$156,20,),) -> 0.74 | R10: =IFERROR(VLOOKUP(Balancer!D10,'Feed List'!$C$5:$AD$156,21,),) -> 1.07 | S10: =IFERROR(VLOOKUP(Balancer!D10,'Feed List'!$C$5:$AD$156,22,),) -> 0.33 | T10: =IFERROR(VLOOKUP(Balancer!D10,'Feed List'!$C$5:$AD$156,23,),) -> 149 | U10: =IFERROR(VLOOKUP(Balancer!D10,'Feed List'!$C$5:$AD$156,24,),) -> 2022 | V10: =IFERROR(VLOOKUP(Balancer!D10,'Feed List'!$C$5:$AD$156,25,),) -> 3734 | W10: =IFERROR(VLOOKUP(Balancer!D10,'Feed List'!$C$5:$AD$156,26,),) -> 3110 | X10: =IFERROR(VLOOKUP(Balancer!D10,'Feed List'!$C$5:$AD$156,27,),) -> 31 | Y10: =IFERROR(VLOOKUP(Balancer!D10,'Feed List'!$C7:$AD158,28,),) -> 6036 | Z10: =IFERROR(VLOOKUP(Balancer!D10,'Feed List'!$C$5:$AD$156,14,),) -> 0 | AA10: =IFERROR(VLOOKUP(Balancer!D10,'Feed List'!$C$5:$AD$156,15,),) -> 0 | AB10: =IFERROR(VLOOKUP(Balancer!$D10,'Feed List'!$C$5:$AD$156,16,),) -> 1.39
B11: =Balancer!D11 -> 0 | C11: =IFERROR(VLOOKUP(Balancer!D11,'Feed List'!C5:AD168,2,),0) -> 0 | D11: =IFERROR(VLOOKUP(Balancer!D11,'Feed List'!C5:AD154,3,),) -> 0 | E11: =Balancer!$F$19*(Balancer!G11/100) -> 0 | F11: =IFERROR((D11/C11)*E11,) -> 0 | G11: 0 | H11: =IFERROR(VLOOKUP(B11,'Feed List'!$C$5:AD168,4,FALSE),0) -> 0 | I11: =IFERROR(VLOOKUP(Balancer!D11,'Feed List'!C5:AD168,5,),) -> 0 | J11: =IFERROR(VLOOKUP(Balancer!D11,'Feed List'!C5:AD168,7,),) -> 0 | K11: =IFERROR(VLOOKUP(Balancer!D11,'Feed List'!C5:AD168,8,),)*$L$40 -> 0 | L11: 0 | M11: 0 | N11: =IFERROR(VLOOKUP(Balancer!$D11,'Feed List'!C$5:AD168,17,),) -> 0 | O11: =IFERROR(VLOOKUP(Balancer!D11,'Feed List'!C5:AD156,18,),) -> 0 | P11: =IFERROR(VLOOKUP(Balancer!D11,'Feed List'!$C$5:$AE$156,19,),) -> 0 | Q11: =IFERROR(VLOOKUP(Balancer!D11,'Feed List'!$C$5:$AD$156,20,),) -> 0 | R11: =IFERROR(VLOOKUP(Balancer!D11,'Feed List'!$C$5:$AD$156,21,),) -> 0 | S11: =IFERROR(VLOOKUP(Balancer!D11,'Feed List'!$C$5:$AD$156,22,),) -> 0 | T11: =IFERROR(VLOOKUP(Balancer!D11,'Feed List'!$C$5:$AD$156,23,),) -> 0 | U11: =IFERROR(VLOOKUP(Balancer!D11,'Feed List'!$C$5:$AD$156,24,),) -> 0 | V11: =IFERROR(VLOOKUP(Balancer!D11,'Feed List'!$C$5:$AD$156,25,),) -> 0 | W11: =IFERROR(VLOOKUP(Balancer!D11,'Feed List'!$C$5:$AD$156,26,),) -> 0 | X11: =IFERROR(VLOOKUP(Balancer!D11,'Feed List'!$C$5:$AD$156,27,),) -> 0 | Y11: =IFERROR(VLOOKUP(Balancer!D11,'Feed List'!$C8:$AD159,28,),) -> 0 | Z11: =IFERROR(VLOOKUP(Balancer!D11,'Feed List'!$C$5:$AD$156,14,),) -> 0 | AA11: =IFERROR(VLOOKUP(Balancer!D11,'Feed List'!$C$5:$AD$156,15,),) -> 0 | AB11: =IFERROR(VLOOKUP(Balancer!$D11,'Feed List'!$C$5:$AD$156,16,),) -> 0
B12: =Balancer!D12 -> 0 | C12: =IFERROR(VLOOKUP(Balancer!D12,'Feed List'!C5:AD168,2,),0) -> 0 | D12: =IFERROR(VLOOKUP(Balancer!D12,'Feed List'!C5:AD154,3,),) -> 0 | E12: =Balancer!$F$19*(Balancer!G12/100) -> 0 | F12: 0 | G12: 0 | H12: =IFERROR(VLOOKUP(B12,'Feed List'!$C$5:AD168,4,FALSE),0) -> 0 | I12: =IFERROR(VLOOKUP(Balancer!D12,'Feed List'!C5:AD168,5,),) -> 0 | J12: =IFERROR(VLOOKUP(Balancer!D12,'Feed List'!C5:AD168,7,),) -> 0 | K12: =IFERROR(VLOOKUP(Balancer!D12,'Feed List'!C5:AD168,8,),)*$L$40 -> 0 | L12: 0 | M12: 0 | N12: =IFERROR(VLOOKUP(Balancer!$D12,'Feed List'!C$5:AD168,17,),) -> 0 | O12: =IFERROR(VLOOKUP(Balancer!D12,'Feed List'!C5:AD156,18,),) -> 0 | P12: =IFERROR(VLOOKUP(Balancer!D12,'Feed List'!$C$5:$AE$156,19,),) -> 0 | Q12: =IFERROR(VLOOKUP(Balancer!D12,'Feed List'!$C$5:$AD$156,20,),) -> 0 | R12: =IFERROR(VLOOKUP(Balancer!D12,'Feed List'!$C$5:$AD$156,21,),) -> 0 | S12: =IFERROR(VLOOKUP(Balancer!D12,'Feed List'!$C$5:$AD$156,22,),) -> 0 | T12: =IFERROR(VLOOKUP(Balancer!D12,'Feed List'!$C$5:$AD$156,23,),) -> 0 | U12: =IFERROR(VLOOKUP(Balancer!D12,'Feed List'!$C$5:$AD$156,24,),) -> 0 | V12: =IFERROR(VLOOKUP(Balancer!D12,'Feed List'!$C$5:$AD$156,25,),) -> 0 | W12: =IFERROR(VLOOKUP(Balancer!D12,'Feed List'!$C$5:$AD$156,26,),) -> 0 | X12: =IFERROR(VLOOKUP(Balancer!D12,'Feed List'!$C$5:$AD$156,27,),) -> 0 | Y12: =IFERROR(VLOOKUP(Balancer!D12,'Feed List'!$C9:$AD160,28,),) -> 0 | Z12: =IFERROR(VLOOKUP(Balancer!D12,'Feed List'!$C$5:$AD$156,14,),) -> 0 | AA12: =IFERROR(VLOOKUP(Balancer!D12,'Feed List'!$C$5:$AD$156,15,),) -> 0 | AB12: =IFERROR(VLOOKUP(Balancer!$D12,'Feed List'!$C$5:$AD$156,16,),) -> 0
B13: =Balancer!D13 -> 0 | C13: =IFERROR(VLOOKUP(Balancer!D13,'Feed List'!C5:AD168,2,),0) -> 0 | D13: =IFERROR(VLOOKUP(Balancer!D13,'Feed List'!C5:AD154,3,),) -> 0 | E13: =Balancer!$F$19*(Balancer!G13/100) -> 0 | F13: 0 | G13: 0 | H13: =IFERROR(VLOOKUP(B13,'Feed List'!$C$5:AD168,4,FALSE),0) -> 0 | I13: =IFERROR(VLOOKUP(Balancer!D13,'Feed List'!C5:AD168,5,),) -> 0 | J13: =IFERROR(VLOOKUP(Balancer!D13,'Feed List'!C5:AD168,7,),) -> 0 | K13: =IFERROR(VLOOKUP(Balancer!D13,'Feed List'!C5:AD168,8,),)*$L$40 -> 0 | L13: 0 | M13: 0 | N13: =IFERROR(VLOOKUP(Balancer!$D13,'Feed List'!C$5:AD168,17,),) -> 0 | O13: =IFERROR(VLOOKUP(Balancer!D13,'Feed List'!C5:AD156,18,),) -> 0 | P13: =IFERROR(VLOOKUP(Balancer!D13,'Feed List'!$C$5:$AE$156,19,),) -> 0 | Q13: =IFERROR(VLOOKUP(Balancer!D13,'Feed List'!$C$5:$AD$156,20,),) -> 0 | R13: =IFERROR(VLOOKUP(Balancer!D13,'Feed List'!$C$5:$AD$156,21,),) -> 0 | S13: =IFERROR(VLOOKUP(Balancer!D13,'Feed List'!$C$5:$AD$156,22,),) -> 0 | T13: =IFERROR(VLOOKUP(Balancer!D13,'Feed List'!$C$5:$AD$156,23,),) -> 0 | U13: =IFERROR(VLOOKUP(Balancer!D13,'Feed List'!$C$5:$AD$156,24,),) -> 0 | V13: =IFERROR(VLOOKUP(Balancer!D13,'Feed List'!$C$5:$AD$156,25,),) -> 0 | W13: =IFERROR(VLOOKUP(Balancer!D13,'Feed List'!$C$5:$AD$156,26,),) -> 0 | X13: =IFERROR(VLOOKUP(Balancer!D13,'Feed List'!$C$5:$AD$156,27,),) -> 0 | Y13: =IFERROR(VLOOKUP(Balancer!D13,'Feed List'!$C10:$AD161,28,),) -> 0 | Z13: =IFERROR(VLOOKUP(Balancer!D13,'Feed List'!$C$5:$AD$156,14,),) -> 0 | AA13: =IFERROR(VLOOKUP(Balancer!D13,'Feed List'!$C$5:$AD$156,15,),) -> 0 | AB13: =IFERROR(VLOOKUP(Balancer!$D13,'Feed List'!$C$5:$AD$156,16,),) -> 0
B14: =Balancer!D14 -> 0 | C14: =IFERROR(VLOOKUP(Balancer!D14,'Feed List'!C5:AD168,2,),0) -> 0 | D14: =IFERROR(VLOOKUP(Balancer!D14,'Feed List'!C5:AD154,3,),) -> 0 | E14: =Balancer!$F$19*(Balancer!G14/100) -> 0 | F14: 0 | G14: 0 | H14: =IFERROR(VLOOKUP(B14,'Feed List'!$C$5:AD168,4,FALSE),0) -> 0 | I14: =IFERROR(VLOOKUP(Balancer!D14,'Feed List'!C5:AD168,5,),) -> 0 | J14: =IFERROR(VLOOKUP(Balancer!D14,'Feed List'!C5:AD168,7,),) -> 0 | K14: =IFERROR(VLOOKUP(Balancer!D14,'Feed List'!C5:AD168,8,),)*$L$40 -> 0 | L14: 0 | M14: 0 | N14: =IFERROR(VLOOKUP(Balancer!$D14,'Feed List'!C$5:AD168,17,),) -> 0 | O14: =IFERROR(VLOOKUP(Balancer!D14,'Feed List'!C5:AD156,18,),) -> 0 | P14: =IFERROR(VLOOKUP(Balancer!D14,'Feed List'!$C$5:$AE$156,19,),) -> 0 | Q14: =IFERROR(VLOOKUP(Balancer!D14,'Feed List'!$C$5:$AD$156,20,),) -> 0 | R14: =IFERROR(VLOOKUP(Balancer!D14,'Feed List'!$C$5:$AD$156,21,),) -> 0 | S14: =IFERROR(VLOOKUP(Balancer!D14,'Feed List'!$C$5:$AD$156,22,),) -> 0 | T14: =IFERROR(VLOOKUP(Balancer!D14,'Feed List'!$C$5:$AD$156,23,),) -> 0 | U14: =IFERROR(VLOOKUP(Balancer!D14,'Feed List'!$C$5:$AD$156,24,),) -> 0 | V14: =IFERROR(VLOOKUP(Balancer!D14,'Feed List'!$C$5:$AD$156,25,),) -> 0 | W14: =IFERROR(VLOOKUP(Balancer!D14,'Feed List'!$C$5:$AD$156,26,),) -> 0 | X14: =IFERROR(VLOOKUP(Balancer!D14,'Feed List'!$C$5:$AD$156,27,),) -> 0 | Y14: =IFERROR(VLOOKUP(Balancer!D14,'Feed List'!$C11:$AD162,28,),) -> 0 | Z14: =IFERROR(VLOOKUP(Balancer!D14,'Feed List'!$C$5:$AD$156,14,),) -> 0 | AA14: =IFERROR(VLOOKUP(Balancer!D14,'Feed List'!$C$5:$AD$156,15,),) -> 0 | AB14: =IFERROR(VLOOKUP(Balancer!$D14,'Feed List'!$C$5:$AD$156,16,),) -> 0
B15: =Balancer!D15 -> 0 | C15: =IFERROR(VLOOKUP(Balancer!D15,'Feed List'!C5:AD168,2,),0) -> 0 | D15: =IFERROR(VLOOKUP(Balancer!D15,'Feed List'!C5:AD154,3,),) -> 0 | E15: =Balancer!$F$19*(Balancer!G15/100) -> 0 | F15: 0 | G15: 0 | H15: =IFERROR(VLOOKUP(B15,'Feed List'!$C$5:AD168,4,FALSE),0) -> 0 | I15: =IFERROR(VLOOKUP(Balancer!D15,'Feed List'!C5:AD168,5,),) -> 0 | J15: =IFERROR(VLOOKUP(Balancer!D15,'Feed List'!C5:AD168,7,),) -> 0 | K15: =IFERROR(VLOOKUP(Balancer!D15,'Feed List'!C5:AD168,8,),)*$L$40 -> 0 | L15: 0 | M15: 0 | N15: =IFERROR(VLOOKUP(Balancer!$D15,'Feed List'!C$5:AD168,17,),) -> 0 | O15: =IFERROR(VLOOKUP(Balancer!D15,'Feed List'!C5:AD156,18,),) -> 0 | P15: =IFERROR(VLOOKUP(Balancer!D15,'Feed List'!$C$5:$AE$156,19,),) -> 0 | Q15: =IFERROR(VLOOKUP(Balancer!D15,'Feed List'!$C$5:$AD$156,20,),) -> 0 | R15: =IFERROR(VLOOKUP(Balancer!D15,'Feed List'!$C$5:$AD$156,21,),) -> 0 | S15: =IFERROR(VLOOKUP(Balancer!D15,'Feed List'!$C$5:$AD$156,22,),) -> 0 | T15: =IFERROR(VLOOKUP(Balancer!D15,'Feed List'!$C$5:$AD$156,23,),) -> 0 | U15: =IFERROR(VLOOKUP(Balancer!D15,'Feed List'!$C$5:$AD$156,24,),) -> 0 | V15: =IFERROR(VLOOKUP(Balancer!D15,'Feed List'!$C$5:$AD$156,25,),) -> 0 | W15: =IFERROR(VLOOKUP(Balancer!D15,'Feed List'!$C$5:$AD$156,26,),) -> 0 | X15: =IFERROR(VLOOKUP(Balancer!D15,'Feed List'!$C$5:$AD$156,27,),) -> 0 | Y15: =IFERROR(VLOOKUP(Balancer!D15,'Feed List'!$C12:$AD163,28,),) -> 0 | Z15: =IFERROR(VLOOKUP(Balancer!D15,'Feed List'!$C$5:$AD$156,14,),) -> 0 | AA15: =IFERROR(VLOOKUP(Balancer!D15,'Feed List'!$C$5:$AD$156,15,),) -> 0 | AB15: =IFERROR(VLOOKUP(Balancer!$D15,'Feed List'!$C$5:$AD$156,16,),) -> 0
B16: =Balancer!D16 -> 0 | C16: =IFERROR(VLOOKUP(Balancer!D16,'Feed List'!C5:AD168,2,),0) -> 0 | D16: =IFERROR(VLOOKUP(Balancer!D16,'Feed List'!C5:AD154,3,),) -> 0 | E16: =Balancer!$F$19*(Balancer!G16/100) -> 0 | F16: 0 | G16: 0 | H16: =IFERROR(VLOOKUP(B16,'Feed List'!$C$5:AD168,4,FALSE),0) -> 0 | I16: =IFERROR(VLOOKUP(Balancer!D16,'Feed List'!C5:AD168,5,),) -> 0 | J16: =IFERROR(VLOOKUP(Balancer!D16,'Feed List'!C5:AD168,7,),) -> 0 | K16: =IFERROR(VLOOKUP(Balancer!D16,'Feed List'!C5:AD168,8,),)*$L$40 -> 0 | L16: 0 | M16: 0 | N16: =IFERROR(VLOOKUP(Balancer!$D16,'Feed List'!C$5:AD168,17,),) -> 0 | O16: =IFERROR(VLOOKUP(Balancer!D16,'Feed List'!C5:AD156,18,),) -> 0 | P16: =IFERROR(VLOOKUP(Balancer!D16,'Feed List'!$C$5:$AE$156,19,),) -> 0 | Q16: =IFERROR(VLOOKUP(Balancer!D16,'Feed List'!$C$5:$AD$156,20,),) -> 0 | R16: =IFERROR(VLOOKUP(Balancer!D16,'Feed List'!$C$5:$AD$156,21,),) -> 0 | S16: =IFERROR(VLOOKUP(Balancer!D16,'Feed List'!$C$5:$AD$156,22,),) -> 0 | T16: =IFERROR(VLOOKUP(Balancer!D16,'Feed List'!$C$5:$AD$156,23,),) -> 0 | U16: =IFERROR(VLOOKUP(Balancer!D16,'Feed List'!$C$5:$AD$156,24,),) -> 0 | V16: =IFERROR(VLOOKUP(Balancer!D16,'Feed List'!$C$5:$AD$156,25,),) -> 0 | W16: =IFERROR(VLOOKUP(Balancer!D16,'Feed List'!$C$5:$AD$156,26,),) -> 0 | X16: =IFERROR(VLOOKUP(Balancer!D16,'Feed List'!$C$5:$AD$156,27,),) -> 0 | Y16: =IFERROR(VLOOKUP(Balancer!D16,'Feed List'!$C13:$AD164,28,),) -> 0 | Z16: =IFERROR(VLOOKUP(Balancer!D16,'Feed List'!$C$5:$AD$156,14,),) -> 0 | AA16: =IFERROR(VLOOKUP(Balancer!D16,'Feed List'!$C$5:$AD$156,15,),) -> 0 | AB16: =IFERROR(VLOOKUP(Balancer!$D16,'Feed List'!$C$5:$AD$156,16,),) -> 0
B17: =Balancer!D17 -> 0 | C17: =IFERROR(VLOOKUP(Balancer!D17,'Feed List'!C5:AD168,2,),0) -> 0 | D17: =IFERROR(VLOOKUP(Balancer!D17,'Feed List'!C5:AD154,3,),) -> 0 | E17: =Balancer!$F$19*(Balancer!G17/100) -> 0 | F17: 0 | G17: 0 | H17: =IFERROR(VLOOKUP(B17,'Feed List'!$C$5:AD168,4,FALSE),0) -> 0 | I17: =IFERROR(VLOOKUP(Balancer!D17,'Feed List'!C5:AD168,5,),) -> 0 | J17: =IFERROR(VLOOKUP(Balancer!D17,'Feed List'!C5:AD168,7,),) -> 0 | K17: =IFERROR(VLOOKUP(Balancer!D17,'Feed List'!C5:AD168,8,),)*$L$40 -> 0 | L17: 0 | M17: 0 | N17: =IFERROR(VLOOKUP(Balancer!$D17,'Feed List'!C$5:AD168,17,),) -> 0 | O17: =IFERROR(VLOOKUP(Balancer!D17,'Feed List'!C5:AD156,18,),) -> 0 | P17: =IFERROR(VLOOKUP(Balancer!D17,'Feed List'!$C$5:$AE$156,19,),) -> 0 | Q17: =IFERROR(VLOOKUP(Balancer!D17,'Feed List'!$C$5:$AD$156,20,),) -> 0 | R17: =IFERROR(VLOOKUP(Balancer!D17,'Feed List'!$C$5:$AD$156,21,),) -> 0 | S17: =IFERROR(VLOOKUP(Balancer!D17,'Feed List'!$C$5:$AD$156,22,),) -> 0 | T17: =IFERROR(VLOOKUP(Balancer!D17,'Feed List'!$C$5:$AD$156,23,),) -> 0 | U17: =IFERROR(VLOOKUP(Balancer!D17,'Feed List'!$C$5:$AD$156,24,),) -> 0 | V17: =IFERROR(VLOOKUP(Balancer!D17,'Feed List'!$C$5:$AD$156,25,),) -> 0 | W17: =IFERROR(VLOOKUP(Balancer!D17,'Feed List'!$C$5:$AD$156,26,),) -> 0 | X17: =IFERROR(VLOOKUP(Balancer!D17,'Feed List'!$C$5:$AD$156,27,),) -> 0 | Y17: =IFERROR(VLOOKUP(Balancer!D17,'Feed List'!$C14:$AD165,28,),) -> 0 | Z17: =IFERROR(VLOOKUP(Balancer!D17,'Feed List'!$C$5:$AD$156,14,),) -> 0 | AA17: =IFERROR(VLOOKUP(Balancer!D17,'Feed List'!$C$5:$AD$156,15,),) -> 0 | AB17: =IFERROR(VLOOKUP(Balancer!$D17,'Feed List'!$C$5:$AD$156,16,),) -> 0
D18: =SUM(D8:D17) -> 1490 | E18: =SUM(E8:E17) -> 25 | F18: 1.2215 | G18: =SUM(G8:G17) -> 1.2215
E20: Ingredient DM Intake, kg per Day | I20: kg | J20: kg | K20: Mcal | L20: Mcal | M20: Mcal | N20: Grams | O20: Grams | P20: Grams | T20: Milligrams
E21: Lb DM | F21: Kg DM | H21: lb Protein | I21: Protein | J21: TDN | K21: ME/day | L21: NEM/day | M21: NEG/day | N21: CA/day | O21: Phos/day | P21: Na/day | Q21: K | R21: MG | S21: S | T21: CO/day | U21: CU | V21: FE | W21: MN | X21: SE | Y21: ZN | Z21: NDF | AA21: peNDF | AB21: Fat, kg | AE21: % Composition | AF21: DM parts
B22: =Balancer!D8 -> Prairie Hay, mature | E22: =E8*(H8/100) -> 19.8835 | F22: =E22*0.454 -> 9.027109 | I22: =I8/100*$F22 -> 0.496490995 | J22: =J8/100*$F22 -> 4.78436777 | K22: =K8*$F22 -> 17.29730755 | L22: =L8*$F22 -> 9.679890284 | M22: =M8*$F22 -> 4.675160544 | N22: =N8/100*$F22*1000 -> 36.108436 | O22: =O8/100*$F22*1000 -> 13.5406635 | P22: 0.9027109 | Q22: 99.298199 | R22: 18.054218 | S22: 19.8596398 | T22: =T8*$F22 -> 1.35406635 | U22: =U8*$F22 -> 54.162654 | V22: 2708.1327 | W22: 722.16872 | X22: 0.99298199 | Y22: =Y8*$F22 -> 162.487962 | Z22: =Z8/100*$F22 -> 6.58978957 | AA22: =Z22*AA8 -> 6.58978957 | AB22: =AB8/100*$F22 -> 0.18054218 | AE22: =E8/$E$18*100 -> 87.4 | AF22: =AE22/100*H8 -> 79.534
B23: =B9 -> Range Cube, 25% | E23: =E9*(H9/100) -> 2.67 | F23: =E23*0.454 -> 1.21218 | I23: =I9/100*$F23 -> 0.3394104 | J23: 0.9212568 | K23: =K9*$F23 -> 3.33069341 | L23: =L9*$F23 -> 2.206506039 | M23: 1.443872068 | N23: =N9/100*$F23*1000 -> 24.2436 | O23: 13.33398 | P23: 12.1218 | Q23: 0 | R23: =R9/100*$F23*1000 -> 0 | S23: 0 | T23: =T9*$F23 -> 0 | U23: 0 | V23: 0 | W23: 0 | X23: 0 | Y23: 0 | Z23: =Z9/100*$F23 -> 0.363654 | AA23: =Z23*AA9 -> 0.1090962 | AB23: =AB9/100*$F23 -> 0 | AE23: =E9/$E$18*100 -> 12 | AF23: =AE23/100*H9 -> 10.68
B24: B-350 RCRC Mineral | E24: 0.1485 | F24: 0.067419 | I24: 0.0024607935 | J24: 0.0067419 | K24: 0.0243247752 | L24: 0 | M24: 0 | N24: 6.7419 | O24: 3.37095 | P24: 5.123844 | Q24: 0.4989006 | R24: =R10/100*$F24*1000 -> 0.7213833 | S24: 0.2224827 | T24: =T10*$F24 -> 10.045431 | U24: 136.321218 | V24: 251.742546 | W24: 209.67309 | X24: 2.089989 | Y24: 406.941084 | Z24: 0 | AA24: 0 | AB24: 0.0009371241 | AE24: 0.6 | AF24: 0.594
B25: 0 | E25: 0 | F25: 0 | I25: 0 | J25: 0 | K25: 0 | L25: 0 | M25: 0 | N25: 0 | O25: 0 | P25: 0 | Q25: 0 | R25: =R11/100*$F25*1000 -> 0 | S25: 0 | T25: =T11*$F25 -> 0 | U25: 0 | V25: 0 | W25: 0 | X25: 0 | Y25: 0 | Z25: 0 | AA25: 0 | AB25: 0 | AE25: 0 | AF25: 0
B26: 0 | E26: 0 | F26: 0 | I26: 0 | J26: 0 | K26: 0 | L26: 0 | M26: 0 | N26: 0 | O26: 0 | P26: 0 | Q26: 0 | R26: =R12/100*$F26*1000 -> 0 | S26: 0 | T26: =T12*$F26 -> 0 | U26: 0 | V26: 0 | W26: 0 | X26: 0 | Y26: 0 | Z26: 0 | AA26: 0 | AB26: 0 | AE26: 0 | AF26: 0
B27: 0 | E27: 0 | F27: 0 | I27: 0 | J27: 0 | K27: 0 | L27: 0 | M27: 0 | N27: 0 | O27: 0 | P27: 0 | Q27: 0 | R27: =R13/100*$F27*1000 -> 0 | S27: 0 | T27: =T13*$F27 -> 0 | U27: 0 | V27: 0 | W27: 0 | X27: 0 | Y27: 0 | Z27: 0 | AA27: 0 | AB27: 0 | AE27: 0 | AF27: 0
B28: 0 | E28: 0 | F28: 0 | I28: 0 | J28: 0 | K28: 0 | L28: 0 | M28: 0 | N28: 0 | O28: 0 | P28: 0 | Q28: 0 | R28: =R14/100*$F28*1000 -> 0 | S28: 0 | T28: =T14*$F28 -> 0 | U28: 0 | V28: 0 | W28: 0 | X28: 0 | Y28: 0 | Z28: 0 | AA28: 0 | AB28: 0 | AE28: 0 | AF28: 0
B29: 0 | E29: 0 | F29: 0 | I29: 0 | J29: 0 | K29: 0 | L29: 0 | M29: 0 | N29: 0 | O29: 0 | P29: 0 | Q29: 0 | R29: =R15/100*$F29*1000 -> 0 | S29: 0 | T29: =T15*$F29 -> 0 | U29: 0 | V29: 0 | W29: 0 | X29: 0 | Y29: 0 | Z29: 0 | AA29: 0 | AB29: 0 | AE29: 0 | AF29: 0
B30: 0 | E30: 0 | F30: 0 | I30: 0 | J30: 0 | K30: 0 | L30: 0 | M30: 0 | N30: 0 | O30: 0 | P30: 0 | Q30: 0 | R30: =R16/100*$F30*1000 -> 0 | S30: 0 | T30: =T16*$F30 -> 0 | U30: 0 | V30: 0 | W30: 0 | X30: 0 | Y30: 0 | Z30: 0 | AA30: 0 | AB30: 0 | AE30: 0 | AF30: 0
B31: 0 | E31: 0 | F31: 0 | I31: 0 | J31: 0 | K31: 0 | L31: 0 | M31: 0 | N31: 0 | O31: 0 | P31: 0 | Q31: 0 | R31: =R17/100*$F31*1000 -> 0 | S31: 0 | T31: =T17*$F31 -> 0 | U31: 0 | V31: 0 | W31: 0 | X31: 0 | Y31: 0 | Z31: 0 | AA31: 0 | AB31: 0 | AE31: 0 | AF31: 0
B32: Total | E32: =SUM(E22:E31) -> 22.702 | F32: =SUM(F22:F31) -> 10.306708 | H32: =I32/0.454 -> 1.84661275 | I32: =SUM(I22:I31) -> 0.8383621885 | J32: =SUM(J22:J31) -> 5.71236647 | K32: =SUM(K22:K31) -> 20.65232573 | L32: 11.88639632 | M32: 6.119032612 | N32: =SUM(N22:N31) -> 67.093936 | O32: 30.2455935 | P32: 18.1483549 | Q32: 99.7970996 | R32: 18.7756013 | S32: 20.0821225 | T32: 11.39949735 | U32: 190.483872 | V32: =SUM(V22:V30) -> 2959.875246 | W32: =SUM(W22:W31) -> 931.84181 | X32: =SUM(X22:X31) -> 3.08297099 | Y32: =SUM(Y22:Y31) -> 569.429046 | Z32: =SUM(Z22:Z31) -> 6.95344357 | AA32: 6.69888577 | AB32: 0.1814793041 | AE32: =SUM(AE22:AE31) -> 100 | AF32: =SUM(AF22:AF31) -> 90.808
B33: Requirement | D33: DM % | E33: =(E32/E18) -> 0.90808 | H33: =IFERROR(VLOOKUP(Cattle!B7, 'Requirement Calculator'!A4:AQ73,28,FALSE),) -> 1.845280222 | I33: =H33*0.454 -> 0.8377572209 | K33: =IFERROR(VLOOKUP(Cattle!B7,'Requirement Calculator'!A4:AQ73,24,FALSE),) -> 20.35289068 | L33: =IFERROR(VLOOKUP(Cattle!B7,'Requirement Calculator'!A4:AQ73,19,FALSE),) -> 11.78556525 | N33: =IFERROR(VLOOKUP(Cattle!B7,'Requirement Calculator'!A4:AQ73,30,FALSE),) -> 27.1499264 | O33: =IFERROR(VLOOKUP(Cattle!B7,'Requirement Calculator'!A4:AQ73,32,FALSE),) -> 12.87608094 | P33: =IFERROR(VLOOKUP(Cattle!B7,'Requirement Calculator'!A4:AQ73,34,FALSE),) / 100 * $F$32*1000 -> 7.2146956 | Q33: =IFERROR(VLOOKUP(Cattle!B7,'Requirement Calculator'!A4:AQ73,35,FALSE),) / 100 * $F$32*1000 -> 61.840248 | R33: =IFERROR(VLOOKUP(Cattle!$B7,'Requirement Calculator'!$A$4:$AQ$73,36,FALSE),) / 100 * $F$32*1000 -> 12.3680496 | S33: =IFERROR(VLOOKUP(Cattle!$B7,'Requirement Calculator'!$A$4:$AQ$73,37,FALSE),) / 100 * $F$32*1000 -> 15.460062 | T33: =IFERROR(VLOOKUP(Cattle!$B7,'Requirement Calculator'!$A$4:$AQ$73,38,FALSE),) / 100 * $F$32*100 -> 1.5460062 | U33: =IFERROR(VLOOKUP(Cattle!$B7,'Requirement Calculator'!$A$4:$AQ$73,39,FALSE),) / 100 * $F$32*100 -> 103.06708 | V33: =IFERROR(VLOOKUP(Cattle!$B7,'Requirement Calculator'!$A$4:$AQ$73,40,FALSE),) / 100 * $F$32*100 -> 515.3354 | W33: =IFERROR(VLOOKUP(Cattle!$B7,'Requirement Calculator'!$A$4:$AQ$73,41,FALSE),) / 100 * $F$32*100 -> 412.26832 | X33: =IFERROR(VLOOKUP(Cattle!$B7,'Requirement Calculator'!$A$4:$AQ$73,42,FALSE),) / 100 * $F$32*100 -> 1.0306708 | Y33: =IFERROR(VLOOKUP(Cattle!$B7,'Requirement Calculator'!$A$4:$AQ$73,43,FALSE),) / 100 * $F$32*100 -> 309.20124
B34: Decision for DMI to calculate "requirements" | C34: Predicted DMI, lb | D34: =Balancer!F23 -> 22.50942127 | H34: DM Supplied, Mcal/kg, % or mg/day | I34: =I32/F32 -> 0.08134141265 | J34: =J32/F32 -> 0.5542377324 | K34: =K32/F32 -> 2.003775185 | L34: =L32/F32 -> 1.153267981 | M34: =M32/F32 -> 0.5936941856 | N34: =N32/($F32*1000) -> 0.006509734825 | O34: =O32/($F32*1000) -> 0.002934554224 | P34: 0.001760829442 | Q34: 0.009682732799 | R34: 0.001821687517 | S34: 0.001948451678 | T34: =T32/$F32 -> 1.106027002 | U34: =U32/$F32 -> 18.48154348 | V34: 287.1794996 | W34: 90.41119725 | X34: 0.2991227645 | Y34: 55.24839221 | Z34: 0.6746522333 | AA34: 0.6499539688 | AB34: =AB32/$F32 -> 0.01760788257
H35: Mcal/lb | I35: =I33/F32 -> 0.08128271616 | K35: =K32/E32 -> 0.9097139342 | L35: =L32/E32 -> 0.5235836633 | M35: =M32/E32 -> 0.2695371603 | N35: =N33/1000/$F32 -> 0.00263419963 | O35: =O33/1000/$F32 -> 0.00124929133 | P35: 0.0007 | Q35: 0.006 | R35: 0.0012 | S35: 0.0015
H36: As Fed Basis | I36: =I34*$E$33 -> 0.07386451 | J36: =J34*$E$33 -> 0.5032922 | K36: =K34*$E$33*0.454 -> 0.8260930293 | L36: =L34*$E$33*0.454 -> 0.4754558529 | M36: =M34*$E$33*0.454 -> 0.2447613045 | N36: =N34*$E$33 -> 0.00591136 | O36: 0.00266481 | P36: 0.001598974 | Q36: 0.008792696 | R36: 0.001654238 | S36: 0.00176935 | T36: 1.004361 | U36: 16.78272 | V36: 260.78196 | W36: 82.1006 | X36: 0.2716274 | Y36: 50.16996 | Z36: 0.6126382 | AA36: 0.5902102 | AB36: =AB34*$E$33 -> 0.015989366
J38: Partial efficiency coefficient, ME to Nem = | L38: =L32/K32 -> 0.575547591
L39: Adjustment for Growing Cattle
J40: Ionophore adjustment | K40: =Cattle!G15 -> Rumensin | L40: =VLOOKUP(K40,J41:K44,2,FALSE) -> 1
J41: None | K41: 0.977
J42: Rumensin | K42: 1
J43: Bovatec | K43: 0.985
J44: Laidlomycin | K44: 0.985
H63: Energy Balance Model
L64: Cond. Score | O64: Current Energy | S64: Desired Energy
H65: Weight change per condition score | J65: 0.07105 | L65: EBW5 | M65: =Q65/M66 -> 445.079808 | O65: EBW | Q65: =0.851*J70 -> 445.079808 | R65: kg | S65: EBW | T65: =0.851*J71 -> 445.079808 | U65: kg
H66: Current CS = | J66: =Cattle!H11 -> 5 | L66: WAFbcs (weight adjustment factor) Eq. 13-5 | M66: =1-0.07105 *(5-J66) -> 1
H67: Desired CS = | J67: =Cattle!I11 -> 5 | L67: EBWbcs | M67: =M65*M66 -> 445.079808 | O67: AF | Q67: =(0.037683*J66)*100 -> 18.8415 | R67: % | S67: AF | T67: =(0.037683*J67)*100 -> 18.8415 | U67: %
H68: Average CS = | J68: =(J67+J66)/2 -> 5 | L68: SBW | M68: =(Cattle!D11*0.454)*0.96 -> 523.008 | O68: AP | Q68: =(0.200886-(0.0066762*J66))*100 -> 16.7505 | R68: % | S68: AP | T68: =(0.200886-(0.0066762*J67))*100 -> 16.7505 | U68: %
H69: Current SBW = | J69: =M68 -> 523.008 | K69: kg | O69: AW | Q69: =(0.766637 - (0.034506 *J66))*100 -> 59.4107 | R69: % | S69: AW | T69: =(0.766637 - (0.034506 *J67))*100 -> 59.4107 | U69: %
H70: Current Adj Weight = | J70: =J69+J84 -> 523.008 | K70: kg | L70: TF1 | M70: =M65*0.037683 -> 16.7719424 | N70: kg | O70: TF | Q70: =(Q67/100)*Q65 -> 83.85971202 | R70: kg | S70: TF | T70: =(T67/100)*T65 -> 83.85971202 | U70: kg
H71: Desired Adj Weight = | J71: =J69+J85 -> 523.008 | K71: kg | L71: TP1 | M71: =M65*0.194208 -> 86.43805935 | N71: kg | O71: TP | Q71: =(Q68/100)*Q65 -> 74.55309324 | R71: kg | S71: TP | T71: =(T68/100)*T65 -> 74.55309324 | U71: kg
H72: CS 5 WT= | K72: kg | N72: Mcal | O72: TE (total energy of reserves) | Q72: =(9.4*Q70)+(5.7*Q71) -> 1213.233924 | R72: Mcal | S72: TE | T72: =(9.4*T70)+(5.7*T71) -> 1213.233924 | U72: Mcal
U73: Gain or Lose
H74: Wt change for each 1 unit BCS change | J74: =J69*J65 -> 37.1597184 | K74: kg | O74: Pos energy change = | R74: =T72-Q72 -> 0 | S74: Mcal | V74: =T72-Q72 -> 0
H75: Current Adj Weight = | J75: =J70/0.454 -> 1152 | K75: lb | O75: Neg energy change = | R75: =(T72-Q72)*0.8 -> 0 | S75: Mcal | U75: Days to Gain
H76: Desired Adj Weight = | J76: =J71/0.454 -> 1152 | K76: lb | O76: Desired WT Change= | R76: =(J71-J70) -> 0 | S76: kg | U76: Days to Lose
O77: Mcal / kg gain = | Q77: =VLOOKUP(Q79,V84:X94,2,) -> 6.38 | R77: =IF(R74=0,Q77,R74/R76) -> 6.38 | S77: Mcal/kg | U77: Decision | V77: =J74/R86 -> 324.2402208
L78: Average | O78: Mcal / kg loss = | Q78: =VLOOKUP(Q79,V84:X94,3,) -> 5.84 | R78: =IF(R75=0,Q78,R75/R76) -> 5.84 | S78: Mcal/kg | V78: =(-1*J74)/R86 -> -324.2402208
H79: Estimated weights | J79: 1147.871552 | K79: lb | L79: =(J79+J75)/2 -> 1149.935776 | M79: lb | O79: Decision | Q79: =J68 -> 5 | R79: =IF(R85<0,R78,R77) -> 6.38 | S79: Mcal/kg | V79: =V77 -> 324.2402208
H80: (based on estimated weight change rather than "desired") | O80: Desired ADG = | R80: =(J71-J70)/Cattle!E7 -> 0 | S80: kg
O81: Desired ADG = | R81: =R80/0.454 -> 0 | S81: lb.
O82: Maint Req = | R82: =VLOOKUP(Cattle!B7,'Requirement Calculator'!A8:BO73,50, FALSE) -> 8.421161071 | S82: Mcal Nem/day | V82: The Mcal required to gain 1 kg of EBW is different for each BCS.
I83: Adj factor | J83: Adjustment | K83: Adjusted weight | O83: Milk or pregnancy energy = | R83: =VLOOKUP(Cattle!B7,'Requirement Calculator'!A8:BO73,53, FALSE) -> 3.292896128 | S83: Mcal NEM/day | V83: BCS | W83: Mcal/kg EBW gain | X83: Mcal/kg EBW loss
H84: Initial | I84: =J66-5 -> 0 | J84: =I84*J65*J69 -> 0 | K84: =J69+J84 -> 523.008 | O84: Nem Supplied = | R84: =L32 -> 11.88639632 | S84: Mcal Nem/day | V84: 3 | W84: 5.3 | X84: 4.76
H85: Desired | I85: =J67-5 -> 0 | J85: =I85*J65*J69 -> 0 | K85: =J69+J85 -> 523.008 | O85: Difference = | R85: =R84-R82-R83 -> 0.1723391245 | S85: Mcal Nem/day | V85: 3.5 | W85: =AVERAGE(W84, W86) -> 5.57 | X85: =AVERAGE(X84, X86) -> 5.03
H86: CS 5 WT | I86: =5-J66 -> 0 | J86: =J70*J65*I86 -> 0 | K86: =J86+J69 -> 523.008 | O86: Nem available for gain | R86: =R85*0.665 -> 0.1146055178 | V86: 4 | W86: 5.84 | X86: 5.3
O87: Nem available for loss | R87: =R85*0.8 -> 0.1378712996 | V87: 4.5 | W87: =AVERAGE(W86, W88) -> 6.11 | X87: =AVERAGE(X86, X88) -> 5.57
O88: kg/day gain | R88: =R86/R79 -> 0.0179632473 | V88: 5 | W88: 6.38 | X88: 5.84
O89: kg/day loss | R89: =R87/R79 -> 0.02160992157 | V89: 5.5 | W89: =AVERAGE(W88, W90) -> 6.645 | X89: =AVERAGE(X88, X90) -> 6.11
N90: Decision | O90: ADG = | R90: =IF(R85<0,R89,R88) -> 0.0179632473 | S90: kg | V90: 6 | W90: 6.91 | X90: 6.38
N91: Conversion | O91: ADG = | R91: =R90/0.454 -> 0.03956662402 | S91: lb | V91: 6.5 | W91: =AVERAGE(W90, W92) -> 7.18 | X91: =AVERAGE(X90, X92) -> 6.645
O92: Days to 1 CS change = | R92: =J74/R90 -> 2068.652609 | S92: days | V92: 7 | W92: 7.45 | X92: 6.91
O93: CS change during feeding period = | R93: =Cattle!E7/'Nutrient and Energy Balance'!R92 -> 0.04350657989 | S93: Units | T93: =IF(R93<0,"Loss","Gain") -> Gain | V93: 7.5 | W93: =AVERAGE(W92, W94) -> 7.72 | X93: =AVERAGE(X92, X94) -> 7.18
O94: Average period BCS (for adjusting maintenance) | R94: =(J66+(J66+R93))/2 -> 5.02175329 | V94: 8 | W94: 7.99 | X94: 7.45

Sheet Requirement Calculator (hidden)
B1: Requirement Calculator | T1: Nutrient Requirement Generator for Beef Cows | AW1: Minimum
T2: Oklahoma State University | AW2: CP, lb/day
A3: 1 | B3: 2 | C3: 3 | D3: 4 | E3: 5 | F3: 6 | G3: 7 | H3: 8 | I3: 9 | J3: 10 | K3: 11 | L3: 12 | M3: 13 | N3: 14 | O3: 15 | P3: 16 | Q3: 17 | R3: 18 | S3: 19 | T3: 20 | U3: 21 | V3: 22 | W3: 23 | X3: 24 | Y3: 25 | Z3: 26 | AA3: 27 | AB3: 28 | AC3: 29 | AD3: 30 | AE3: 31 | AF3: 32 | AG3: 33 | AH3: 34 | AI3: 35 | AJ3: 36 | AK3: 37 | AL3: 38 | AM3: 39 | AN3: 40 | AO3: 41 | AP3: 42 | AQ3: 43 | AR3: 44 | AS3: 45 | AT3: 46 | AU3: 47 | AV3: 48 | AW3: 49 | AX3: 50 | AY3: 51 | AZ3: 52 | BA3: 53 | BB3: 54 | BC3: 55 | BD3: 56 | BE3: 57 | BF3: 58 | BG3: 59 | BH3: 60 | BI3: 61 | BJ3: 62 | BK3: 63 | BL3: 64 | BM3: 65 | BN3: 66 | BO3: 67 | BP3: 68 | BQ3: 69 | BR3: 70 | BS3: 71 | BT3: 72
B4: Gestating cow, middle 1/3 of pregnancy | AR4: Calculations
B5: Current | G5: Expected | I5: Current | N5: NEm | O5: Gravid | Q5: Predicted | R5: Predicted | T5: NEm | U5: NEm | V5: Weight | X5: ME | Y5: ME | Z5: Neg | AA5: Actual | AB5: Crude Protein | AD5: Ca | AE5: Ca | AF5: Phos | AG5: Phos | AH5: Na | AI5: K | AJ5: MG | AK5: S | AL5: CO | AM5: CU | AN5: FE | AO5: MN | AP5: SE | AQ5: ZN | BB5: Mid Gestation | BR5: Days to
B6: Weight | E6: BW.75 | G6: Calf | I6: BCS | J6: NEm | L6: NEm | M6: NEm2 | N6: sup/req | O6: Uterus | Q6: DM Intake | R6: DM Intake | S6: Nem Sup | T6: Req | U6: Req | V6: Initial | W6: Final | X6: Req | Y6: Req | Z6: Req | AA6: DM Intake | AB6: Req | AC6: Req | AD6: Req | AE6: Req | AF6: Req | AG6: Req | AH6: Req | AI6: Req | AJ6: Req | AK6: Req | AL6: Req | AM6: Req | AN6: Req | AO6: Req | AP6: Req | AQ6: Req | AR6: Maint MP | AT6: Gest MP | AU6: Total MP | AV6: MP | AX6: Nem maint | BA6: Nem Gest | BB6: Energy | BL6: Maternal | BM6: SWG | BN6: Fetal | BO6: Fetal | BP6: Total | BQ6: Desired | BR6: gain or lose | BT6: Number of
B7: lb | C7: Weight (kg) | D7: SBW | E7: MBW | G7: Birthweight | I7: (1-9) | J7: Mcal/kg | L7: Mcal/lb | M7: Mcal/kg | N7: Ratio | O7: ADG, lb | Q7: lb/day | R7: kg/day | S7: Mcal/day | T7: Mcal/day | U7: Mcal/lb | V7: lb | W7: lb | X7: Mcal/day | Y7: Mcal/kg | Z7: Mcal/kg | AA7: lb/day | AB7: lb/day | AC7: % of DM | AD7: g/day | AE7: % of DM | AF7: g/day | AG7: % of DM | AH7: % of DM | AI7: % of DM | AJ7: % of DM | AK7: % of DM | AL7: ppm | AM7: ppm | AN7: ppm | AO7: ppm | AP7: ppm | AQ7: ppm | AR7: g/day | AT7: g/day | AU7: g/day | AV7: exponent | AW7: =(AU8/0.67)/454 -> 1.423384383 | AX7: Mcal/day | BA7: Mcal/day | BB7: exponent | BL7: ADG, kg | BM7: lb | BN7: ADG, kg | BO7: ADG, lb | BP7: ADG,lb | BQ7: ADG | BR7: one score | BT7: Head
A8: Mid Gestation, Dry Cow | B8: =Cattle!C11 -> 1200 | C8: =B8*0.454 -> 544.8 | D8: =C8*0.96 -> 523.008 | E8: =D8^0.75 -> 109.3657282 | G8: =Cattle!E11 -> 80 | H8: 0 | I8: =Cattle!H11 -> 5 | J8: ='Nutrient and Energy Balance'!L34 -> 1.153267981 | L8: =J8*0.454 -> 0.5235836633 | M8: =J8^2 -> 1.330027035 | N8: =S8/T8 -> 1.335357807 | O8: =BQ8/0.454 -> 0.6586209576 | Q8: =R8/0.454 -> 22.50942127 | R8: =(E8*(0.002263+(0.134788*J8)-(0.063407*J8^2)+(0.013081*J8^3))) -> 10.21927726 | S8: =R8*J8 -> 11.78556525 | T8: =AX8+BA8 -> 8.825773278 | U8: =T8/Q8 -> 0.392092412 | V8: =Cattle!C$11 -> 1200 | W8: =V8+((BL8+BO8)*Cattle!E$7) -> 1228.527945 | X8: =T8/'Nutrient and Energy Balance'!L38 -> 15.33456732 | Y8: =X8/R8 -> 1.500553017 | AA8: =Balancer!F22 -> 22.702 | AB8: =IF(AW7 < AW8,AW8,AW7) -> 1.800753702 | AC8: =(AB8/Q8)*100 -> 8 | AD8: =((0.0154*D8)+(0.152*(G8*0.454)))/0.5 -> 27.1499264 | AE8: =((AD8/454)/Q8)*100 -> 0.2656736452 | AF8: =(0.016*D8)+(0.0844*((G8*0.454)))/0.68 -> 12.87608094 | AG8: =((AF8/454)/Q8)*100 -> 0.1259979607 | AH8: 0.07 | AI8: 0.6 | AJ8: 0.12 | AK8: 0.15 | AL8: 0.15 | AM8: 10 | AN8: 50 | AO8: 40 | AP8: 0.1 | AQ8: 30 | AR8: =3.8*E8 -> 415.5897671 | AT8: =((G8*0.454)*(0.001669-(0.00000211*142))*EXP(AV8)*6.25)/0.65 -> 17.37529444 | AU8: =AR8+AT8 -> 432.9650616 | AV8: =(0.0278-(0.0000176*142))*142 -> 3.5927136 | AW8: =Q8*0.08 -> 1.800753702 | AX8: =E8*(Cattle!O19)*1*(0.8+(I16-1)*0.05) -> 8.421161071 | BA8: =(($G8*0.454)*(0.576/0.13)*(0.05855-(0.0000996*142))*EXP(BB8))/1000 -> 0.4046122074 | BB8: =(0.03233-(0.0000275*142))*(142) -> 4.03635 | BL8: ='Nutrient and Energy Balance'!R90 -> 0.0179632473 | BM8: =BL8/0.454 -> 0.03956662402 | BN8: =(G8*0.454)*0.01828*(0.02-0.0000286*142)*EXP(0.02*142-0.0000143*142^2) -> 0.1357523173 | BO8: =BN8/0.454 -> 0.2990139148 | BP8: =BM8+BO8 -> 0.3385805388 | BQ8: ='Nutrient and Energy Balance'!R81+BO8 -> 0.2990139148 | BR8: ='Nutrient and Energy Balance'!$R$92 -> 2068.652609 | BT8: =Cattle!$B$11 -> 10
AX9: ='Nutrient and Energy Balance'!K86^0.75*(Cattle!O19)*1*(0.8+(I16-1)*0.05) -> 8.421161071
B12: Gestating cow, last 1/3 of pregnancy
B13: Current | G13: Expected | I13: Current | N13: NEm | O13: Gravid | Q13: Predicted | R13: Predicted | T13: NEm | U13: NEm | V13: Weight | X13: ME | Y13: ME | Z13: Neg | AA13: Intake | AB13: Crude Protein | AD13: Ca | AE13: Ca | AF13: Phos | AG13: Phos | AH13: Na | AI13: K | AJ13: MG | AK13: S | AL13: CO | AM13: CU | AN13: FE | AO13: MN | AP13: SE | AQ13: ZN | BB13: Late Gestation
B14: Weight | C14: Average | E14: BW.75 | G14: Calf | I14: BCS | J14: NEm | L14: NEm | M14: NEm2 | N14: sup/req | O14: Uterus | Q14: DM Intake | R14: DM Intake | S14: Nem Sup | T14: Req | U14: Req | V14: Initial | W14: Final | X14: Req | Y14: Req | Z14: Req | AA14: Adjustment | AB14: Req | AC14: Req | AD14: Req | AE14: Req | AF14: Req | AG14: Req | AH14: Req | AI14: Req | AJ14: Req | AK14: Req | AL14: Req | AM14: Req | AN14: Req | AO14: Req | AP14: Req | AQ14: Req | AR14: Maint MP | AT14: Gest MP | AU14: Total MP | AV14: MP | AX14: Nem maint | BA14: Nem Gest | BB14: Energy | BT14: Number of
B15: lb | C15: Weight (kg) | D15: SBW | E15: MBW | G15: Birthweight | I15: (1-9) | J15: Mcal/kg | L15: Mcal/lb | M15: Mcal/kg | N15: Ratio | O15: ADG, lb | Q15: lb/day | R15: kg/day | S15: Mcal/day | T15: Mcal/day | U15: Mcal/lb | V15: lb | W15: lb | X15: Mcal/day | Y15: Mcal/kg | Z15: Mcal/kg | AA15: % | AB15: lb/day | AC15: % of DM | AD15: g/day | AE15: % of DM | AF15: g/day | AG15: % of DM | AH15: % of DM | AI15: % of DM | AJ15: % of DM | AK15: % of DM | AL15: ppm | AM15: ppm | AN15: ppm | AO15: ppm | AP15: ppm | AQ15: ppm | AR15: g/day | AT15: g/day | AU15: g/day | AV15: exponent | AW15: =(AU16/0.67)/454 -> 1.845280222 | AX15: Mcal/day | BA15: Mcal/day | BB15: exponent | BT15: Head
A16: Late Gestation, Dry Cow | B16: =Cattle!C11 -> 1200 | C16: =B16*0.454 -> 544.8 | D16: =C16*0.96 -> 523.008 | E16: =D16^0.75 -> 109.3657282 | G16: =Cattle!E11 -> 80 | H16: 0 | I16: =Cattle!H11 -> 5 | J16: ='Nutrient and Energy Balance'!L$34 -> 1.153267981 | L16: =J16*0.454 -> 0.5235836633 | M16: =J16^2 -> 1.330027035 | N16: =S16/T16 -> 1.006104465 | O16: =BQ16/0.454 -> 2.594249854 | Q16: =R16/0.454 -> 22.50942127 | R16: =(E16*(0.002263+(0.134788*J16)-(0.063407*J16^2)+(0.013081*J16^3))) -> 10.21927726 | S16: =R16*J16 -> 11.78556525 | T16: =AX16+BA16 -> 11.7140572 | U16: =T16/Q16 -> 0.520406858 | V16: =Cattle!C$11 -> 1200 | W16: =V16+((BL16+BO16)*Cattle!E$7) -> 1307.617741 | X16: =T16/'Nutrient and Energy Balance'!L38 -> 20.35289068 | Y16: =X16/R16 -> 1.991617427 | AB16: =IF(AW15 < AW16,AW16,AW15) -> 1.845280222 | AC16: =(AB16/Q16)*100 -> 8.197812819 | AD16: =((0.0154*D16)+(0.152*(G16*0.454)))/0.5 -> 27.1499264 | AE16: =((AD16/454)/Q16)*100 -> 0.2656736452 | AF16: =(0.016*D16)+(0.0844*((G16*0.454)))/0.68 -> 12.87608094 | AG16: =((AF16/454)/Q16)*100 -> 0.1259979607 | AH16: 0.07 | AI16: 0.6 | AJ16: 0.12 | AK16: 0.15 | AL16: 0.15 | AM16: 10 | AN16: 50 | AO16: 40 | AP16: 0.1 | AQ16: 30 | AR16: =3.8*E16 -> 415.5897671 | AT16: =(($G16*0.454)*(0.001669-(0.00000211*253))*EXP(AV16)*6.25)/0.65 -> 145.7075709 | AU16: =AR16+AT16 -> 561.297338 | AV16: =(0.0278-(0.0000176*253))*253 -> 5.9068416 | AW16: =Q16*0.08 -> 1.800753702 | AX16: =E16*(Cattle!O19)*1*(0.8+(I16-1)*0.05) -> 8.421161071 | BA16: =((G16*0.454)*(0.576/0.13)*(0.05855-(0.0000996*253))*EXP(BB16))/1000 -> 3.292896128 | BB16: =(0.03233-(0.0000275*253))*(253) -> 6.4192425 | BL16: ='Nutrient and Energy Balance'!R90 -> 0.0179632473 | BM16: =BL16/0.454 -> 0.03956662402 | BN16: =(G16*0.454)*0.01828*(0.02-0.0000286*253)*EXP(0.02*253-0.0000143*253^2) -> 0.5347164028 | BO16: =BN16/0.454 -> 1.177789433 | BP16: =BM16+BO16 -> 1.217356058 | BQ16: ='Nutrient and Energy Balance'!$R$81+BO16 -> 1.177789433 | BR16: ='Nutrient and Energy Balance'!$R$92 -> 2068.652609 | BT16: =Cattle!$B$11 -> 10
B20: Lactating cow, first 90 days after calving
B21: Current | G21: Expected | I21: Current | N21: NEm | O21: Gravid | Q21: Predicted | R21: Predicted | T21: NEm | U21: NEm | V21: Weight | X21: ME | Y21: ME | Z21: Neg | AA21: Intake | AB21: Crude Protein | AD21: Ca | AE21: Ca | AF21: Phos | AG21: Phos | AH21: Na | AI21: K | AJ21: MG | AK21: S | AL21: CO | AM21: CU | AN21: FE | AO21: MN | AP21: SE | AQ21: ZN
B22: Weight | E22: BW.75 | G22: Calf | H22: Milk | I22: BCS | J22: NEm | L22: NEm | M22: NEm2 | N22: sup/req | O22: Uterus | Q22: DM Intake | R22: DM Intake | S22: Supplied | T22: Req | U22: Req | V22: Initial | W22: Final | X22: Req | Y22: Req | Z22: Req | AA22: Adjustment | AB22: Req | AC22: Req | AD22: Req | AE22: Req | AF22: Req | AG22: Req | AH22: Req | AI22: Req | AJ22: Req | AK22: Req | AL22: Req | AM22: Req | AN22: Req | AO22: Req | AP22: Req | AQ22: Req | AR22: Maint MP | AT22: Lact MP | AU22: Total MP | AX22: Nem maint | BA22: Nem lact | BT22: Number of
B23: lb | C23: Weight (kg) | D23: SBW | E23: MBW | G23: Birthweight | H23: kg/day | I23: (1-9) | J23: Mcal/kg | L23: Mcal/lb | M23: Mcal/kg | N23: Ratio | O23: ADG, lb | Q23: lb/day | R23: kg/day | S23: Mcal/day | T23: Mcal/day | U23: Mcal/lb | V23: lb | W23: lb | X23: Mcal/day | Y23: Mcal/kg | Z23: Mcal/kg | AA23: % | AB23: lb/day | AC23: % of DM | AD23: g/day | AE23: % of DM | AF23: g/day | AG23: % of DM | AH23: % of DM | AI23: % of DM | AJ23: % of DM | AK23: % of DM | AL23: ppm | AM23: ppm | AN23: ppm | AO23: ppm | AP23: ppm | AQ23: ppm | AR23: g/day | AT23: g/day | AU23: g/day | AW23: =(AU24/0.67)/454 -> 3.25785516 | AX23: Mcal/day | BA23: Mcal/day | BT23: Head
A24: Early Lactation, Mature Cow | B24: =Cattle!C11 -> 1200 | C24: =B24*0.454 -> 544.8 | D24: =C24*0.96 -> 523.008 | E24: =D24^0.75 -> 109.3657282 | G24: =Cattle!E11 -> 80 | H24: =Cattle!G11*0.454 -> 11 | I24: =Cattle!H11 -> 5 | J24: ='Nutrient and Energy Balance'!L$34 -> 1.153267981 | L24: =J24*0.454 -> 0.5235836633 | M24: =J24^2 -> 1.330027035 | N24: =S24/T24 -> 0.7787003207 | O24: =BQ24/0.454 -> 0 | P24: =Q24/B24 -> 0.02481511978 | Q24: =R24/0.454 -> 29.77814374 | R24: =(E24*(0.002263+(0.134788*J24)-(0.063407*J24^2)+(0.013081*J24^3)))+H24*0.3 -> 13.51927726 | S24: =R24*J24 -> 15.59134958 | T24: =AX24+BA24 -> 20.02227194 | U24: =T24/Q24 -> 0.6723814661 | V24: =Cattle!C$11 -> 1200 | W24: =V24+((BL24)*Cattle!E$7) -> 1201.616692 | X24: =T24/'Nutrient and Energy Balance'!L38 -> 34.78821258 | Y24: =X24/R24 -> 2.573230204 | AB24: =IF(AW23 < AW24,AW24,AW23) -> 3.25785516 | AC24: =(AB24/'Nutrient and Energy Balance'!E32)*100 -> 14.35052048 | AD24: =((0.0154*D24)+(1.23*H24))/0.5 -> 43.1686464 | AE24: =((AD24/454)/Q24)*100 -> 0.3193117915 | AF24: =((0.016*D24)+(H24*0.95)/0.68) -> 23.73577506 | AG24: =((AF24/454)/Q24)*100 -> 0.1755698519 | AH24: 0.1 | AI24: 0.7 | AJ24: 0.2 | AK24: 0.15 | AL24: 0.15 | AM24: 10 | AN24: 50 | AO24: 40 | AP24: 0.1 | AQ24: 30 | AR24: =3.8*E24 -> 415.5897671 | AT24: =((H24*0.034)/0.65)*1000 -> 575.3846154 | AU24: =AR24+AT24 -> 990.9743825 | AW24: =Q24*0.08 -> 2.382251499 | AX24: =E24*(Cattle!P19)*1.2*(0.8+(I24-1)*0.05) -> 12.12647194 | BA24: =H24*0.7178 -> 7.8958 | BL24: ='Nutrient and Energy Balance'!R90 -> 0.0179632473 | BM24: =BL24/0.454 -> 0.03956662402 | BO24: N/A | BP24: =BM24 -> 0.03956662402 | BQ24: ='Nutrient and Energy Balance'!$R$81 -> 0 | BR24: ='Nutrient and Energy Balance'!$R$92 -> 2068.652609 | BT24: =Cattle!$B$11 -> 10
Q26: M. Gross equation for lactating cows, October 2019: DMI= -4.336 + (0.086427 (BW^.75) + 0.30 (Milk yield) + 6.005785 (NEm, Mcal/kg)
B28: Lactating cow, last 120 days of lactation (day 91 to day 210 after calving)
B29: Current | G29: Expected | I29: Current | N29: NEm | O29: Gravid | Q29: Predicted | R29: Predicted | T29: NEm | U29: NEm | V29: Weight | X29: ME | Y29: ME | Z29: Neg | AA29: Intake | AB29: Crude Protein | AD29: Ca | AE29: Ca | AF29: Phos | AG29: Phos | AH29: Na | AI29: K | AJ29: MG | AK29: S | AL29: CO | AM29: CU | AN29: FE | AO29: MN | AP29: SE | AQ29: ZN | BC29: Late Lactation (early gestation)
B30: Weight | E30: BW.75 | G30: Calf | H30: Milk | I30: BCS | J30: NEm | L30: NEm | M30: NEm2 | N30: sup/req | O30: Uterus | Q30: DM Intake | R30: DM Intake | S30: Supplied | T30: Req | U30: Req | V30: Initial | W30: Final | X30: Req | Y30: Req | Z30: Req | AA30: Adjustment | AB30: Req | AC30: Req | AD30: Req | AE30: Req | AF30: Req | AG30: Req | AH30: Req | AI30: Req | AJ30: Req | AK30: Req | AL30: Req | AM30: Req | AN30: Req | AO30: Req | AP30: Req | AQ30: Req | AR30: Maint MP | AS30: Gest MP | AT30: Lact MP | AU30: Total MP | AV30: MP | AX30: Nem maint | BA30: Nem lact | BB30: Nem Gest | BC30: Energy | BT30: Number of
B31: lb | C31: Weight (kg) | D31: SBW | E31: MBW | G31: Birthweight | H31: kg/day | I31: (1-9) | J31: Mcal/kg | L31: Mcal/lb | M31: Mcal/kg | N31: Ratio | O31: ADG, lb | Q31: lb/day | R31: kg/day | S31: Mcal/day | T31: Mcal/day | U31: Mcal/lb | V31: lb | W31: lb | X31: Mcal/day | Y31: Mcal/kg | Z31: Mcal/kg | AA31: % | AB31: lb/day | AC31: % of DM | AD31: g/day | AE31: % of DM | AF31: g/day | AG31: % of DM | AH31: % of DM | AI31: % of DM | AJ31: % of DM | AK31: % of DM | AL31: ppm | AM31: ppm | AN31: ppm | AO31: ppm | AP31: ppm | AQ31: ppm | AR31: g/day | AS31: g/day | AT31: g/day | AU31: g/day | AV31: exponent | AW31: =(AU32/0.67)/454 -> 2.510029959 | AX31: Mcal/day | BA31: Mcal/day | BB31: Mcal/day | BC31: exponent | BT31: Head
A32: Late Lactation, Mature Cow | B32: =Cattle!C11 -> 1200 | C32: =B32*0.454 -> 544.8 | D32: =C32*0.96 -> 523.008 | E32: =D32^0.75 -> 109.3657282 | G32: =Cattle!E11 -> 80 | H32: =(Cattle!G11*0.6*0.454) -> 6.6 | I32: =Cattle!H11 -> 5 | J32: ='Nutrient and Energy Balance'!L$34 -> 1.153267981 | L32: =J32*0.454 -> 0.5235836633 | M32: =J32^2 -> 1.330027035 | N32: =S32/T32 -> 0.8295003925 | O32: =BQ32/0.454 -> 0.1857280233 | Q32: =R32/0.454 -> 26.87065475 | R32: =(E32*(0.002263+(0.134788*J32)-(0.063407*J32^2)+(0.013081*J32^3)))+H32*0.3 -> 12.19927726 | S32: =R32*J32 -> 14.06903585 | T32: =AX32+BA32+BB32 -> 16.96085496 | U32: =T32/Q32 -> 0.6312036353 | V32: =Cattle!C$11 -> 1200 | W32: =V32+((BL32+BO32)*Cattle!E$7) -> 1209.205539 | X32: =T32/'Nutrient and Energy Balance'!L38 -> 29.46907472 | Y32: =X32/R32 -> 2.415641033 | AB32: =IF(AW31 < AW32,AW32,AW31) -> 2.510029959 | AC32: =(AB32/Q32)*100 -> 9.341156672 | AD32: =((0.0154*D32)+(1.23*H32))/0.5 -> 32.3446464 | AE32: =((AD32/454)/Q32)*100 -> 0.2651357594 | AF32: =((0.016*D32)+(0.0844*(G32*0.454))+(H32*0.95))/0.68 -> 26.03461176 | AG32: =((AF32/454)/Q32)*100 -> 0.2134110998 | AH32: 0.1 | AI32: 0.7 | AJ32: 0.2 | AK32: 0.15 | AL32: 0.15 | AM32: 10 | AN32: 50 | AO32: 40 | AP32: 0.1 | AQ32: 30 | AR32: =3.8*E32 -> 415.5897671 | AS32: =(($G32*0.454)*(0.001669-(0.00000211*60))*EXP(AV32)*6.25)/0.65 -> 2.68037658 | AT32: =((H32*0.034)/0.65)*1000 -> 345.2307692 | AU32: =AR32+AS32+AT32 -> 763.5009129 | AV32: =(0.0278-(0.0000176*60))*60 -> 1.60464 | AW32: =Q32*0.08 -> 2.14965238 | AX32: =E32*(Cattle!P19)*1.2*(0.8+(I24-1)*0.05) -> 12.12647194 | BA32: =H32*0.7178 -> 4.73748 | BB32: =(($G32*0.454)*(0.576/0.13)*(0.05855-(0.0000996*60))*EXP(BC32))/1000 -> 0.09690302013 | BC32: =(0.03233-(0.0000275*81))*(81) -> 2.4383025 | BL32: ='Nutrient and Energy Balance'!R90 -> 0.0179632473 | BM32: =BL32/0.454 -> 0.03956662402 | BN32: =(G32*0.454)*0.01828*(0.02-0.0000286*60)*EXP(0.02*60-0.0000143*60^2) -> 0.03828151724 | BO32: =BN32/0.454 -> 0.08432052257 | BP32: =BM32+BO32 -> 0.1238871466 | BQ32: ='Nutrient and Energy Balance'!$R$81+BO32 -> 0.08432052257 | BR32: ='Nutrient and Energy Balance'!$R$92 -> 2068.652609 | BT32: =Cattle!$B$11 -> 10
B36: Gestating Bred Heifer, middle 1/3 of pregnancy
B37: Current | F37: Mature | G37: Expected | I37: Current | N37: NEm | O37: Gravid | P37: Maternal | Q37: Predicted | R37: Predicted | T37: NEm | U37: NEm | V37: Weight | X37: ME | Y37: ME | Z37: Neg | AA37: Intake | AB37: Crude Protein | AD37: Ca | AE37: Ca | AF37: Phos | AG37: Phos | AH37: Na | AI37: K | AJ37: MG | AK37: S | AL37: CO | AM37: CU | AN37: FE | AO37: MN | AP37: SE | AQ37: ZN | AR37: MP for | AS37: MP for | AT37: MP for | AW37: NP req for | BC37: Maintenance | BD37: Intake for | BE37: Diet RE | BI37: Equiv Empty | BK37: Empty body | BL37: Shrunk | BS37: Gravid Uterus
B38: Weight | E38: BW.75 | F38: Wt @ | G38: Calf | H38: Milk | I38: BCS | J38: NEm | K38: Neg | L38: NEm | M38: NEm2 | N38: sup/req | O38: Uterus | P38: Tissue | Q38: DM Intake | R38: DM Intake | S38: Nem Sup | T38: Req | U38: Req | V38: Initial | W38: Final | X38: Req | Y38: Req | Z38: Req | AA38: Adjustment | AB38: Req | AC38: Req | AD38: Req | AE38: Req | AF38: Req | AG38: Req | AH38: Req | AI38: Req | AJ38: Req | AK38: Req | AL38: Req | AM38: Req | AN38: Req | AO38: Req | AP38: Req | AQ38: Req | AR38: Maint. | AS38: Growth | AT38: Gest. | AU38: Total MP | AV38: MP | AW38: gain | AX38: NEm maint | AY38: NEm Growth | AZ38: Ney | BA38: Nemgest | BB38: Energy | BC38: & Pregnancy | BD38: Growth | BE38: Available | BF38: Empty BW | BG38: Final SBW | BI38: BW | BK38: gain | BL38: Wt Gain | BN38: ADGpreg | BO38: ADGpreg | BP38: Total | BQ38: Desired | BR38: Days to | BS38: Wt, kg | BT38: Number of
B39: lb | C39: Weight (kg) | D39: SBW | E39: MBW | F39: BCS=5 | G39: Birthweight | H39: kg/day | I39: (1-9) | J39: Mcal/kg | K39: Mcal/kg | L39: Mcal/lb | M39: Mcal/kg | N39: Ratio | O39: ADG, lb | P39: ADG, lb | Q39: lb/day | R39: kg/day | S39: Mcal/day | T39: Mcal/day | U39: Mcal/lb | V39: lb | W39: lb | X39: Mcal/day | Y39: Mcal/kg | Z39: Mcal/kg | AA39: % | AB39: lb/day | AC39: % of DM | AD39: g/day | AE39: % of DM | AF39: g/day | AG39: % of DM | AH39: % of DM | AI39: % of DM | AJ39: % of DM | AK39: % of DM | AL39: ppm | AM39: ppm | AN39: ppm | AO39: ppm | AP39: ppm | AQ39: ppm | AR39: g/day | AS39: g/day | AT39: g/day | AU39: g/day | AV39: exponent | AW39: g/day | AX39: Mcal/day | AY39: Mcal/day | AZ39: Mcal/day | BA39: Mcal/day | BB39: exponent | BC39: kg | BD39: kg | BE39: Mcal/d | BF39: EBW | BG39: FSBW | BH39: EQSBW | BI39: EQEBW | BJ39: RE | BK39: EBG | BL39: SWG, kg | BM39: SWG, lb | BN39: kg/d | BO39: lb/day | BP39: Gain, lb | BQ39: Gain, lb | BR39: 1 CS Chng | BS39: CW | BT39: Head
A40: Mid Gestation, Bred Heifer | B40: =(V40+(V40+(1*Cattle!E7)))/2 -> 1245 | C40: =B40*0.454 -> 565.23 | D40: =C40*0.96 -> 542.6208 | E40: =D40^0.75 -> 112.4274416 | F40: =Cattle!D11 -> 1200 | G40: =Cattle!E11 -> 80 | H40: 0 | I40: =Cattle!H11 -> 5 | J40: ='Nutrient and Energy Balance'!L$34 -> 1.153267981 | K40: ='Nutrient and Energy Balance'!M34 -> 0.5936941856 | L40: =J40*0.454 -> 0.5235836633 | M40: =J40^2 -> 1.330027035 | N40: =S40/T40 -> 1.247968194 | O40: =BN40/0.454 -> 0.2990139148 | P40: =BL40/0.454 -> 0.5959274091 | Q40: =R40/0.454 -> 28.33137394 | R40: =(E40)*((0.2435*J40)-(0.0466*J40^2)-0.0869)/J40 -> 12.86244377 | S40: =R40*J40 -> 14.83384455 | T40: =AX40+AY40+BA40 -> 11.88639632 | U40: =T40/Q40 -> 0.4195488842 | V40: =Cattle!C$11 -> 1200 | W40: =V40+((BM40+BO40)*Cattle!E$7) -> 1280.544719 | X40: =T40/'Nutrient and Energy Balance'!L38 -> 20.65232573 | Y40: =X40/R40 -> 1.605630011 | Z40: =(1.42*Y40)-(0.174*Y40^2)+(0.0122*Y40^3)-1.65 -> 0.2319148784 | AA40: =IF(I40 < 7,1,0.95) -> 1 | AB40: =IF(AU41 < AU42,AU42,AU41) -> 2.266509915 | AC40: =(AB40/Q40)*100 -> 8 | AD40: =((0.0154*D40)+((G40*0.454)*(13.7/90))+(AW40*0.071))/0.5 -> 31.99514055 | AE40: =((AD40/454)/Q40)*100 -> 0.2487485359 | AF40: =((0.016*D40)+(0.0844*G40)+(AW40*0.039))/0.68 -> 24.40341101 | AG40: =((AF40/454)/Q40)*100 -> 0.1897260851 | AH40: 0.07 | AI40: 0.6 | AJ40: 0.12 | AK40: 0.15 | AL40: 0.15 | AM40: 10 | AN40: 50 | AO40: 40 | AP40: 0.1 | AQ40: 30 | AR40: =3.8*E40 -> 427.2242781 | AS40: =AW40/0.404 -> 73.64728929 | AT40: =((G40*0.454)*(0.001669-(0.00000211*142))*EXP(AV40)*6.25)/0.65 -> 17.37529444 | AU40: =AR40+AS40+AT40 -> 518.2468618 | AV40: =(0.0278-(0.0000176*142))*142 -> 3.5927136 | AW40: =IF(BL40<0.25,34, BL40*(268-(29.4*(BJ40/BL40)))) -> 29.75350487 | AX40: =E40*(Cattle!O19*1*(0.8+(I40-1)*0.05)) -> 8.656913004 | AY40: =IF(BD40<1.25,1.6,BD40*J40) -> 2.824871112 | AZ40: =((G40*0.454)*(0.05855-0.0000996*142)*EXP(BB40))/1000 -> 0.09131872737 | BA40: =((G40*0.454)*(0.576/0.13)*(0.05855-(0.0000996*142))*EXP(BB40))/1000 -> 0.4046122074 | BB40: =(0.03233*142-0.0000275*142^2) -> 4.03635 | BC40: =(AX40+BA40)/J40 -> 7.857258991 | BD40: ='Nutrient and Energy Balance'!F32-BC40 -> 2.449449009 | BE40: =('Nutrient and Energy Balance'!F32-BC40)*K40 -> 1.454223634 | BF40: =D40*0.891 -> 483.4751328 | BG40: =(F40*0.454)*0.96 -> 523.008 | BH40: =D40*(478/BG40) -> 495.925 | BI40: =(0.891*BH40)-BS40 -> 433.3520773 | BJ40: =IF(BE40<0,0,BE40) -> 1.454223634 | BK40: =(12.341*BI40^-0.6837)*(BJ40^0.9116) -> 0.2733989495 | BL40: =(BK40/0.96)*0.95 -> 0.2705510437 | BM40: =BL40/0.454 -> 0.5959274091 | BN40: =(G40*0.454)*0.01828*(0.02-0.0000286*142)*EXP(0.02*142-0.0000143*142^2) -> 0.1357523173 | BO40: =BN40/0.454 -> 0.2990139148 | BP40: =BM40+BO40 -> 0.8949413239 | BQ40: =IF(BQ41<1,1,BQ41)+BO40 -> 1.299013915 | BR40: ='Nutrient and Energy Balance'!$R$92 -> 2068.652609 | BS40: =(G40*0.454)*0.01828*EXP(0.02*142-0.0000143*142^2) -> 8.51709773 | BT40: =Cattle!$B$11 -> 10
AU41: =(AU40/0.67)/454 -> 1.703750614 | BQ41: ='Nutrient and Energy Balance'!R81 -> 0
AU42: =Q40*0.08 -> 2.266509915
B46: Gestating Heifer, last 1/3 of pregnancy
B47: Current | F47: Mature | G47: Expected | I47: Current | N47: NEm | O47: Gravid | P47: Maternal | Q47: Predicted | R47: Predicted | T47: NEm | U47: NEm | V47: Weight | X47: ME | Y47: ME | Z47: Neg | AA47: Intake | AB47: Crude Protein | AD47: Ca | AE47: Ca | AF47: Phos | AG47: Phos | AH47: Na | AI47: K | AJ47: MG | AK47: S | AL47: CO | AM47: CU | AN47: FE | AO47: MN | AP47: SE | AQ47: ZN | AR47: MP for | AS47: MP for | AT47: MP for | AW47: NP req for | BC47: Maintenance | BD47: Intake for | BE47: Diet RE | BI47: Equiv Empty | BK47: Empty body | BL47: Shrunk | BS47: Gravid Uterus
B48: Weight | E48: BW.75 | F48: Wt @ | G48: Calf | H48: Milk | I48: BCS | J48: NEm | K48: Neg | L48: NEm | M48: NEm2 | N48: sup/req | O48: Uterus | P48: Tissue | Q48: DM Intake | R48: DM Intake | S48: Nem Sup | T48: Req | U48: Req | V48: Initial | W48: Final | X48: Req | Y48: Req | Z48: Req | AA48: Adjustment | AB48: Req | AC48: Req | AD48: Req | AE48: Req | AF48: Req | AG48: Req | AH48: Req | AI48: Req | AJ48: Req | AK48: Req | AL48: Req | AM48: Req | AN48: Req | AO48: Req | AP48: Req | AQ48: Req | AR48: Maint. | AS48: Growth | AT48: Gest. | AU48: Total MP | AV48: MP | AW48: gain | AX48: NEm maint | AY48: NEm Growth | AZ48: Ney | BA48: Nemgest | BB48: Energy | BC48: & Pregnancy | BD48: Growth | BE48: Available | BF48: Empty BW | BG48: Final SBW | BI48: BW | BK48: gain | BL48: Wt Gain | BN48: ADGpreg | BO48: ADGpreg | BS48: Wt, kg | BT48: Number of
B49: lb | C49: Weight (kg) | D49: SBW | E49: MBW | F49: BCS=5 | G49: Birthweight | H49: kg/day | I49: (1-9) | J49: Mcal/kg | K49: Mcal/kg | L49: Mcal/lb | M49: Mcal/kg | N49: Ratio | O49: ADG, lb | P49: ADG, lb | Q49: lb/day | R49: kg/day | S49: Mcal/day | T49: Mcal/day | U49: Mcal/lb | V49: lb | W49: lb | X49: Mcal/day | Y49: Mcal/kg | Z49: Mcal/kg | AA49: % | AB49: lb/day | AC49: % of DM | AD49: g/day | AE49: % of DM | AF49: g/day | AG49: % of DM | AH49: % of DM | AI49: % of DM | AJ49: % of DM | AK49: % of DM | AL49: ppm | AM49: ppm | AN49: ppm | AO49: ppm | AP49: ppm | AQ49: ppm | AR49: g/day | AS49: g/day | AT49: g/day | AU49: g/day | AV49: exponent | AW49: g/day | AX49: Mcal/day | AY49: Mcal/day | AZ49: Mcal/day | BA49: Mcal/day | BB49: exponent | BC49: kg | BD49: kg | BE49: Mcal/d | BF49: EBW | BG49: FSBW | BH49: EQSBW | BI49: EQEBW | BJ49: RE | BK49: EBG | BL49: SWG, kg | BM49: SWG, lb | BN49: kg/d | BO49: lb/day | BS49: CW | BT49: Head
A50: Late Gestation, Bred Heifer | B50: =(V50+(V50+(0.75*Cattle!E7)))/2 -> 1233.75 | C50: =B50*0.454 -> 560.1225 | D50: =C50*0.96 -> 537.7176 | E50: =D50^0.75 -> 111.6646448 | F50: =Cattle!D11 -> 1200 | G50: =Cattle!E11 -> 80 | H50: 0 | I50: =Cattle!H11 -> 5 | J50: ='Nutrient and Energy Balance'!L$34 -> 1.153267981 | K50: ='Nutrient and Energy Balance'!M34 -> 0.5936941856 | L50: =J50*0.454 -> 0.5235836633 | M50: =J50^2 -> 1.330027035 | N50: =S50/T50 -> 1.092070227 | O50: =BN50/0.454 -> 1.177789433 | P50: =BL50/0.454 -> 0 | Q50: =R50/0.454 -> 28.13915145 | R50: =(E50)*((0.2435*J50)-(0.0466*J50^2)-0.0869)/J50 -> 12.77517476 | S50: =R50*J50 -> 14.7332 | T50: =AX50+AY50+BA50 -> 13.49107378 | U50: =T50/Q50 -> 0.4794413861 | V50: =Cattle!C$11 -> 1200 | W50: =V50+((BM50+BO50)*Cattle!E$7) -> 1306.001049 | X50: =T50/'Nutrient and Energy Balance'!L38 -> 23.44041394 | Y50: =X50/R50 -> 1.834840962 | Z50: =(1.42*Y50)-(0.174*Y50^2)+(0.0122*Y50^3)-1.65 -> 0.4450410379 | AA50: =IF(I50 < 7,1,0.95) -> 1 | AB50: =IF(AU51 < AU52,AU52,AU51) -> 2.251132116 | AC50: =(AB50/Q50)*100 -> 8 | AD50: =((0.0154*D50)+((G50*0.454)*(13.7/90))+(AW50*0.071))/0.5 -> 32.4471243 | AE50: =((AD50/454)/Q50)*100 -> 0.2539857569 | AF50: =((0.016*D50)+(0.0844*G50)+(AW50*0.039))/0.68 -> 24.53159059 | AG50: =((AF50/454)/Q50)*100 -> 0.1920254795 | AH50: 0.07 | AI50: 0.6 | AJ50: 0.12 | AK50: 0.15 | AL50: 0.15 | AM50: 10 | AN50: 50 | AO50: 40 | AP50: 0.1 | AQ50: 30 | AR50: =3.8*E50 -> 424.3256501 | AS50: =AW50/0.404 -> 84.15841584 | AT50: =((G50*0.454)*(0.001669-(0.00000211*253))*EXP(AV50)*6.25)/0.65 -> 145.7075709 | AU50: =AR50+AS50+AT50 -> 654.1916369 | AV50: =(0.0278-(0.0000176*253))*253 -> 5.9068416 | AW50: =IF(BL50<0.25,34, BL50*(268-(29.4*(BJ50/BL50)))) -> 34 | AX50: =E50*(Cattle!O19*1*(0.8+(I50-1)*0.05)) -> 8.598177647 | AY50: =IF(BD50<1.25,1.6,BD50*J50) -> 1.6 | AZ50: =((G50*0.454)*(0.05855-0.0000996*253)*EXP(BB50))/1000 -> 0.7431883623 | BA50: =((G50*0.454)*(0.576/0.13)*(0.05855-(0.0000996*253))*EXP(BB50))/1000 -> 3.292896128 | BB50: =(0.03233*253-0.0000275*253^2) -> 6.4192425 | BC50: =(AX50+BA50)/J50 -> 10.31076382 | BD50: ='Nutrient and Energy Balance'!F32-BC50 -> -0.004055824347 | BE50: =('Nutrient and Energy Balance'!F32-BC50)*K50 -> -0.002407919332 | BF50: =D50*0.891 -> 479.1063816 | BG50: =(F50*0.454)*0.96 -> 523.008 | BH50: =D50*(478/BG50) -> 491.44375 | BI50: =(0.891*BH50)-BS50 -> 395.9844959 | BJ50: =IF(BE50<0,0,BE50) -> 0 | BK50: =(12.341*BI50^-0.6837)*(BJ50^0.9116) -> 0 | BL50: =(BK50/0.96)*0.95 -> 0 | BM50: =BL50/0.454 -> 0 | BN50: =(G50*0.454)*0.01828*(0.02-0.0000286*253)*EXP(0.02*253-0.0000143*253^2) -> 0.5347164028 | BO50: =BN50/0.454 -> 1.177789433 | BP50: =BM50+BO50 -> 1.177789433 | BQ50: =IF(BQ51<0.75,0.75,BQ51)+BO50 -> 1.927789433 | BR50: ='Nutrient and Energy Balance'!$R$92 -> 2068.652609 | BS50: =(G50*0.454)*0.01828*EXP(0.02*253-0.0000143*253^2) -> 41.89188534 | BT50: =Cattle!$B$11 -> 10
AU51: =(AU50/0.67)/454 -> 2.150672749 | BQ51: ='Nutrient and Energy Balance'!R81 -> 0
AU52: =Q50*0.08 -> 2.251132116
B54: Lactacting First Calf Heifer, first 90 dyas after calving | BL54: Cow Model
B55: Current | F55: Mature | G55: Expected | I55: Current | N55: NEm | O55: Gravid | P55: Maternal | Q55: Predicted | R55: Predicted | T55: NEm | U55: NEm | V55: Weight | X55: ME | Y55: ME | Z55: Neg | AA55: Intake | AB55: Crude Protein | AD55: Ca | AE55: Ca | AF55: Phos | AG55: Phos | AH55: Na | AI55: K | AJ55: MG | AK55: S | AL55: CO | AM55: CU | AN55: FE | AO55: MN | AP55: SE | AQ55: ZN | AR55: MP for | AS55: MP for | AT55: MP for | AW55: NP req for | BC55: Maintenance | BD55: Intake for | BE55: Diet RE | BI55: Equiv Empty | BK55: Empty body | BL55: Shrunk
B56: Weight | E56: BW.75 | F56: Wt @ | G56: Calf | H56: Milk | I56: BCS | J56: NEm | K56: NEG | L56: NEm | M56: NEm2 | N56: sup/req | O56: Uterus | P56: Tissue | Q56: DM Intake | R56: DM Intake | S56: Supplied | T56: Req | U56: Req | V56: Initial | W56: Final | X56: Req | Y56: Req | Z56: Req | AA56: Adjustment | AB56: Req | AC56: Req | AD56: Req | AE56: Req | AF56: Req | AG56: Req | AH56: Req | AI56: Req | AJ56: Req | AK56: Req | AL56: Req | AM56: Req | AN56: Req | AO56: Req | AP56: Req | AQ56: Req | AR56: Maint. | AS56: Growth | AT56: Lact. | AU56: Total MP | AV56: MP | AW56: gain | AX56: NEm maint | AY56: NEm Growth | AZ56: Ney | BA56: Nemlact | BB56: Energy | BC56: & Lactation | BD56: Growth | BE56: Available | BF56: Empty BW | BG56: Final SBW | BI56: BW | BK56: gain | BL56: Wt Gain | BM56: Cow Model | BO56: ADGpreg | BT56: Number of
B57: lb | C57: Weight (kg) | D57: SBW | E57: MBW | F57: BCS=5 | G57: Birthweight | H57: kg/day | I57: (1-9) | J57: Mcal/kg | K57: Mcal/kg | L57: Mcal/lb | M57: Mcal/kg | N57: Ratio | O57: ADG, lb | P57: ADG, lb | Q57: lb/day | R57: kg/day | S57: Mcal/day | T57: Mcal/day | U57: Mcal/lb | V57: lb | W57: lb | X57: Mcal/day | Y57: Mcal/kg | Z57: Mcal/kg | AA57: % | AB57: lb/day | AC57: % of DM | AD57: g/day | AE57: % of DM | AF57: g/day | AG57: % of DM | AH57: % of DM | AI57: % of DM | AJ57: % of DM | AK57: % of DM | AL57: ppm | AM57: ppm | AN57: ppm | AO57: ppm | AP57: ppm | AQ57: ppm | AR57: g/day | AS57: g/day | AT57: g/day | AU57: g/day | AV57: exponent | AW57: g/day | AX57: Mcal/day | AY57: Mcal/day | AZ57: Mcal/day | BA57: Mcal/day | BB57: exponent | BC57: kg | BD57: kg | BE57: Mcal/d | BF57: EBW | BG57: FSBW | BH57: EQSBW | BI57: EQEBW | BJ57: RE | BK57: EBG | BL57: SWG, kg | BM57: SWG, lb | BO57: lb/day | BT57: Head
A58: Early Lactation, First Calf Heifer | B58: =(V58+(V58+(0.5*Cattle!E7)))/2 -> 1222.5 | C58: =B58*0.454 -> 555.015 | D58: =C58*0.96 -> 532.8144 | E58: =D58^0.75 -> 110.900107 | F58: =Cattle!D11 -> 1200 | H58: =Cattle!G11*0.454*0.8 -> 8.8 | I58: =Cattle!H11 -> 5 | J58: ='Nutrient and Energy Balance'!L$34 -> 1.153267981 | K58: ='Nutrient and Energy Balance'!M34 -> 0.5936941856 | L58: =J58*0.454 -> 0.5235836633 | M58: =J58^2 -> 1.330027035 | N58: =S58/T58 -> 0.7418671584 | O58: =BN58/0.454 -> 0 | P58: =BL58/0.454 -> 0.03956662402 | Q58: =R58/0.454 -> 28.64020183 | R58: =(E58*(0.002263+(0.134788*J58)-(0.063407*J58^2)+(0.013081*J58^3)))+H58*0.3 -> 13.00265163 | S58: =R58*J58 -> 14.99554179 | T58: =AX58+AY58+BA58 -> 20.21324387 | U58: =T58/Q58 -> 0.7057647145 | V58: =Cattle!C$11 -> 1200 | W58: =V58+((BM58+BO58)*Cattle!E$7) -> 1203.560996 | X58: =T58/'Nutrient and Energy Balance'!L38 -> 35.12002167 | Y58: =X58/R58 -> 2.700989204 | Z58: =(1.42*Y58)-(0.174*Y58^2)+(0.0122*Y58^3)-1.65 -> 1.156411673 | AA58: =IF(I58 < 7,1,0.95) -> 1 | AB58: =IF(AU59 < AU60,AU60,AU59) -> 3.175378114 | AC58: =(AB58/Q58)*100 -> 11.08713596 | AD58: =((0.0154*D58)+(1.23*H58)+(AW58*0.039))/0.5 -> 40.71068352 | AE58: =((AD58/454)/Q58)*100 -> 0.3130952415 | AF58: =((0.016*D58)+(H58*0.95)+(AW58*0.039))/0.68 -> 26.78092706 | AG58: =((AF58/454)/Q58)*100 -> 0.2059651202 | AH58: 0.1 | AI58: 0.7 | AJ58: 0.2 | AK58: 0.15 | AL58: 0.15 | AM58: 10 | AN58: 50 | AO58: 40 | AP58: 0.1 | AQ58: 30 | AR58: =3.8*E58 -> 421.4204067 | AS58: =AW58/0.404 -> 84.15841584 | AT58: =((H58*0.034)/0.65)*1000 -> 460.3076923 | AU58: =AR58+AS58+AT58 -> 965.8865148 | AV58: =(0.0278-(0.0000176*145))*145 -> 3.66096 | AW58: =IF(BL58<0.25,34, BL59*(268-(29.4*(BJ58/BL59)))) -> 34 | AX58: =E58*(Cattle!P19*1.2*(0.8+(I58-1)*0.05)) -> 12.29660387 | AY58: =IF(BD58<1.25,1.6,BD58*J58) -> 1.6 | AZ58: =((G58*0.454)*(0.05855-0.0000996*145)*EXP(BB58))/1000 -> 0 | BA58: =H58*0.7178 -> 6.31664 | BC58: =(AX58+BA58)/J58 -> 16.13956529 | BD58: ='Nutrient and Energy Balance'!F32-BC58 -> -5.832857285 | BE58: =BD58*K58 -> -3.462933456 | BF58: =D58*0.891 -> 474.7376304 | BG58: =(F58*0.454)*0.96 -> 523.008 | BH58: =D58*(478/BG58) -> 486.9625 | BI58: =(0.891*BH58)-BO58 -> 433.8835875 | BJ58: =IF(BE58<0,0,BE58) -> 0 | BK58: =(12.341*BI58^-0.6837)*(BJ58^0.9116) -> 0 | BL58: ='Nutrient and Energy Balance'!R90 -> 0.0179632473 | BM58: =BL58/0.454 -> 0.03956662402 | BO58: =BN58/0.454 -> 0 | BP58: =BM58+BO58 -> 0.03956662402 | BQ58: =IF(BQ59<0.5,0.5,BQ59)+BO58 -> 0.5 | BR58: ='Nutrient and Energy Balance'!$R$92 -> 2068.652609 | BT58: =Cattle!$B$11 -> 10
AU59: =(AU58/0.67)/454 -> 3.175378114 | AW59: from | BJ59: Using growth model: | BL59: =BK58/0.96 -> 0 | BM59: =BL59/0.454 -> 0 | BQ59: ='Nutrient and Energy Balance'!R81 -> 0
AU60: =Q58*0.08 -> 2.291216146 | AW60: growth
AW61: model
B62: Growing and Finishing Cattle | BC62: Feed for
B63: Average | G63: Expected | I63: Current | M63: Ionophore | N63: Implant | O63: Gravid | P63: Maternal | Q63: Predicted | R63: Predicted | T63: NEm | U63: NEm | V63: Body Weight | X63: ME | Y63: ME | Z63: Neg | AA63: Intake | AB63: Crude Protein | AD63: Ca | AE63: Ca | AF63: Phos | AG63: Phos | AH63: Na | AI63: K | AJ63: MG | AK63: S | AL63: CO | AM63: CU | AN63: FE | AO63: MN | AP63: SE | AQ63: ZN | AR63: MP for | AS63: MP for | AW63: NP req for | AX63: Required | AY63: RE | BC63: Maintenance | BD63: Feed for | BE63: RE from | BI63: Equiv Empty | BJ63: RE | BK63: Empty body | BL63: Shrunk | BS63: Gravid Uterus
B64: Period Wt | E64: BW.75 | F64: Finish | G64: Calf | H64: Milk | I64: BCS | J64: NEm | K64: NEG | L64: NEm | M64: Adjustment | N64: Adjustment | O64: Uterus | P64: Tissue | Q64: DM Intake | R64: DM Intake | S64: Nem Sup | T64: Req | U64: Req | V64: Initial | W64: Final | X64: Req | Y64: Req | Z64: Req | AA64: Adjustment | AB64: Req | AC64: Req | AD64: Req | AE64: Req | AF64: Req | AG64: Req | AH64: Req | AI64: Req | AJ64: Req | AK64: Req | AL64: Req | AM64: Req | AN64: Req | AO64: Req | AP64: Req | AQ64: Req | AR64: Maint. | AS64: Growth | AU64: Total MP | AV64: MP | AW64: gain | AX64: NEm maint | AY64: Neg Growth | AZ64: Ney | BA64: Nemgest | BB64: Energy | BD64: Growth | BE64: Diet Energy | BF64: Empty BW | BI64: BW | BJ64: from | BK64: gain | BL64: Wt Gain | BN64: ADGpreg | BS64: Wt, kg | BT64: Number of
B65: lb | C65: Weight (kg) | D65: SBW | E65: MBW | F65: Weight | G65: Birthweight | H65: kg/day | I65: (1-9) | J65: Mcal/kg | K65: Mcal/kg | L65: Mcal/lb | M65: Factor | N65: Factor | O65: ADG, lb | P65: ADG, lb | Q65: lb/day | R65: kg/day | S65: Mcal/day | T65: Mcal/day | U65: Mcal/lb | V65: lb | W65: lb | X65: Mcal/day | Y65: Mcal/kg | Z65: Mcal/kg | AA65: % | AB65: lb/day | AC65: % of DM | AD65: g/day | AE65: % of DM | AF65: g/day | AG65: % of DM | AH65: % of DM | AI65: % of DM | AJ65: % of DM | AK65: % of DM | AL65: ppm | AM65: ppm | AN65: ppm | AO65: ppm | AP65: ppm | AQ65: ppm | AR65: g/day | AS65: g/day | AU65: g/day | AV65: exponent | AW65: g/day | AX65: Mcal/day | AY65: Mcal/day | AZ65: Mcal/day | BA65: Mcal/day | BB65: exponent | BC65: kg | BD65: kg | BE65: Avail, Mcal/d | BF65: EBW | BG65: MSBW | BH65: EQSBW | BI65: EQEBW | BJ65: Wt Gain | BK65: EBG | BL65: SWG, kg | BM65: SWG, lb | BN65: kg/d | BS65: CW | BT65: Head
A66: Growing and Finishing Cattle | B66: =(Cattle!C15+Cattle!D15)/2 -> 1128 | C66: =B66*0.454 -> 512.112 | D66: =C66*0.96 -> 491.62752 | E66: =D66^0.75 -> 104.4064043 | F66: =Cattle!E15 + F67 -> 1357 | I66: =Cattle!I15 -> 6 | J66: ='Nutrient and Energy Balance'!L$34 -> 1.153267981 | K66: ='Nutrient and Energy Balance'!M34 -> 0.5936941856 | L66: =J66*0.454 -> 0.5235836633 | M66: =IF(Cattle!G15 = "Rumensin", 1, 1.03) -> 1 | N66: =IF(Cattle!H15 = "Yes", 1, 0.94) -> 1 | O66: =BN66/0.454 -> 0 | P66: =BL66/0.454 -> 0.8372626803 | Q66: =R66/0.454 -> 25.66813325 | R66: =(R67*((-0.0000003*V66^2)+(0.0007*V66)+0.6584))*(IF(BL67<0.95,0.985,1.05)) -> 11.6533325 | S66: ='Nutrient and Energy Balance'!F32*J66 -> 11.88639632 | T66: =AX66+AY66+BA66 -> 10.2147907 | U66: =T66/Q66 -> 0.3979561192 | V66: =Cattle!C15 -> 818 | W66: =(V66+(BM66*Cattle!E7)) -> 893.3536412 | AA66: =IF(I66 < 7,1,0.975) -> 1 | AB66: =IF(AU67 < AU68,AU68,AU67) -> 2.05345066 | AC66: =(AB66/Q66)*100 -> 8 | AD66: =((0.0154*D66)+(AW66*0.071))/0.5 -> 22.20469381 | AE66: =((AD66/454)/Q66)*100 -> 0.1905437249 | AF66: =((0.016*D66)+(AW66*0.039))/0.68 -> 14.42023412 | AG66: =((AF66/454)/Q66)*100 -> 0.1237434367 | AH66: 0.07 | AI66: 0.6 | AJ66: 0.1 | AK66: 0.15 | AL66: 0.15 | AM66: 10 | AN66: 50 | AO66: 20 | AP66: 0.1 | AQ66: 30 | AR66: =3.8*E66 -> 396.7443363 | AS66: =AW66/(IF($BL$67=0.875,$AZ$76,$AZ$77)) -> 114.5999577 | AU66: =AR66+AS66+AT66 -> 511.344294 | AV66: =(0.0278-(0.0000176*145))*145 -> 3.66096 | AW66: =IF(BL66=0,0,BL66*(268-(29.4*(BJ66/BL66)))) -> 49.73638164 | AX66: =E66*(Cattle!O19*1*(0.8+(I66-1)*0.05)) -> 8.441257788 | AY66: =BD66*K66 -> 1.773532909 | AZ66: =((G66*0.454)*(0.05855-0.0000996*253)*EXP(BB66))/1000 -> 0 | BA66: =((G66*0.454)*(0.576/0.13)*(0.05855-(0.0000996*253))*EXP(BB66))/1000 -> 0 | BB66: =(0.03233*253-0.0000275*253^2) -> 6.4192425 | BC66: =AX66/J66 -> 7.319424391 | BD66: ='Nutrient and Energy Balance'!F32-BC66 -> 2.987283609 | BE66: =IF(BD66<0,0,BD66*K66) -> 1.773532909 | BF66: =D66*0.891 -> 438.0401203 | BG66: =(F66*0.454)*0.96 -> 591.43488 | BH66: =D66*(478/BG66) -> 397.3352985 | BI66: =(0.891*BH66)-BS66 -> 354.0257509 | BJ66: =(0.0635*BI66^0.75*BK66^1.097) -> 1.773300789 | BK66: =12.341*(BI66^-0.6837)*(BE66^0.9116) -> 0.3761985223 | BL66: =(BK66/0.96)*BL67 -> 0.3801172569 | BM66: =BL66/0.454 -> 0.8372626803 | BN66: =(G66*0.454)*0.01825*(0.02-0.0000286*253)*EXP(0.02*253-0.0000143*253^2) -> 0 | BO66: N/A | BP66: =BM66 -> 0.8372626803 | BQ66: =(Cattle!$D$15-Cattle!$C$15)/Cattle!$E$7 -> 6.888888889 | BR66: N/A | BS66: =(G66*0.454)*0.01828*EXP(0.02*253-0.0000143*253^2) -> 0 | BT66: =Cattle!$B$15 -> 100
C67: Physiological wt adjustment | F67: =(Cattle!J15 - 135) * 0.6 -> -81 | P67: Modified growing cattle equation | R67: =(((E66*(0.2435*J66-0.0466*J66^2-0.09985))/J66)*M66*N66*AA66) -> 10.77240865 | S67: NASEM 2016 page 164 Eq. 10-1 with intercept averaged across both equations (this was better fit for cattle less than 750 pounds in 6 years of Hitch data) | AU67: =(AU66/0.67)/454 -> 1.681058235 | BI67: Mcal/kg SWG | BJ67: =BJ66/BL66 -> 4.665141498 | BL67: =Cattle!U7 -> 0.97 | BM67: Gain Adjustment based on Hitch Data (actual data indicated equation 12.7 overstimated gain by 8 to 12%)
AU68: =Q66*0.08 -> 2.05345066 | BI68: 29.4*cal/gain | BJ68: =29.4*BJ67 -> 137.15516
A69: Mature Bulls | B69: =Cattle!C11 -> 1200 | C69: =B69*0.454 -> 544.8 | D69: =C69*0.96 -> 523.008 | E69: =D69^0.75 -> 109.3657282 | F69: =Cattle!D11*0.6 -> 720 | I69: =Cattle!H11 -> 5 | J69: ='Nutrient and Energy Balance'!L$34 -> 1.153267981 | L69: =J69*0.454 -> 0.5235836633 | Q69: =R69/0.454 -> 22.50942127 | R69: =(E69*(0.002263+(0.134788*J69)-(0.063407*J69^2)+(0.013081*J69^3))) -> 10.21927726 | S69: =R69*J69 -> 11.78556525 | T69: =AX69+BA69 -> 6.315870803 | U69: =T69/Q69 -> 0.2805878804 | V69: =Cattle!C$11 -> 1200 | W69: =V69+((BL69+BO69)*Cattle!E$7) -> 1201.616692 | X69: =T69/'Nutrient and Energy Balance'!L38 -> 10.97367255 | Y69: =X69/R69 -> 1.073820807 | AB69: =IF(AU70 < AU71,AU71,AU70) -> 1.800753702 | AC69: =(AB69/Q69)*100 -> 8 | AD69: =(0.0154*D69)/0.5 -> 16.1086464 | AE69: =((AD69/454)/Q69)*100 -> 0.1576299967 | AF69: =(0.016*D69)/0.68 -> 12.30607059 | AG69: =((AF69/454)/Q69)*100 -> 0.1204201655 | AH69: 0.07 | AI69: 0.6 | AJ69: 0.12 | AK69: 0.15 | AL69: 0.15 | AM69: 10 | AN69: 50 | AO69: 40 | AP69: 0.1 | AQ69: 30 | AR69: =3.8*E69 -> 415.5897671 | AU69: =AR69+AT69 -> 415.5897671 | AV69: =(0.0278-(0.0000176*142))*142 -> 3.5927136 | AW69: =Q69*0.08 -> 1.800753702 | AX69: =E69*(Cattle!O19)*1*(0.8+(I77-1)*0.05) -> 6.315870803 | BA69: =((G69*0.454)*(0.576/0.13)*(0.05855-(0.0000996*142))*EXP(BB69))/1000 -> 0 | BB69: =(0.03233-(0.0000275*142))*(142) -> 4.03635 | BC69: =AX69/J69 -> 5.476498878 | BI69: Subtract 268 | BJ69: =268-BJ68 -> 130.84484 | BL69: ='Nutrient and Energy Balance'!R90 -> 0.0179632473 | BM69: =BL69/0.454 -> 0.03956662402 | BN69: =(G69*0.454)*0.01825*(0.02-0.0000286*142)*EXP(0.02*142-0.0000143*142^2) -> 0 | BO69: =BN69/0.454 -> 0 | BP69: =BM69+BO69 -> 0.03956662402 | BQ69: ='Nutrient and Energy Balance'!R81 -> 0 | BR69: ='Nutrient and Energy Balance'!$R$92 -> 2068.652609 | BT69: =Cattle!$B$11 -> 10
AU70: =(AU69/0.67)/454 -> 1.366262631 | BI70: Times SWG | BJ70: =BJ69*BL66 -> 49.73638164
AU71: =Q69*0.08 -> 1.800753702
A72: 1 | B72: 2 | C72: 3 | D72: 4 | E72: 5 | F72: 6 | G72: 7 | H72: 8 | I72: 9 | J72: 10 | K72: 11 | L72: 12 | M72: 13 | N72: 14 | O72: 15 | P72: 16 | Q72: 17 | R72: 18 | S72: 19 | T72: 20 | U72: 21 | V72: 22 | W72: 23 | X72: 24 | Y72: 25 | Z72: 26 | AA72: 27 | AB72: 28 | AC72: 29 | AD72: 30 | AE72: 31 | AF72: 32 | AG72: 33 | AH72: 34 | AI72: 35 | AJ72: 36 | AK72: 37 | AL72: 38 | AM72: 39 | AN72: 40 | AO72: 41 | AP72: 42 | AQ72: 43 | AR72: 44 | AS72: 45 | AT72: 46 | AU72: 47 | AV72: 48 | AW72: 49 | AX72: 50 | AY72: 51 | AZ72: 52 | BA72: 53 | BB72: 54 | BC72: 55 | BD72: 56 | BE72: 57 | BF72: 58 | BG72: 59 | BH72: 60 | BI72: 61 | BJ72: 62 | BK72: 63 | BL72: 64 | BM72: 65 | BN72: 66 | BO72: 67 | BP72: 68 | BQ72: 69 | BR72: 70 | BS72: 71 | BT72: 72
Q74: Initial Wt, lb | R74: Feed Intake Adjustment | U74: Equation to adjust modified NASEM equation to Hitch data: | AY74: NP to MP efficiency calculation | BJ74: Mcal/kg gain | BK74: CP | BL74: Gain | BM74: Feed:Gain | BN74: DMI | BO74: DMI, % BW
Q75: < 575 | R75: 0.968690082 | U75: -3E-07X2 + 0.0007X + .6584 | AU75: Avg Wt, kg | AV75: Below | AW75: Avg | AX75: Above | AY75: Below | AZ75: Avg | BA75: Above | BE75: Steers | BF75: 750 | BI75: Above | BJ75: 5.44 | BK75: 11.2 | BL75: 4.16 | BM75: 5.5 | BN75: 22.7 | BO75: 2.09
Q76: 575 to 625 | R76: 0.972426427 | AU76: 100 | AV76: =0.734-(AU76*0.0012) -> 0.614 | AW76: =0.764-(AU76*0.0012) -> 0.644 | AX76: =0.794-(AU76*0.0012) -> 0.674 | AY76: =MAX(((-0.0011*$BH$66)+0.734), AV78) -> 0.374 | AZ76: =MAX(((-0.0012*$BH$66)+0.764), AW78) -> 0.404 | BA76: =MAX(((-0.0012*$BH$66)+0.794), AX78) -> 0.434 | BF76: 1417 | BI76: Average | BJ76: 5.9 | BK76: 10.2 | BL76: 3.59 | BM76: 6 | BN76: 21.6 | BO76: 1.99 | BP76: Revised
Q77: 626 to 675 | R77: 0.9945426248 | AU77: 200 | AV77: =0.734-(AU77*0.0012) -> 0.494 | AW77: =0.764-(AU77*0.0012) -> 0.524 | AX77: =0.794-(AU77*0.0012) -> 0.554 | AY77: Decision | AZ77: =IF(BL67<0.875, AY76, BA76) -> 0.434 | BF77: NE g = 0.69 | BI77: Below | BJ77: 6.46 | BL77: 3.25 | BM77: 6.6 | BN77: 21.6 | BO77: 1.99
Q78: 676 to 725 | R78: 1.00560015 | AU78: 300 | AV78: 0.374 | AW78: 0.404 | AX78: 0.434 | BE78: Hitch | BL78: 3.53 | BM78: 6.28 | BN78: 21.98 | BO78: 2.03 | BP78: 173 | BQ78: 1083
Q79: 726 to 775 | R79: 1.024028065 | AU79: 400 | AV79: 0.254 | AW79: 0.284 | AX79: 0.314 | BE79: K-State | BF79: 803 | BL79: 3.58 | BM79: 6.09 | BN79: 21.8 | BO79: 1.98 | BP79: 165 | BQ79: 1101.5
Q80: 776 to 825 | R80: 1.034157672 | AU80: 500 | AV80: 0.134 | AW80: 0.164 | AX80: 0.194 | BF80: 1400
Q81: 826 to 875 | R81: 1.040991895 | AU81: 600 | AV81: 0.014 | AW81: 0.044 | AX81: 0.074 | BE81: Heifers | BF81: 750 | BI81: Above | BJ81: 5.32 | BK81: 11.9 | BL81: 4.05 | BM81: 5.4 | BN81: 21.7 | BO81: 2.13
Q82: > 875 | R82: 1.044472833 | AU82: 700 | AV82: -0.106 | AW82: -0.076 | AX82: -0.046 | BF82: 1285 | BI82: Average | BJ82: 5.88 | BK82: 10.6 | BL82: 3.43 | BM82: 6 | BN82: 20.7 | BO82: 2.03
BF83: NE g = 0.69 | BI83: Below | BJ83: 6.61 | BK83: 9.2 | BL83: 3.04 | BM83: 6.8 | BN83: 20.6 | BO83: 2
BE84: Hitch | BL84: 3.22 | BM84: 6.66 | BN84: 21.34 | BO84: 2.1 | BP84: 155 | BQ84: 1017.5
BE85: K-State | BF85: 741 | BL85: 3.24 | BM85: 6.36 | BN85: 20.6 | BO85: 2.05 | BP85: 160 | BQ85: 1005
BF86: 1269

Sheet Feed Categories (hidden)
B3: FEED CATEGORIES | C3: Grazed Forages | D3: Harvested Forages | E3: Concentrates | F3: Commercial Feeds | G3: Mineral and vitamins | H3: Select Feed Ingredient
B4: Select Feed Ingredient | C4: ='Feed List'!C6 -> Alfalfa, fresh and greenchop | D4: ='Feed List'!C32 -> Alfalfa Hay,early bloom | E4: ='Feed List'!C67 -> Barley Malt pellets with hulls | F4: ='Feed List'!C106 -> Alfalfa Pellets | G4: ='Feed List'!C129 -> Calcium Carbonate | I4: =ISNUMBER(SEARCH($I$2,A4)) -> FALSE
B5: Grazed forages | C5: ='Feed List'!C7 -> Bermuda, vegetative | D5: ='Feed List'!C33 -> Alfalfa Hay, mid bloom | E5: ='Feed List'!C68 -> Corn Gluten Feed | F5: ='Feed List'!C107 -> Aalfala Cubes | G5: ='Feed List'!C130 -> Cobalt Carbonate | I5: =ISNUMBER(SEARCH($I$2,A5:C53)) -> FALSE
B6: Harvested Forages | C6: ='Feed List'!C8 -> Bermuda, boot stage | D6: ='Feed List'!C34 -> Alfalfa Hay, full bloom | E6: ='Feed List'!C69 -> Corn Grain, rolled | F6: ='Feed List'!C108 -> Alfalfa Dehydrated, 17% CP | G6: ='Feed List'!C131 -> Cobalt Sulfate | I6: FALSE
B7: Concentrates | C7: ='Feed List'!C9 -> Bermuda, fall, mature | D7: ='Feed List'!C35 -> Alfalfa Silage | E7: ='Feed List'!C70 -> Corn Grain, steam flaked | F7: ='Feed List'!C109 -> Cane molasses | G7: ='Feed List'!C132 -> Copper Sulfate | I7: FALSE
B8: Commercial Feeds | C8: ='Feed List'!C10 -> Bermuda, winter, mature | D8: ='Feed List'!C36 -> Bermuda Hay, vegetative | E8: ='Feed List'!C71 -> Corn Grain, whole | F8: ='Feed List'!C110 -> Liquid 20% | G8: ='Feed List'!C133 -> Dicalcium phosphate | I8: FALSE
B9: Mineral and Vitamins | C9: ='Feed List'!C11 -> Bermuda, stockpiled, Sep-Oct | D9: ='Feed List'!C37 -> Bermuda Hay, early bloom | E9: ='Feed List'!C72 -> Cotton Seed Hulls | F9: ='Feed List'!C111 -> Liquid 25% | G9: ='Feed List'!C134 -> Limestone 38% | I9: FALSE
C10: ='Feed List'!C12 -> Bermuda, stockpiled, Nov-Dec | D10: ='Feed List'!C38 -> Bermuda Hay, full bloom | E10: ='Feed List'!C73 -> Cottonseed meal, 41% | F10: ='Feed List'!C112 -> Liquid 30% | G10: ='Feed List'!C135 -> Magnesium Oxide | I10: FALSE
C11: ='Feed List'!C13 -> Bermuda, stockpiled, Jan-Feb | D11: ='Feed List'!C39 -> Brome Hay, early bloom | E11: ='Feed List'!C74 -> Cottonseed, whole | F11: ='Feed List'!C113 -> Protein block | G11: ='Feed List'!C136 -> Potassium chloride | I11: FALSE
C12: ='Feed List'!C14 -> Fescue, vegetative | D12: ='Feed List'!C40 -> Corn Silage | E12: ='Feed List'!C75 -> Distillers Grains with Solubles, corn | F12: ='Feed List'!C114 -> Range Cube, 20% | G12: ='Feed List'!C137 -> Selenium 600 | I12: FALSE
C13: ='Feed List'!C15 -> Fescue, boot stage | D13: ='Feed List'!C41 -> Cotton Gin Trash | E13: ='Feed List'!C76 -> Distillers Grains with Solubles, sorghum | F13: ='Feed List'!C115 -> Range Cube, 25% | G13: ='Feed List'!C138 -> Sodium Chloride | I13: FALSE
C14: ='Feed List'!C16 -> Fescue, mature | D14: ='Feed List'!C42 -> Fescue Hay, early bloom | E14: ='Feed List'!C77 -> Grain Screenings | F14: ='Feed List'!C116 -> Range Cube, 32% | G14: ='Feed List'!C139 -> Zinc Oxide | I14: FALSE
C15: ='Feed List'!C17 -> Fescue, stockpiled, Jan-Feb | D15: ='Feed List'!C43 -> Fescue Hay, full bloom | E15: ='Feed List'!C78 -> Milo, ground | F15: ='Feed List'!C117 -> Range Cube, 38% | G15: ='Feed List'!C140 -> Zinc Sulfate | I15: FALSE
C16: ='Feed List'!C18 -> Fescue, stockpiled, Nov-Dec | D16: ='Feed List'!C44 -> Oat Hay | E16: ='Feed List'!C79 -> Milo, steam flaked | F16: ='Feed List'!C118 -> B-283 Oklahoma Gold Cube w Rumensin | G16: ='Feed List'!C141 -> Stillwater CTC 2.0 Beef Mineral | I16: FALSE
C17: ='Feed List'!C19 -> Native Range, April-June | D17: ='Feed List'!C45 -> Poultry Litter | E17: ='Feed List'!C80 -> Mung Beans | F17: ='Feed List'!C119 -> 1925 Hfr Feed Intake TMR, R2 | G17: ='Feed List'!C142 -> B-628 Dry TMR Supplement | I17: FALSE
C18: ='Feed List'!C20 -> Native Range, July-August | D18: ='Feed List'!C46 -> Prairie Hay, vegetative | E18: ='Feed List'!C81 -> Oats | F18: ='Feed List'!C120 -> 1920 TMR, Creep Feed | G18: ='Feed List'!C143 -> Sweetlix Aureo FC C6000 | I18: FALSE
C19: ='Feed List'!C21 -> Native Range, Sept Oct | D19: ='Feed List'!C47 -> Prairie Hay, mature | E19: ='Feed List'!C82 -> Peanut Hulls | F19: ='Feed List'!C121 -> OSU 25 Custom Liquid NPT 7294 | G19: ='Feed List'!C144 -> Deccox, 6% | I19: FALSE
C20: ='Feed List'!C22 -> Native Range, Nov-Dec | D20: ='Feed List'!C48 -> Red Clover Hay | E20: ='Feed List'!C83 -> Peanut Meal, solvent | F20: ='Feed List'!C122 -> Added Feed | G20: ='Feed List'!C145 -> B-350 RCRC Mineral | I20: FALSE
C21: ='Feed List'!C23 -> Native Range, Jan-March | D21: ='Feed List'!C49 -> Sorghum Sudan Hay, early bloom | E21: ='Feed List'!C84 -> Milo, rolled or grnd | F21: ='Feed List'!C123 -> Added Feed | G21: ='Feed List'!C146 -> Added Feed | I21: FALSE
C22: ='Feed List'!C24 -> Wheat Forage, vegetative | D22: ='Feed List'!C50 -> Soybean Hay | E22: ='Feed List'!C85 -> Rice Bran, full fat | F22: ='Feed List'!C124 -> Added Feed | G22: ='Feed List'!C147 -> Added Feed | I22: FALSE
C23: ='Feed List'!C25 -> Added Feed | D23: ='Feed List'!C51 -> Sudan Hay, full bloom | E23: ='Feed List'!C86 -> Rice Grain | F23: ='Feed List'!C125 -> Added Feed | G23: ='Feed List'!C148 -> Added Feed | I23: FALSE
C24: ='Feed List'!C26 -> Added Feed | D24: ='Feed List'!C52 -> Sorghum Silage | E24: ='Feed List'!C87 -> Rice Hulls | F24: ='Feed List'!C126 -> Added Feed | G24: ='Feed List'!C149 -> Added Feed | I24: FALSE
C25: ='Feed List'!C27 -> Added Feed | D25: ='Feed List'!C53 -> Sorghum Sudan Silage | E25: ='Feed List'!C88 -> Rice Mill Byproduct | F25: ='Feed List'!C127 -> Added Feed | G25: ='Feed List'!C150 -> Added Feed | I25: FALSE
C26: ='Feed List'!C28 -> Added Feed | D26: ='Feed List'!C54 -> Triticale Hay | E26: ='Feed List'!C89 -> Soybean Hulls | I26: FALSE
C27: ='Feed List'!C29 -> Added Feed | D27: ='Feed List'!C55 -> Triticale Silage | E27: ='Feed List'!C90 -> Soybean meal, 48% | I27: FALSE
C28: ='Feed List'!C30 -> Added Feed | D28: ='Feed List'!C56 -> Wheat Hay | E28: ='Feed List'!C91 -> Soybeans, Whole | I28: FALSE
D29: ='Feed List'!C57 -> Wheat Silage | E29: ='Feed List'!C92 -> Sunflower Seed Hulls | I29: FALSE
D30: ='Feed List'!C58 -> Wheat Straw | E30: ='Feed List'!C93 -> Sunflower Seed Meal with hulls | I30: FALSE
D31: ='Feed List'!C59 -> Wheat Straw, Ammoniated | E31: ='Feed List'!C94 -> Wheat Grain, rolled | I31: FALSE
D32: ='Feed List'!C60 -> Added Feed | E32: ='Feed List'!C95 -> Wheat Bran | I32: FALSE
D33: ='Feed List'!C61 -> Added Feed | E33: ='Feed List'!C96 -> Wheat Middlings | I33: FALSE
D34: ='Feed List'!C62 -> Added Feed | E34: ='Feed List'!C97 -> Wheat Mill Run | I34: FALSE
D35: ='Feed List'!C63 -> Added Feed | E35: ='Feed List'!C98 -> Wheat Shorts | I35: FALSE
D36: ='Feed List'!C64 -> Added Feed | E36: ='Feed List'!C99 -> Finishing Ration | I36: FALSE
D37: ='Feed List'!C65 -> Added Feed | E37: ='Feed List'!C100 -> Added Feed | I37: FALSE
E38: ='Feed List'!C101 -> Added Feed | I38: FALSE
E39: ='Feed List'!C102 -> Added Feed | I39: FALSE
E40: ='Feed List'!C103 -> Added Feed | I40: FALSE
E41: ='Feed List'!C104 -> Added Feed | I41: FALSE
I42: FALSE
I43: FALSE
I44: FALSE
I45: FALSE
I46: FALSE
I47: FALSE
I48: FALSE
I49: FALSE
I50: FALSE
I51: FALSE
I52: FALSE
I53: FALSE
